Workbook

Sheet Notes
A1: ZeroInOnMacd.xlsm
A2: Coded beginning 2016-Mar-06 by Ronald McAllister (rpmac_xltt@sprynet.com)
A4: This Workbook demonstrates an EXCEL version of the ideas presented
A5: by Barbara Star, PhD in an article titled "Zero In On The MACD"
A6: which appears in the May 2016 issue of
A7: "Technical Analysis of Stocks and Commodities" magazine.
A9: Change Log:
B11: 2016Mar29 Ron McAllister
B12: Corrected failure in logic of Sub RefreshPricesFromYahoo that is intended to capture WhereWasI cell location.
A14: CalculationsAndCharts construction Notes:
A15: To replicate charts from the article
B16: Figures 1 and 2 | E16: Use symbol SCG DAILY data and plot dates 9/24/2014 to 6/10/2015
B18: Figures 4 and 5 | E18: Use symbol FSLR DAILY data and plot dates 9/4/2014 through 7/31/2015
B20: Figure 7 | E20: Use symbol SMH and set WEEKLY in cell B7 in the InputPriceData tab.
E21: Plot dates 2/27/2012 through 11/23/2015.
E22: Note: On the CalculationsAndCharts tab set cell C7 to FALSE to use raw data in the calculations.
E23: With adjusted data from Yahoo, the cautionary pips will not match to Fig 7 when displayed.
E24: I believe that this is an artifact of the two different data sources (E Signal vs Yahoo).
E25: I generally use adjusted data (C7 = TRUE) for all time frames.
E26: Note 2: The charts that are using DAILY data seem to match up ok with
E27: C7 set to TRUE so that they are using the adjusted data.
A28: Aroon Indicator
A29: Calculation
A30: Aroon-Up = [(Period Specified – Periods Since the Highest High within Period Specified) / Period Specified] x 100
A31: Aroon-Down = [(Period Specified – Periods Since the Lowest Low for Period Specified) / Period Specified] x 100
A32: How this indicator works
A33: If the Aroon-Up crosses above the Aroon-Down, then a new uptrend may start soon.
A34: Conversely, if Aroon-Down crosses above the Aroon-Up, then a new downtrend may start soon.
A35: When Aroon-Up reaches 100, a new uptrend may have begun. If it remains persistently between
A36: 70 and 100, and the Aroon-Down remains between 0 and 30, then a new uptrend is underway.
A37: When Aroon-Down reaches 100, a new downtrend may have begun. If it remains persistently
A38: between 70 and 100, and the Aroon-Up remains between 0 and 30, then a new downtrend is underway.
A39: When Aroon-Up and Aroon-Down move in parallel (horizontal, sloping up or down) with each other at
A40: roughly the same level, then price is range trading or consolidating.
A42: Development Notes:
C43: This workbook contains and uses VBA macros and may use VBA Class structures.
C44: Input Data
C45: The data in this workbook is sorted date descending (most recent date at the top). All formulas and
C46: VBA routines are built accordingly.
A48: Calculation and Chart Worksheet Usage Comments:
C49: In General, Items in Bolded BLUE are items you may freely change to play what-if games.
C50: Be sure to have a backup copy of the spreadsheet before you alter anything else.
A52: New with this Traders Tip
A53: (To be filed under the heading of "Things learned on the way to something else".)
A54: User defined / designed Custom Markers.
A55: Specifically, the up and down arrows and the warning diamonds used in the charts,
A56: Credit for the technique as I am using it, goes to Jon Peltier of Peltiertech Technical Services, Inc.
A57: If you are interested in a detailed explanation of this technique, the following link will take you to the specific page on his web site.
A58: http://peltiertech.com/Excel/Charts/PointAtPoints.html
A60: Features carried forward from the February 2016 version of my T-Tips Template
B61: First: In the "Help! I would like to plot data" area.
B62: Added button to resolve #NA problems by locating the bar in the input data with a slightly more recent date than what the user actually requested.
B63: I find this particularly useful when I have a general idea of where I want to be date wise. Now I can pick a set of dates "out of the air".
B64: If either (or both) of my date specifications fall between dates that are available in the price history,
B65: this button will resolve them to the dates of the nearest, slightly more recent input bars.
B66: I can then refine my data interval search as necessary from there.
B67: Really great when working with Weekly or Monthly studies!
B69: Second: In the "Price Chart Windowing Controls" area. (A11 and A12)
B70: When retrieving data for a new symbol or when changing from daily to weekly or monthly data, there was the possibility that the
B71: residual settings in A11 and A12 would fall outside of the number bars available on the input data tab after the new data retrieval.
B72: In certain combinations, this could create a serious error in the chart sizing logic and crash the spreadsheet.
B73: I have taken this opportunity to update the validity checking logic used in the chart sizing macros
B74: to adjust these values as necessary so that they fall within the boundaries of the newly retrieved input data.
A75: Features carried forward from the October 2015 Traders Tips Template
B76: Improved automation: changes to any of the following will automatically initiate calculations appropriate to reflect a change.
C77: Changing either of cells A11 (pan) or A12 (zoom) will automatically initiate the same chart sizing macros that the manual
C78: "Set Chart" button uses.
B80: Added fail-over capability to attempt to retrieve company name and basic last trade info via screen scraper logic
C81: using the Yahoo stock Summary page. Until now, the way I have been doing this reports that ^DJI is Not Found!
C82: when there is history available. Will still report correctly for a truly Not Found Symbol
C83: Minor drawbacks to the screen scrape of the stock summary page include:
C84: Only date on the page is the date we request the page. I will use this date for now as the last trade date…
C85: But the user should be aware that this is not necessarily the correct date if you are making the inquiry on
C86: a weekend or market holiday.
C87: This is not a big issue as the last real trade will already be accounted for in the history download by about 6 pm on the real date of the trade.
C88: Note: This failover mechanism is only used if what I have been doing all along reports a "not found" for the requested symbol.

Sheet InputPriceData
A1: First Solar, Inc. (FSLR) -NMS (Daily)
A2: Last Trade: | B2: 2016-03-08 | C2: 68.45 | D2: 69.17 | E2: 66.58 | F2: 66.87 | G2: 1725180 | H2: 4:00pm | I2: -2.31 | J2: =IFERROR(OFFSET(J2,0,-1,1,1)/(OFFSET(J2,0,-4,1,1)-OFFSET(J2,0,-1,1,1)),"") -> -0.03339115351 | L2: Notes: | M2: Online Yahoo Finance Query Interfaces used in the VBA code to obtain this data: | IJ2: 241.79
A3: Request Online Yahoo History for: | M3: A.) Price History Only: "http://ichart.finance.yahoo.com/table.csv"
A4: Symbol | B4: fslr | D4: Valid | I4: =OFFSET(I4,-2,0,1,1) -> -2.31 | M4: B.) Price History w/ imbedded divs n splits: "http://ichart.finance.yahoo.com/x"
A5: From | B5: 1977-01-07 | D5: Data | AF5: Trailing 12 Div return (Cur Close)
A6: To | B6: =TODAY() -> 2016-03-29 | D6: Types | E6: =VLOOKUP(B7,D7:E10,2,FALSE) -> d | M6: C.) Fundamentals (in this case name and exchange):
A7: Data Type | B7: Daily | D7: Daily | E7: d | M7: "http://download.finance.yahoo.com/d/quotes.csv?"
D8: Weekly | E8: w | M8: For some how-to doc regarding this particular interface, including a list of the
A9: Available Data | D9: Monthly | E9: m | M9: specific fields you can include in a request to this interface see:
A10: Bar Count: | B10: =COUNTA(B15:B70000)-1 -> 2340 | M10: http://www.gummy-stuff.org/Yahoo-data.htm | AF10: =OFFSET(AC15,1,0,1,1)/OFFSET(N15,1,0,1,1) -> 0
A11: From: | B11: =IF(B10<=0,"",OFFSET(B15,B10,IF(HistReqDataType="v",1,0),1,1)) -> 2006-11-17 | M11: This web site includes a downloadable working EXCEL/VBA example | W11: Trailing 12 Month Dividend Returns
A12: To: | B12: =IF(B10<=0,"",IF(HistReqDataType="v",OFFSET(B15,2,1,1,1),OFFSET(B15,1,0,1,1))) -> 2016-03-08 | M12: of the capabilities of this interface. | W12: Raw Close price on Dividend date | X12: Div Year and Month | Y12: Looking for year ago Div Year and Month | Z12: Year ago Div Date we found | AA12: row offset to year ago div Date | AB12: Same month flag | AC12: Trailing 12 Div Total | AD12: Trailing 12 Div return
Q13: Split History | S13: =COUNT(Q16:Q3919) -> 0 | T13: Running | U13: Dividend History
B14: Raw Data Values | H14: Adjusted | I14: Price Adjust | J14: Vol Adjust | K14: Adjusted Values | P14: Last | Q14: Effective | R14: Shares | T14: Vol Adjust | V14: =COUNT(U16:U3919) -> 0
A15: RelRow | B15: Date | C15: Open | D15: High | E15: Low | F15: Close | G15: Volume | H15: Close | I15: Factor | J15: Factor | K15: Open | L15: High | M15: Low | N15: Close | O15: Volume | P15: Trade | Q15: 42438 | R15: New | S15: Old | T15: 1 | U15: Date | V15: $ / Share
A16: 1 | B16: 2016-03-08 | C16: 68.45 | D16: 69.17 | E16: 66.58 | F16: 66.87 | G16: 1725180 | H16: 66.87 | I16: =H16/F16 -> 1 | J16: =INDEX(OFFSET($T$15,0,0,$S$13+1,1),MATCH(B16,OFFSET($Q$15,0,0,$S$13+1,1),-1)) -> 1 | K16: =ROUND($I16*C16,2) -> 68.45 | L16: =ROUND($I16*D16,2) -> 69.17 | M16: =ROUND($I16*E16,2) -> 66.58 | N16: =ROUND($I16*F16,2) -> 66.87 | O16: =G16*J16 -> 1725180 | P16: 4:00pm
A17: 2 | B17: 2016-03-07 | C17: 69.169998 | D17: 70.489998 | E17: 68.349998 | F17: 69.18 | G17: 1357800 | H17: 69.18 | I17: =H17/F17 -> 1 | J17: =INDEX(OFFSET($T$15,0,0,$S$13+1,1),MATCH(B17,OFFSET($Q$15,0,0,$S$13+1,1),-1)) -> 1 | K17: 69.17 | L17: 70.49 | M17: 68.35 | N17: 69.18 | O17: =G17*J17 -> 1357800
A18: 3 | B18: 2016-03-04 | C18: 70.160004 | D18: 71.209999 | E18: 68.709999 | F18: 69.519997 | G18: 1926500 | H18: 69.519997 | I18: =H18/F18 -> 1 | J18: =INDEX(OFFSET($T$15,0,0,$S$13+1,1),MATCH(B18,OFFSET($Q$15,0,0,$S$13+1,1),-1)) -> 1 | K18: 70.16 | L18: 71.21 | M18: 68.71 | N18: 69.52 | O18: =G18*J18 -> 1926500
A19: 4 | B19: 2016-03-03 | C19: 69.580002 | D19: 70.5 | E19: 68.660004 | F19: 69.709999 | G19: 1705800 | H19: 69.709999 | I19: 1 | J19: 1 | K19: 69.58 | L19: 70.5 | M19: 68.66 | N19: 69.71 | O19: 1705800
A20: 5 | B20: 2016-03-02 | C20: 68.949997 | D20: 70.599998 | E20: 68.529999 | F20: 69.139999 | G20: 2036200 | H20: 69.139999 | I20: 1 | J20: 1 | K20: 68.95 | L20: 70.6 | M20: 68.53 | N20: 69.14 | O20: 2036200
A21: 6 | B21: 2016-03-01 | C21: 71.360001 | D21: 71.410004 | E21: 68.370003 | F21: 69.019997 | G21: 3342600 | H21: 69.019997 | I21: 1 | J21: 1 | K21: 71.36 | L21: 71.41 | M21: 68.37 | N21: 69.02 | O21: 3342600
A22: 7 | B22: 2016-02-29 | C22: 70.279999 | D22: 73.709999 | E22: 70.019997 | F22: 71.870003 | G22: 3153200 | H22: 71.870003 | I22: 1 | J22: 1 | K22: 70.28 | L22: 73.71 | M22: 70.02 | N22: 71.87 | O22: 3153200
A23: 8 | B23: 2016-02-26 | C23: 72.25 | D23: 73.370003 | E23: 69.879997 | F23: 70.25 | G23: 3540400 | H23: 70.25 | I23: 1 | J23: 1 | K23: 72.25 | L23: 73.37 | M23: 69.88 | N23: 70.25 | O23: 3540400
A24: 9 | B24: 2016-02-25 | C24: 69.330002 | D24: 72.519997 | E24: 68.540001 | F24: 72.25 | G24: 5101500 | H24: 72.25 | I24: 1 | J24: 1 | K24: 69.33 | L24: 72.52 | M24: 68.54 | N24: 72.25 | O24: 5101500
A25: 10 | B25: 2016-02-24 | C25: 63.959999 | D25: 70.57 | E25: 63.950001 | F25: 69.449997 | G25: 7954700 | H25: 69.449997 | I25: 1 | J25: 1 | K25: 63.96 | L25: 70.57 | M25: 63.95 | N25: 69.45 | O25: 7954700
A26: 11 | B26: 2016-02-23 | C26: 63.799999 | D26: 64.559998 | E26: 61.27 | F26: 61.790001 | G26: 2815100 | H26: 61.790001 | I26: 1 | J26: 1 | K26: 63.8 | L26: 64.56 | M26: 61.27 | N26: 61.79 | O26: 2815100
A27: 12 | B27: 2016-02-22 | C27: 63.560001 | D27: 65.559998 | E27: 63.450001 | F27: 64.230003 | G27: 2372500 | H27: 64.230003 | I27: 1 | J27: 1 | K27: 63.56 | L27: 65.56 | M27: 63.45 | N27: 64.23 | O27: 2372500
A28: 13 | B28: 2016-02-19 | C28: 63.029999 | D28: 63.5 | E28: 61.439999 | F28: 62.759998 | G28: 1721200 | H28: 62.759998 | I28: 1 | J28: 1 | K28: 63.03 | L28: 63.5 | M28: 61.44 | N28: 62.76 | O28: 1721200
A29: 14 | B29: 2016-02-18 | C29: 64.290001 | D29: 64.830002 | E29: 62.5 | F29: 63.540001 | G29: 1803300 | H29: 63.540001 | I29: 1 | J29: 1 | K29: 64.29 | L29: 64.83 | M29: 62.5 | N29: 63.54 | O29: 1803300
A30: 15 | B30: 2016-02-17 | C30: 63.700001 | D30: 64.199997 | E30: 62.169998 | F30: 63.470001 | G30: 2205400 | H30: 63.470001 | I30: 1 | J30: 1 | K30: 63.7 | L30: 64.2 | M30: 62.17 | N30: 63.47 | O30: 2205400
A31: 16 | B31: 2016-02-16 | C31: 61.98 | D31: 63.310001 | E31: 61.669998 | F31: 63.049999 | G31: 1645300 | H31: 63.049999 | I31: 1 | J31: 1 | K31: 61.98 | L31: 63.31 | M31: 61.67 | N31: 63.05 | O31: 1645300
A32: 17 | B32: 2016-02-12 | C32: 62.299999 | D32: 62.799999 | E32: 58.080002 | F32: 60.990002 | G32: 2937600 | H32: 60.990002 | I32: 1 | J32: 1 | K32: 62.3 | L32: 62.8 | M32: 58.08 | N32: 60.99 | O32: 2937600
A33: 18 | B33: 2016-02-11 | C33: 63 | D33: 64.07 | E33: 60.099998 | F33: 61.360001 | G33: 3048800 | H33: 61.360001 | I33: 1 | J33: 1 | K33: 63 | L33: 64.07 | M33: 60.1 | N33: 61.36 | O33: 3048800
A34: 19 | B34: 2016-02-10 | C34: 64.660004 | D34: 65.720001 | E34: 63.790001 | F34: 64.410004 | G34: 2386200 | H34: 64.410004 | I34: 1 | J34: 1 | K34: 64.66 | L34: 65.72 | M34: 63.79 | N34: 64.41 | O34: 2386200
A35: 20 | B35: 2016-02-09 | C35: 63.029999 | D35: 66.849998 | E35: 62.540001 | F35: 66.480003 | G35: 2207100 | H35: 66.480003 | I35: 1 | J35: 1 | K35: 63.03 | L35: 66.85 | M35: 62.54 | N35: 66.48 | O35: 2207100
A36: 21 | B36: 2016-02-08 | C36: 63.5 | D36: 65.07 | E36: 62.959999 | F36: 64.18 | G36: 2130300 | H36: 64.18 | I36: 1 | J36: 1 | K36: 63.5 | L36: 65.07 | M36: 62.96 | N36: 64.18 | O36: 2130300
A37: 22 | B37: 2016-02-05 | C37: 66.709999 | D37: 66.879997 | E37: 64.860001 | F37: 65.07 | G37: 1653900 | H37: 65.07 | I37: 1 | J37: 1 | K37: 66.71 | L37: 66.88 | M37: 64.86 | N37: 65.07 | O37: 1653900
A38: 23 | B38: 2016-02-04 | C38: 66.389999 | D38: 68.489998 | E38: 66.050003 | F38: 67.199997 | G38: 1669300 | H38: 67.199997 | I38: 1 | J38: 1 | K38: 66.39 | L38: 68.49 | M38: 66.05 | N38: 67.2 | O38: 1669300
A39: 24 | B39: 2016-02-03 | C39: 66.940002 | D39: 67.150002 | E39: 64.099998 | F39: 66.489998 | G39: 1759600 | H39: 66.489998 | I39: 1 | J39: 1 | K39: 66.94 | L39: 67.15 | M39: 64.1 | N39: 66.49 | O39: 1759600
A40: 25 | B40: 2016-02-02 | C40: 68.050003 | D40: 68.739998 | E40: 65.610001 | F40: 66.129997 | G40: 1966400 | H40: 66.129997 | I40: 1 | J40: 1 | K40: 68.05 | L40: 68.74 | M40: 65.61 | N40: 66.13 | O40: 1966400
A41: 26 | B41: 2016-02-01 | C41: 68.099998 | D41: 69.769997 | E41: 66.739998 | F41: 69.129997 | G41: 1961000 | H41: 69.129997 | I41: 1 | J41: 1 | K41: 68.1 | L41: 69.77 | M41: 66.74 | N41: 69.13 | O41: 1961000
A42: 27 | B42: 2016-01-29 | C42: 65.919998 | D42: 68.699997 | E42: 65.800003 | F42: 68.660004 | G42: 2324100 | H42: 68.660004 | I42: 1 | J42: 1 | K42: 65.92 | L42: 68.7 | M42: 65.8 | N42: 68.66 | O42: 2324100
A43: 28 | B43: 2016-01-28 | C43: 66.849998 | D43: 67.43 | E43: 64.18 | F43: 65.879997 | G43: 2228100 | H43: 65.879997 | I43: 1 | J43: 1 | K43: 66.85 | L43: 67.43 | M43: 64.18 | N43: 65.88 | O43: 2228100
A44: 29 | B44: 2016-01-27 | C44: 66.93 | D44: 67.730003 | E44: 65.220001 | F44: 65.639999 | G44: 1891500 | H44: 65.639999 | I44: 1 | J44: 1 | K44: 66.93 | L44: 67.73 | M44: 65.22 | N44: 65.64 | O44: 1891500
A45: 30 | B45: 2016-01-26 | C45: 64.760002 | D45: 67.599998 | E45: 64.440002 | F45: 67.400002 | G45: 1917900 | H45: 67.400002 | I45: 1 | J45: 1 | K45: 64.76 | L45: 67.6 | M45: 64.44 | N45: 67.4 | O45: 1917900
A46: 31 | B46: 2016-01-25 | C46: 66.559998 | D46: 66.589996 | E46: 63.93 | F46: 64.139999 | G46: 1862800 | H46: 64.139999 | I46: 1 | J46: 1 | K46: 66.56 | L46: 66.59 | M46: 63.93 | N46: 64.14 | O46: 1862800
A47: 32 | B47: 2016-01-22 | C47: 65.099998 | D47: 66.940002 | E47: 64.290001 | F47: 66.440002 | G47: 2960800 | H47: 66.440002 | I47: 1 | J47: 1 | K47: 65.1 | L47: 66.94 | M47: 64.29 | N47: 66.44 | O47: 2960800
A48: 33 | B48: 2016-01-21 | C48: 61.290001 | D48: 64.529999 | E48: 60.860001 | F48: 63.23 | G48: 2418700 | H48: 63.23 | I48: 1 | J48: 1 | K48: 61.29 | L48: 64.53 | M48: 60.86 | N48: 63.23 | O48: 2418700
A49: 34 | B49: 2016-01-20 | C49: 60.400002 | D49: 62 | E49: 57.200001 | F49: 61.27 | G49: 3309100 | H49: 61.27 | I49: 1 | J49: 1 | K49: 60.4 | L49: 62 | M49: 57.2 | N49: 61.27 | O49: 3309100
A50: 35 | B50: 2016-01-19 | C50: 62.209999 | D50: 63.150002 | E50: 60.740002 | F50: 61.490002 | G50: 2196100 | H50: 61.490002 | I50: 1 | J50: 1 | K50: 62.21 | L50: 63.15 | M50: 60.74 | N50: 61.49 | O50: 2196100
A51: 36 | B51: 2016-01-15 | C51: 59.580002 | D51: 61.639999 | E51: 58.799999 | F51: 61.32 | G51: 2373600 | H51: 61.32 | I51: 1 | J51: 1 | K51: 59.58 | L51: 61.64 | M51: 58.8 | N51: 61.32 | O51: 2373600
A52: 37 | B52: 2016-01-14 | C52: 60.799999 | D52: 62.599998 | E52: 57.540001 | F52: 61.779999 | G52: 3849800 | H52: 61.779999 | I52: 1 | J52: 1 | K52: 60.8 | L52: 62.6 | M52: 57.54 | N52: 61.78 | O52: 3849800
A53: 38 | B53: 2016-01-13 | C53: 65.519997 | D53: 66.269997 | E53: 61.080002 | F53: 61.369999 | G53: 2541200 | H53: 61.369999 | I53: 1 | J53: 1 | K53: 65.52 | L53: 66.27 | M53: 61.08 | N53: 61.37 | O53: 2541200
A54: 39 | B54: 2016-01-12 | C54: 65.980003 | D54: 66.540001 | E54: 63.07 | F54: 65.220001 | G54: 2305200 | H54: 65.220001 | I54: 1 | J54: 1 | K54: 65.98 | L54: 66.54 | M54: 63.07 | N54: 65.22 | O54: 2305200
A55: 40 | B55: 2016-01-11 | C55: 65.839996 | D55: 66.720001 | E55: 64.370003 | F55: 65.419998 | G55: 1744400 | H55: 65.419998 | I55: 1 | J55: 1 | K55: 65.84 | L55: 66.72 | M55: 64.37 | N55: 65.42 | O55: 1744400
A56: 41 | B56: 2016-01-08 | C56: 67.43 | D56: 67.949997 | E56: 64.730003 | F56: 65.620003 | G56: 3034000 | H56: 65.620003 | I56: 1 | J56: 1 | K56: 67.43 | L56: 67.95 | M56: 64.73 | N56: 65.62 | O56: 3034000
A57: 42 | B57: 2016-01-07 | C57: 67.639999 | D57: 68.699997 | E57: 65.349998 | F57: 66.220001 | G57: 4087200 | H57: 66.220001 | I57: 1 | J57: 1 | K57: 67.64 | L57: 68.7 | M57: 65.35 | N57: 66.22 | O57: 4087200
A58: 43 | B58: 2016-01-06 | C58: 71 | D58: 71.449997 | E58: 68.419998 | F58: 69.519997 | G58: 2935600 | H58: 69.519997 | I58: 1 | J58: 1 | K58: 71 | L58: 71.45 | M58: 68.42 | N58: 69.52 | O58: 2935600
A59: 44 | B59: 2016-01-05 | C59: 70.559998 | D59: 72.120003 | E59: 70.110001 | F59: 72.029999 | G59: 6366900 | H59: 72.029999 | I59: 1 | J59: 1 | K59: 70.56 | L59: 72.12 | M59: 70.11 | N59: 72.03 | O59: 6366900
A60: 45 | B60: 2016-01-04 | C60: 64.709999 | D60: 66.760002 | E60: 64.099998 | F60: 66.720001 | G60: 2116200 | H60: 66.720001 | I60: 1 | J60: 1 | K60: 64.71 | L60: 66.76 | M60: 64.1 | N60: 66.72 | O60: 2116200
A61: 46 | B61: 2015-12-31 | C61: 66.510002 | D61: 67.07 | E61: 65.989998 | F61: 65.989998 | G61: 1512500 | H61: 65.989998 | I61: 1 | J61: 1 | K61: 66.51 | L61: 67.07 | M61: 65.99 | N61: 65.99 | O61: 1512500
A62: 47 | B62: 2015-12-30 | C62: 66.230003 | D62: 67.160004 | E62: 66.010002 | F62: 66.989998 | G62: 1342100 | H62: 66.989998 | I62: 1 | J62: 1 | K62: 66.23 | L62: 67.16 | M62: 66.01 | N62: 66.99 | O62: 1342100
A63: 48 | B63: 2015-12-29 | C63: 66.699997 | D63: 66.949997 | E63: 65.449997 | F63: 66.410004 | G63: 1048600 | H63: 66.410004 | I63: 1 | J63: 1 | K63: 66.7 | L63: 66.95 | M63: 65.45 | N63: 66.41 | O63: 1048600
A64: 49 | B64: 2015-12-28 | C64: 66.529999 | D64: 66.800003 | E64: 65.110001 | F64: 66.400002 | G64: 1025200 | H64: 66.400002 | I64: 1 | J64: 1 | K64: 66.53 | L64: 66.8 | M64: 65.11 | N64: 66.4 | O64: 1025200
A65: 50 | B65: 2015-12-24 | C65: 66.260002 | D65: 67.800003 | E65: 66.25 | F65: 66.919998 | G65: 921200 | H65: 66.919998 | I65: 1 | J65: 1 | K65: 66.26 | L65: 67.8 | M65: 66.25 | N65: 66.92 | O65: 921200
A66: 51 | B66: 2015-12-23 | C66: 65.489998 | D66: 66.519997 | E66: 65.349998 | F66: 66.169998 | G66: 1325000 | H66: 66.169998 | I66: 1 | J66: 1 | K66: 65.49 | L66: 66.52 | M66: 65.35 | N66: 66.17 | O66: 1325000
A67: 52 | B67: 2015-12-22 | C67: 65.470001 | D67: 65.629997 | E67: 63.73 | F67: 64.989998 | G67: 1870400 | H67: 64.989998 | I67: 1 | J67: 1 | K67: 65.47 | L67: 65.63 | M67: 63.73 | N67: 64.99 | O67: 1870400
A68: 53 | B68: 2015-12-21 | C68: 64.650002 | D68: 66.150002 | E68: 64.5 | F68: 65.739998 | G68: 2768500 | H68: 65.739998 | I68: 1 | J68: 1 | K68: 64.65 | L68: 66.15 | M68: 64.5 | N68: 65.74 | O68: 2768500
A69: 54 | B69: 2015-12-18 | C69: 63.84 | D69: 65.339996 | E69: 63.290001 | F69: 63.41 | G69: 3283700 | H69: 63.41 | I69: 1 | J69: 1 | K69: 63.84 | L69: 65.34 | M69: 63.29 | N69: 63.41 | O69: 3283700
A70: 55 | B70: 2015-12-17 | C70: 66.5 | D70: 66.650002 | E70: 64.029999 | F70: 64.480003 | G70: 3315000 | H70: 64.480003 | I70: 1 | J70: 1 | K70: 66.5 | L70: 66.65 | M70: 64.03 | N70: 64.48 | O70: 3315000
A71: 56 | B71: 2015-12-16 | C71: 63.52 | D71: 66.349998 | E71: 63.400002 | F71: 65.620003 | G71: 7171700 | H71: 65.620003 | I71: 1 | J71: 1 | K71: 63.52 | L71: 66.35 | M71: 63.4 | N71: 65.62 | O71: 7171700
A72: 57 | B72: 2015-12-15 | C72: 58.860001 | D72: 60.349998 | E72: 58.119999 | F72: 59.830002 | G72: 4585000 | H72: 59.830002 | I72: 1 | J72: 1 | K72: 58.86 | L72: 60.35 | M72: 58.12 | N72: 59.83 | O72: 4585000
A73: 58 | B73: 2015-12-14 | C73: 55.790001 | D73: 58.48 | E73: 55.040001 | F73: 58.41 | G73: 3441900 | H73: 58.41 | I73: 1 | J73: 1 | K73: 55.79 | L73: 58.48 | M73: 55.04 | N73: 58.41 | O73: 3441900
A74: 59 | B74: 2015-12-11 | C74: 53.950001 | D74: 56.599998 | E74: 53.5 | F74: 55.259998 | G74: 3201500 | H74: 55.259998 | I74: 1 | J74: 1 | K74: 53.95 | L74: 56.6 | M74: 53.5 | N74: 55.26 | O74: 3201500
A75: 60 | B75: 2015-12-10 | C75: 54.32 | D75: 55.389999 | E75: 52.509998 | F75: 54.349998 | G75: 7504600 | H75: 54.349998 | I75: 1 | J75: 1 | K75: 54.32 | L75: 55.39 | M75: 52.51 | N75: 54.35 | O75: 7504600
A76: 61 | B76: 2015-12-09 | C76: 59.459999 | D76: 61.919998 | E76: 58.419998 | F76: 58.849998 | G76: 2960600 | H76: 58.849998 | I76: 1 | J76: 1 | K76: 59.46 | L76: 61.92 | M76: 58.42 | N76: 58.85 | O76: 2960600
A77: 62 | B77: 2015-12-08 | C77: 58.43 | D77: 59.25 | E77: 56.959999 | F77: 59.07 | G77: 2753100 | H77: 59.07 | I77: 1 | J77: 1 | K77: 58.43 | L77: 59.25 | M77: 56.96 | N77: 59.07 | O77: 2753100
A78: 63 | B78: 2015-12-07 | C78: 59.290001 | D78: 59.59 | E78: 58.220001 | F78: 59.32 | G78: 1850900 | H78: 59.32 | I78: 1 | J78: 1 | K78: 59.29 | L78: 59.59 | M78: 58.22 | N78: 59.32 | O78: 1850900
A79: 64 | B79: 2015-12-04 | C79: 59.060001 | D79: 60.009998 | E79: 58.490002 | F79: 59.84 | G79: 1537800 | H79: 59.84 | I79: 1 | J79: 1 | K79: 59.06 | L79: 60.01 | M79: 58.49 | N79: 59.84 | O79: 1537800
A80: 65 | B80: 2015-12-03 | C80: 60 | D80: 62.049999 | E80: 58.66 | F80: 59.459999 | G80: 2700100 | H80: 59.459999 | I80: 1 | J80: 1 | K80: =ROUND($I80*C80,2) -> 60 | L80: =ROUND($I80*D80,2) -> 62.05 | M80: =ROUND($I80*E80,2) -> 58.66 | N80: =ROUND($I80*F80,2) -> 59.46 | O80: 2700100
A81: 66 | B81: 2015-12-02 | C81: 58.060001 | D81: 60.32 | E81: 57.950001 | F81: 59.669998 | G81: 3719900 | H81: 59.669998 | I81: 1 | J81: 1 | K81: 58.06 | L81: 60.32 | M81: 57.95 | N81: 59.67 | O81: 3719900
A82: 67 | B82: 2015-12-01 | C82: 56.599998 | D82: 58.290001 | E82: 56.599998 | F82: 58.18 | G82: 1607900 | H82: 58.18 | I82: =H82/F82 -> 1 | J82: =INDEX(OFFSET($T$15,0,0,$S$13+1,1),MATCH(B82,OFFSET($Q$15,0,0,$S$13+1,1),-1)) -> 1 | K82: 56.6 | L82: 58.29 | M82: 56.6 | N82: 58.18 | O82: =G82*J82 -> 1607900
A83: 68 | B83: 2015-11-30 | C83: 56.18 | D83: 57.130001 | E83: 56.099998 | F83: 56.509998 | G83: 1445200 | H83: 56.509998 | I83: 1 | J83: 1 | K83: 56.18 | L83: 57.13 | M83: 56.1 | N83: 56.51 | O83: 1445200
A84: 69 | B84: 2015-11-27 | C84: 56.169998 | D84: 56.189999 | E84: 55.389999 | F84: 56.099998 | G84: 678800 | H84: 56.099998 | I84: 1 | J84: 1 | K84: 56.17 | L84: 56.19 | M84: 55.39 | N84: 56.1 | O84: 678800
A85: 70 | B85: 2015-11-25 | C85: 56.040001 | D85: 57.259998 | E85: 55.84 | F85: 56.400002 | G85: 1092300 | H85: 56.400002 | I85: 1 | J85: 1 | K85: 56.04 | L85: 57.26 | M85: 55.84 | N85: 56.4 | O85: 1092300
A86: 71 | B86: 2015-11-24 | C86: 54.59 | D86: 56.369999 | E86: 54.389999 | F86: 56.169998 | G86: 1230200 | H86: 56.169998 | I86: 1 | J86: 1 | K86: 54.59 | L86: 56.37 | M86: 54.39 | N86: 56.17 | O86: 1230200
A87: 72 | B87: 2015-11-23 | C87: 54.32 | D87: 55.32 | E87: 53.630001 | F87: 54.880001 | G87: 1401700 | H87: 54.880001 | I87: 1 | J87: 1 | K87: 54.32 | L87: 55.32 | M87: 53.63 | N87: 54.88 | O87: 1401700
A88: 73 | B88: 2015-11-20 | C88: 53.400002 | D88: 54.759998 | E88: 53.34 | F88: 54.439999 | G88: 1344400 | H88: 54.439999 | I88: 1 | J88: 1 | K88: 53.4 | L88: 54.76 | M88: 53.34 | N88: 54.44 | O88: 1344400
A89: 74 | B89: 2015-11-19 | C89: 53.400002 | D89: 53.57 | E89: 52.799999 | F89: 53.279999 | G89: 961400 | H89: 53.279999 | I89: 1 | J89: 1 | K89: 53.4 | L89: 53.57 | M89: 52.8 | N89: 53.28 | O89: 961400
A90: 75 | B90: 2015-11-18 | C90: 53.07 | D90: 54.130001 | E90: 52.830002 | F90: 53.939999 | G90: 1489300 | H90: 53.939999 | I90: 1 | J90: 1 | K90: 53.07 | L90: 54.13 | M90: 52.83 | N90: 53.94 | O90: 1489300
A91: 76 | B91: 2015-11-17 | C91: 54.549999 | D91: 54.700001 | E91: 52.389999 | F91: 52.75 | G91: 1821500 | H91: 52.75 | I91: 1 | J91: 1 | K91: 54.55 | L91: 54.7 | M91: 52.39 | N91: 52.75 | O91: 1821500
A92: 77 | B92: 2015-11-16 | C92: 52.779999 | D92: 54.290001 | E92: 52.43 | F92: 54.18 | G92: 1390000 | H92: 54.18 | I92: 1 | J92: 1 | K92: 52.78 | L92: 54.29 | M92: 52.43 | N92: 54.18 | O92: 1390000
A93: 78 | B93: 2015-11-13 | C93: 53.720001 | D93: 54.07 | E93: 52.16 | F93: 52.720001 | G93: 2263900 | H93: 52.720001 | I93: 1 | J93: 1 | K93: 53.72 | L93: 54.07 | M93: 52.16 | N93: 52.72 | O93: 2263900
A94: 79 | B94: 2015-11-12 | C94: 54.41 | D94: 55.400002 | E94: 53.43 | F94: 53.919998 | G94: 2147000 | H94: 53.919998 | I94: 1 | J94: 1 | K94: 54.41 | L94: 55.4 | M94: 53.43 | N94: 53.92 | O94: 2147000
A95: 80 | B95: 2015-11-11 | C95: 56.02 | D95: 56.299999 | E95: 54.07 | F95: 54.75 | G95: 2317200 | H95: 54.75 | I95: 1 | J95: 1 | K95: 56.02 | L95: 56.3 | M95: 54.07 | N95: 54.75 | O95: 2317200
A96: 81 | B96: 2015-11-10 | C96: 58.52 | D96: 58.599998 | E96: 54.630001 | F96: 55.869999 | G96: 3854200 | H96: 55.869999 | I96: 1 | J96: 1 | K96: 58.52 | L96: 58.6 | M96: 54.63 | N96: 55.87 | O96: 3854200
A97: 82 | B97: 2015-11-09 | C97: 59.41 | D97: 59.799999 | E97: 57.610001 | F97: 58.389999 | G97: 1523500 | H97: 58.389999 | I97: 1 | J97: 1 | K97: 59.41 | L97: 59.8 | M97: 57.61 | N97: 58.39 | O97: 1523500
A98: 83 | B98: 2015-11-06 | C98: 58.189999 | D98: 59.849998 | E98: 58.049999 | F98: 59.669998 | G98: 1505100 | H98: 59.669998 | I98: 1 | J98: 1 | K98: 58.19 | L98: 59.85 | M98: 58.05 | N98: 59.67 | O98: 1505100
A99: 84 | B99: 2015-11-05 | C99: 58.939999 | D99: 59.41 | E99: 57.700001 | F99: 58.330002 | G99: 1641600 | H99: 58.330002 | I99: 1 | J99: 1 | K99: 58.94 | L99: 59.41 | M99: 57.7 | N99: 58.33 | O99: 1641600
A100: 85 | B100: 2015-11-04 | C100: 58.400002 | D100: 58.880001 | E100: 57.709999 | F100: 58.66 | G100: 1728600 | H100: 58.66 | I100: 1 | J100: 1 | K100: 58.4 | L100: 58.88 | M100: 57.71 | N100: 58.66 | O100: 1728600
A101: 86 | B101: 2015-11-03 | C101: 57.439999 | D101: 59.549999 | E101: 57.279999 | F101: 58.349998 | G101: 2654600 | H101: 58.349998 | I101: 1 | J101: 1 | K101: 57.44 | L101: 59.55 | M101: 57.28 | N101: 58.35 | O101: 2654600
A102: 87 | B102: 2015-11-02 | C102: 56.650002 | D102: 57.82 | E102: 55.82 | F102: 57.779999 | G102: 2937800 | H102: 57.779999 | I102: 1 | J102: 1 | K102: 56.65 | L102: 57.82 | M102: 55.82 | N102: 57.78 | O102: 2937800
A103: 88 | B103: 2015-10-30 | C103: 56.900002 | D103: 58.43 | E103: 54.650002 | F103: 57.07 | G103: 6634100 | H103: 57.07 | I103: 1 | J103: 1 | K103: 56.9 | L103: 58.43 | M103: 54.65 | N103: 57.07 | O103: 6634100
A104: 89 | B104: 2015-10-29 | C104: 51.349998 | D104: 52.150002 | E104: 50.25 | F104: 50.990002 | G104: 3001400 | H104: 50.990002 | I104: 1 | J104: 1 | K104: 51.35 | L104: 52.15 | M104: 50.25 | N104: 50.99 | O104: 3001400
A105: 90 | B105: 2015-10-28 | C105: 49.389999 | D105: 50.93 | E105: 48.880001 | F105: 50.849998 | G105: 1772100 | H105: 50.849998 | I105: 1 | J105: 1 | K105: 49.39 | L105: 50.93 | M105: 48.88 | N105: 50.85 | O105: 1772100
A106: 91 | B106: 2015-10-27 | C106: 50.189999 | D106: 50.360001 | E106: 48.580002 | F106: 49.16 | G106: 1284700 | H106: 49.16 | I106: 1 | J106: 1 | K106: 50.19 | L106: 50.36 | M106: 48.58 | N106: 49.16 | O106: 1284700
A107: 92 | B107: 2015-10-26 | C107: 50.970001 | D107: 51.689999 | E107: 49.810001 | F107: 50.57 | G107: 1251000 | H107: 50.57 | I107: 1 | J107: 1 | K107: 50.97 | L107: 51.69 | M107: 49.81 | N107: 50.57 | O107: 1251000
A108: 93 | B108: 2015-10-23 | C108: 50.310001 | D108: 50.889999 | E108: 49.220001 | F108: 50.43 | G108: 1376100 | H108: 50.43 | I108: 1 | J108: 1 | K108: 50.31 | L108: 50.89 | M108: 49.22 | N108: 50.43 | O108: 1376100
A109: 94 | B109: 2015-10-22 | C109: 50.549999 | D109: 50.950001 | E109: 49.099998 | F109: 49.889999 | G109: 1718000 | H109: 49.889999 | I109: 1 | J109: 1 | K109: 50.55 | L109: 50.95 | M109: 49.1 | N109: 49.89 | O109: 1718000
A110: 95 | B110: 2015-10-21 | C110: 51.869999 | D110: 51.900002 | E110: 49.84 | F110: 49.939999 | G110: 1475600 | H110: 49.939999 | I110: 1 | J110: 1 | K110: 51.87 | L110: 51.9 | M110: 49.84 | N110: 49.94 | O110: 1475600
A111: 96 | B111: 2015-10-20 | C111: 51.119999 | D111: 52.490002 | E111: 50.810001 | F111: 51.77 | G111: 951500 | H111: 51.77 | I111: 1 | J111: 1 | K111: 51.12 | L111: 52.49 | M111: 50.81 | N111: 51.77 | O111: 951500
A112: 97 | B112: 2015-10-19 | C112: 51.700001 | D112: 52.290001 | E112: 50.880001 | F112: 51.189999 | G112: 980600 | H112: 51.189999 | I112: 1 | J112: 1 | K112: 51.7 | L112: 52.29 | M112: 50.88 | N112: 51.19 | O112: 980600
A113: 98 | B113: 2015-10-16 | C113: 52.549999 | D113: 52.630001 | E113: 51.080002 | F113: 52.049999 | G113: 1154800 | H113: 52.049999 | I113: 1 | J113: 1 | K113: 52.55 | L113: 52.63 | M113: 51.08 | N113: 52.05 | O113: 1154800
A114: 99 | B114: 2015-10-15 | C114: 52.259998 | D114: 52.75 | E114: 51.560001 | F114: 52.48 | G114: 1533800 | H114: 52.48 | I114: 1 | J114: 1 | K114: 52.26 | L114: 52.75 | M114: 51.56 | N114: 52.48 | O114: 1533800
A115: 100 | B115: 2015-10-14 | C115: 50.810001 | D115: 52.450001 | E115: 50.5 | F115: 51.950001 | G115: 1383100 | H115: 51.950001 | I115: 1 | J115: 1 | K115: 50.81 | L115: 52.45 | M115: 50.5 | N115: 51.95 | O115: 1383100
A116: 101 | B116: 2015-10-13 | C116: 50.459999 | D116: 51.799999 | E116: 50 | F116: 50.580002 | G116: 1175400 | H116: 50.580002 | I116: 1 | J116: 1 | K116: 50.46 | L116: 51.8 | M116: 50 | N116: 50.58 | O116: 1175400
A117: 102 | B117: 2015-10-12 | C117: 51.209999 | D117: 51.310001 | E117: 50.110001 | F117: 50.830002 | G117: 1270600 | H117: 50.830002 | I117: 1 | J117: 1 | K117: 51.21 | L117: 51.31 | M117: 50.11 | N117: 50.83 | O117: 1270600
A118: 103 | B118: 2015-10-09 | C118: 51.119999 | D118: 51.599998 | E118: 50.439999 | F118: 51.200001 | G118: 1399400 | H118: 51.200001 | I118: 1 | J118: 1 | K118: 51.12 | L118: 51.6 | M118: 50.44 | N118: 51.2 | O118: 1399400
A119: 104 | B119: 2015-10-08 | C119: 49.849998 | D119: 51.450001 | E119: 49.450001 | F119: 51.119999 | G119: 1604100 | H119: 51.119999 | I119: 1 | J119: 1 | K119: 49.85 | L119: 51.45 | M119: 49.45 | N119: 51.12 | O119: 1604100
A120: 105 | B120: 2015-10-07 | C120: 49.860001 | D120: 50.830002 | E120: 48.220001 | F120: 49.91 | G120: 2566600 | H120: 49.91 | I120: 1 | J120: 1 | K120: 49.86 | L120: 50.83 | M120: 48.22 | N120: 49.91 | O120: 2566600
A121: 106 | B121: 2015-10-06 | C121: 46.77 | D121: 49.16 | E121: 46.68 | F121: 48.880001 | G121: 2697500 | H121: 48.880001 | I121: 1 | J121: 1 | K121: 46.77 | L121: 49.16 | M121: 46.68 | N121: 48.88 | O121: 2697500
A122: 107 | B122: 2015-10-05 | C122: 45.889999 | D122: 47.23 | E122: 45.669998 | F122: 46.66 | G122: 1604100 | H122: 46.66 | I122: 1 | J122: 1 | K122: 45.89 | L122: 47.23 | M122: 45.67 | N122: 46.66 | O122: 1604100
A123: 108 | B123: 2015-10-02 | C123: 42.240002 | D123: 45.470001 | E123: 41.900002 | F123: 45.459999 | G123: 1747300 | H123: 45.459999 | I123: 1 | J123: 1 | K123: 42.24 | L123: 45.47 | M123: 41.9 | N123: 45.46 | O123: 1747300
A124: 109 | B124: 2015-10-01 | C124: 42.560001 | D124: 43.349998 | E124: 41.970001 | F124: 42.68 | G124: 1469500 | H124: 42.68 | I124: 1 | J124: 1 | K124: 42.56 | L124: 43.35 | M124: 41.97 | N124: 42.68 | O124: 1469500
A125: 110 | B125: 2015-09-30 | C125: 41.490002 | D125: 42.849998 | E125: 41.48 | F125: 42.75 | G125: 1496200 | H125: 42.75 | I125: 1 | J125: 1 | K125: 41.49 | L125: 42.85 | M125: 41.48 | N125: 42.75 | O125: 1496200
A126: 111 | B126: 2015-09-29 | C126: 41.009998 | D126: 42.330002 | E126: 40.720001 | F126: 41.02 | G126: 1765500 | H126: 41.02 | I126: 1 | J126: 1 | K126: 41.01 | L126: 42.33 | M126: 40.72 | N126: 41.02 | O126: 1765500
A127: 112 | B127: 2015-09-28 | C127: 43 | D127: 43.200001 | E127: 40.509998 | F127: 40.810001 | G127: 1870700 | H127: 40.810001 | I127: 1 | J127: 1 | K127: 43 | L127: 43.2 | M127: 40.51 | N127: 40.81 | O127: 1870700
A128: 113 | B128: 2015-09-25 | C128: 44.209999 | D128: 44.830002 | E128: 42.939999 | F128: 43.290001 | G128: 1206100 | H128: 43.290001 | I128: 1 | J128: 1 | K128: 44.21 | L128: 44.83 | M128: 42.94 | N128: 43.29 | O128: 1206100
A129: 114 | B129: 2015-09-24 | C129: 43.099998 | D129: 43.900002 | E129: 42.150002 | F129: 43.639999 | G129: 1695100 | H129: 43.639999 | I129: 1 | J129: 1 | K129: 43.1 | L129: 43.9 | M129: 42.15 | N129: 43.64 | O129: 1695100
A130: 115 | B130: 2015-09-23 | C130: 44.619999 | D130: 44.869999 | E130: 43.310001 | F130: 43.369999 | G130: 1632000 | H130: 43.369999 | I130: 1 | J130: 1 | K130: 44.62 | L130: 44.87 | M130: 43.31 | N130: 43.37 | O130: 1632000
A131: 116 | B131: 2015-09-22 | C131: 44.279999 | D131: 44.759998 | E131: 43.900002 | F131: 44.419998 | G131: 1599700 | H131: 44.419998 | I131: 1 | J131: 1 | K131: 44.28 | L131: 44.76 | M131: 43.9 | N131: 44.42 | O131: 1599700
A132: 117 | B132: 2015-09-21 | C132: 45.57 | D132: 45.919998 | E132: 44.799999 | F132: 45.139999 | G132: 1247000 | H132: 45.139999 | I132: 1 | J132: 1 | K132: 45.57 | L132: 45.92 | M132: 44.8 | N132: 45.14 | O132: 1247000
A133: 118 | B133: 2015-09-18 | C133: 46.189999 | D133: 46.419998 | E133: 45.080002 | F133: 45.330002 | G133: 3862900 | H133: 45.330002 | I133: 1 | J133: 1 | K133: 46.19 | L133: 46.42 | M133: 45.08 | N133: 45.33 | O133: 3862900
A134: 119 | B134: 2015-09-17 | C134: 47.950001 | D134: 48.049999 | E134: 46.75 | F134: 46.919998 | G134: 1391900 | H134: 46.919998 | I134: 1 | J134: 1 | K134: 47.95 | L134: 48.05 | M134: 46.75 | N134: 46.92 | O134: 1391900
A135: 120 | B135: 2015-09-16 | C135: 46.650002 | D135: 48.41 | E135: 46.610001 | F135: 47.759998 | G135: 1792100 | H135: 47.759998 | I135: 1 | J135: 1 | K135: 46.65 | L135: 48.41 | M135: 46.61 | N135: 47.76 | O135: 1792100
A136: 121 | B136: 2015-09-15 | C136: 46.200001 | D136: 46.790001 | E136: 45.599998 | F136: 46.580002 | G136: 1649900 | H136: 46.580002 | I136: 1 | J136: 1 | K136: 46.2 | L136: 46.79 | M136: 45.6 | N136: 46.58 | O136: 1649900
A137: 122 | B137: 2015-09-14 | C137: 48.369999 | D137: 48.459999 | E137: 45.849998 | F137: 46.200001 | G137: 2583100 | H137: 46.200001 | I137: 1 | J137: 1 | K137: 48.37 | L137: 48.46 | M137: 45.85 | N137: 46.2 | O137: 2583100
A138: 123 | B138: 2015-09-11 | C138: 47.82 | D138: 48.860001 | E138: 47.709999 | F138: 48.790001 | G138: 1339300 | H138: 48.790001 | I138: 1 | J138: 1 | K138: 47.82 | L138: 48.86 | M138: 47.71 | N138: 48.79 | O138: 1339300
A139: 124 | B139: 2015-09-10 | C139: 48.360001 | D139: 49.32 | E139: 47.900002 | F139: 48.220001 | G139: 1581200 | H139: 48.220001 | I139: 1 | J139: 1 | K139: 48.36 | L139: 49.32 | M139: 47.9 | N139: 48.22 | O139: 1581200
A140: 125 | B140: 2015-09-09 | C140: 49.759998 | D140: 50.459999 | E140: 47.599998 | F140: 47.73 | G140: 1683200 | H140: 47.73 | I140: 1 | J140: 1 | K140: 49.76 | L140: 50.46 | M140: 47.6 | N140: 47.73 | O140: 1683200
A141: 126 | B141: 2015-09-08 | C141: 47.720001 | D141: 49.139999 | E141: 47.5 | F141: 49.110001 | G141: 1412600 | H141: 49.110001 | I141: 1 | J141: 1 | K141: 47.72 | L141: 49.14 | M141: 47.5 | N141: 49.11 | O141: 1412600
A142: 127 | B142: 2015-09-04 | C142: 47.48 | D142: 48 | E142: 46.610001 | F142: 46.939999 | G142: 1091000 | H142: 46.939999 | I142: 1 | J142: 1 | K142: 47.48 | L142: 48 | M142: 46.61 | N142: 46.94 | O142: 1091000
A143: 128 | B143: 2015-09-03 | C143: 48.009998 | D143: 49.380001 | E143: 47.900002 | F143: 48.290001 | G143: 1329100 | H143: 48.290001 | I143: 1 | J143: 1 | K143: 48.01 | L143: 49.38 | M143: 47.9 | N143: 48.29 | O143: 1329100
A144: 129 | B144: 2015-09-02 | C144: 48 | D144: 48.41 | E144: 46.849998 | F144: 47.959999 | G144: 1596300 | H144: 47.959999 | I144: 1 | J144: 1 | K144: =ROUND($I144*C144,2) -> 48 | L144: =ROUND($I144*D144,2) -> 48.41 | M144: =ROUND($I144*E144,2) -> 46.85 | N144: =ROUND($I144*F144,2) -> 47.96 | O144: 1596300
A145: 130 | B145: 2015-09-01 | C145: 46.93 | D145: 48.790001 | E145: 46.389999 | F145: 47.259998 | G145: 1915100 | H145: 47.259998 | I145: 1 | J145: 1 | K145: 46.93 | L145: 48.79 | M145: 46.39 | N145: 47.26 | O145: 1915100
A146: 131 | B146: 2015-08-31 | C146: 47.5 | D146: 48.799999 | E146: 46.82 | F146: 47.84 | G146: 1218700 | H146: 47.84 | I146: =H146/F146 -> 1 | J146: =INDEX(OFFSET($T$15,0,0,$S$13+1,1),MATCH(B146,OFFSET($Q$15,0,0,$S$13+1,1),-1)) -> 1 | K146: 47.5 | L146: 48.8 | M146: 46.82 | N146: 47.84 | O146: =G146*J146 -> 1218700
A147: 132 | B147: 2015-08-28 | C147: 47.349998 | D147: 49.220001 | E147: 47.060001 | F147: 47.799999 | G147: 1910900 | H147: 47.799999 | I147: 1 | J147: 1 | K147: 47.35 | L147: 49.22 | M147: 47.06 | N147: 47.8 | O147: 1910900
A148: 133 | B148: 2015-08-27 | C148: 47.470001 | D148: 48.049999 | E148: 46.400002 | F148: 47.84 | G148: 2079600 | H148: 47.84 | I148: 1 | J148: 1 | K148: 47.47 | L148: 48.05 | M148: 46.4 | N148: 47.84 | O148: 2079600
A149: 134 | B149: 2015-08-26 | C149: 45.709999 | D149: 46.23 | E149: 44.040001 | F149: 46.09 | G149: 1990100 | H149: 46.09 | I149: 1 | J149: 1 | K149: 45.71 | L149: 46.23 | M149: 44.04 | N149: 46.09 | O149: 1990100
A150: 135 | B150: 2015-08-25 | C150: 45.990002 | D150: 47.369999 | E150: 44.310001 | F150: 44.380001 | G150: 2834100 | H150: 44.380001 | I150: 1 | J150: 1 | K150: 45.99 | L150: 47.37 | M150: 44.31 | N150: 44.38 | O150: 2834100
A151: 136 | B151: 2015-08-24 | C151: 40.799999 | D151: 46.299999 | E151: 40.25 | F151: 43.610001 | G151: 3818700 | H151: 43.610001 | I151: 1 | J151: 1 | K151: 40.8 | L151: 46.3 | M151: 40.25 | N151: 43.61 | O151: 3818700
A152: 137 | B152: 2015-08-21 | C152: 47.290001 | D152: 48.049999 | E152: 45.259998 | F152: 45.27 | G152: 3651700 | H152: 45.27 | I152: 1 | J152: 1 | K152: 47.29 | L152: 48.05 | M152: 45.26 | N152: 45.27 | O152: 3651700
A153: 138 | B153: 2015-08-20 | C153: 49.369999 | D153: 49.599998 | E153: 47.849998 | F153: 47.91 | G153: 2059200 | H153: 47.91 | I153: 1 | J153: 1 | K153: 49.37 | L153: 49.6 | M153: 47.85 | N153: 47.91 | O153: 2059200
A154: 139 | B154: 2015-08-19 | C154: 51.07 | D154: 51.279999 | E154: 48.849998 | F154: 49.939999 | G154: 3084100 | H154: 49.939999 | I154: 1 | J154: 1 | K154: 51.07 | L154: 51.28 | M154: 48.85 | N154: 49.94 | O154: 3084100
A155: 140 | B155: 2015-08-18 | C155: 51.669998 | D155: 52.299999 | E155: 50.93 | F155: 51.630001 | G155: 1611700 | H155: 51.630001 | I155: 1 | J155: 1 | K155: 51.67 | L155: 52.3 | M155: 50.93 | N155: 51.63 | O155: 1611700
A156: 141 | B156: 2015-08-17 | C156: 51.09 | D156: 51.939999 | E156: 50.650002 | F156: 51.740002 | G156: 1346500 | H156: 51.740002 | I156: 1 | J156: 1 | K156: 51.09 | L156: 51.94 | M156: 50.65 | N156: 51.74 | O156: 1346500
A157: 142 | B157: 2015-08-14 | C157: 51.189999 | D157: 52.299999 | E157: 51.139999 | F157: 51.509998 | G157: 1139900 | H157: 51.509998 | I157: 1 | J157: 1 | K157: 51.19 | L157: 52.3 | M157: 51.14 | N157: 51.51 | O157: 1139900
A158: 143 | B158: 2015-08-13 | C158: 51.619999 | D158: 52.5 | E158: 51.009998 | F158: 51.110001 | G158: 1469800 | H158: 51.110001 | I158: 1 | J158: 1 | K158: 51.62 | L158: 52.5 | M158: 51.01 | N158: 51.11 | O158: 1469800
A159: 144 | B159: 2015-08-12 | C159: 50.77 | D159: 52.189999 | E159: 49.73 | F159: 51.880001 | G159: 2695100 | H159: 51.880001 | I159: 1 | J159: 1 | K159: 50.77 | L159: 52.19 | M159: 49.73 | N159: 51.88 | O159: 2695100
A160: 145 | B160: 2015-08-11 | C160: 52.77 | D160: 53.200001 | E160: 51.310001 | F160: 51.439999 | G160: 2516800 | H160: 51.439999 | I160: 1 | J160: 1 | K160: 52.77 | L160: 53.2 | M160: 51.31 | N160: 51.44 | O160: 2516800
A161: 146 | B161: 2015-08-10 | C161: 52.5 | D161: 53.630001 | E161: 52.450001 | F161: 53.48 | G161: 2666400 | H161: 53.48 | I161: 1 | J161: 1 | K161: 52.5 | L161: 53.63 | M161: 52.45 | N161: 53.48 | O161: 2666400
A162: 147 | B162: 2015-08-07 | C162: 51.310001 | D162: 52.700001 | E162: 50.799999 | F162: 52.080002 | G162: 2783500 | H162: 52.080002 | I162: 1 | J162: 1 | K162: 51.31 | L162: 52.7 | M162: 50.8 | N162: 52.08 | O162: 2783500
A163: 148 | B163: 2015-08-06 | C163: 52.450001 | D163: 53.48 | E163: 50.099998 | F163: 51.200001 | G163: 4630200 | H163: 51.200001 | I163: 1 | J163: 1 | K163: 52.45 | L163: 53.48 | M163: 50.1 | N163: 51.2 | O163: 4630200
A164: 149 | B164: 2015-08-05 | C164: 50.119999 | D164: 53.09 | E164: 49.009998 | F164: 51.919998 | G164: 11124100 | H164: 51.919998 | I164: 1 | J164: 1 | K164: 50.12 | L164: 53.09 | M164: 49.01 | N164: 51.92 | O164: 11124100
A165: 150 | B165: 2015-08-04 | C165: 43.700001 | D165: 44.790001 | E165: 43.419998 | F165: 44.5 | G165: 3645800 | H165: 44.5 | I165: 1 | J165: 1 | K165: 43.7 | L165: 44.79 | M165: 43.42 | N165: 44.5 | O165: 3645800
A166: 151 | B166: 2015-08-03 | C166: 44.700001 | D166: 44.799999 | E166: 43.279999 | F166: 43.689999 | G166: 1939000 | H166: 43.689999 | I166: 1 | J166: 1 | K166: 44.7 | L166: 44.8 | M166: 43.28 | N166: 43.69 | O166: 1939000
A167: 152 | B167: 2015-07-31 | C167: 45.310001 | D167: 45.400002 | E167: 44.259998 | F167: 44.299999 | G167: 1529000 | H167: 44.299999 | I167: 1 | J167: 1 | K167: 45.31 | L167: 45.4 | M167: 44.26 | N167: 44.3 | O167: 1529000
A168: 153 | B168: 2015-07-30 | C168: 45.889999 | D168: 45.93 | E168: 44.580002 | F168: 45.310001 | G168: 1597100 | H168: 45.310001 | I168: 1 | J168: 1 | K168: 45.89 | L168: 45.93 | M168: 44.58 | N168: 45.31 | O168: 1597100
A169: 154 | B169: 2015-07-29 | C169: 43.509998 | D169: 45.959999 | E169: 43.130001 | F169: 45.540001 | G169: 2765900 | H169: 45.540001 | I169: 1 | J169: 1 | K169: 43.51 | L169: 45.96 | M169: 43.13 | N169: 45.54 | O169: 2765900
A170: 155 | B170: 2015-07-28 | C170: 42.5 | D170: 43.66 | E170: 41.66 | F170: 43.380001 | G170: 1719800 | H170: 43.380001 | I170: 1 | J170: 1 | K170: 42.5 | L170: 43.66 | M170: 41.66 | N170: 43.38 | O170: 1719800
A171: 156 | B171: 2015-07-27 | C171: 42.43 | D171: 42.619999 | E171: 41.560001 | F171: 42.27 | G171: 1888900 | H171: 42.27 | I171: 1 | J171: 1 | K171: 42.43 | L171: 42.62 | M171: 41.56 | N171: 42.27 | O171: 1888900
A172: 157 | B172: 2015-07-24 | C172: 42.919998 | D172: 43.25 | E172: 42.25 | F172: 42.970001 | G172: 1818400 | H172: 42.970001 | I172: 1 | J172: 1 | K172: 42.92 | L172: 43.25 | M172: 42.25 | N172: 42.97 | O172: 1818400
A173: 158 | B173: 2015-07-23 | C173: 42.57 | D173: 43.639999 | E173: 42.57 | F173: 42.740002 | G173: 1767800 | H173: 42.740002 | I173: 1 | J173: 1 | K173: 42.57 | L173: 43.64 | M173: 42.57 | N173: 42.74 | O173: 1767800
A174: 159 | B174: 2015-07-22 | C174: 43.099998 | D174: 43.25 | E174: 42.25 | F174: 42.5 | G174: 1742200 | H174: 42.5 | I174: 1 | J174: 1 | K174: 43.1 | L174: 43.25 | M174: 42.25 | N174: 42.5 | O174: 1742200
A175: 160 | B175: 2015-07-21 | C175: 43.110001 | D175: 43.98 | E175: 42.860001 | F175: 43.48 | G175: 1452900 | H175: 43.48 | I175: 1 | J175: 1 | K175: 43.11 | L175: 43.98 | M175: 42.86 | N175: 43.48 | O175: 1452900
A176: 161 | B176: 2015-07-20 | C176: 44.490002 | D176: 44.5 | E176: 43.23 | F176: 43.279999 | G176: 1841600 | H176: 43.279999 | I176: 1 | J176: 1 | K176: 44.49 | L176: 44.5 | M176: 43.23 | N176: 43.28 | O176: 1841600
A177: 162 | B177: 2015-07-17 | C177: 44.619999 | D177: 44.700001 | E177: 43.75 | F177: 43.950001 | G177: 1418100 | H177: 43.950001 | I177: 1 | J177: 1 | K177: 44.62 | L177: 44.7 | M177: 43.75 | N177: 43.95 | O177: 1418100
A178: 163 | B178: 2015-07-16 | C178: 44.759998 | D178: 45.209999 | E178: 44.110001 | F178: 44.759998 | G178: 1244100 | H178: 44.759998 | I178: 1 | J178: 1 | K178: 44.76 | L178: 45.21 | M178: 44.11 | N178: 44.76 | O178: 1244100
A179: 164 | B179: 2015-07-15 | C179: 45.720001 | D179: 45.939999 | E179: 44.110001 | F179: 44.490002 | G179: 2210900 | H179: 44.490002 | I179: 1 | J179: 1 | K179: 45.72 | L179: 45.94 | M179: 44.11 | N179: 44.49 | O179: 2210900
A180: 165 | B180: 2015-07-14 | C180: 46.439999 | D180: 47.009998 | E180: 45.57 | F180: 45.810001 | G180: 2940700 | H180: 45.810001 | I180: 1 | J180: 1 | K180: 46.44 | L180: 47.01 | M180: 45.57 | N180: 45.81 | O180: 2940700
A181: 166 | B181: 2015-07-13 | C181: 44.549999 | D181: 46.060001 | E181: 44.439999 | F181: 46.009998 | G181: 2454200 | H181: 46.009998 | I181: 1 | J181: 1 | K181: 44.55 | L181: 46.06 | M181: 44.44 | N181: 46.01 | O181: 2454200
A182: 167 | B182: 2015-07-10 | C182: 44.310001 | D182: 44.75 | E182: 43.619999 | F182: 44.029999 | G182: 1349000 | H182: 44.029999 | I182: 1 | J182: 1 | K182: 44.31 | L182: 44.75 | M182: 43.62 | N182: 44.03 | O182: 1349000
A183: 168 | B183: 2015-07-09 | C183: 44.5 | D183: 45.220001 | E183: 43.57 | F183: 43.650002 | G183: 1883000 | H183: 43.650002 | I183: 1 | J183: 1 | K183: 44.5 | L183: 45.22 | M183: 43.57 | N183: 43.65 | O183: 1883000
A184: 169 | B184: 2015-07-08 | C184: 44.68 | D184: 45 | E184: 43.16 | F184: 43.27 | G184: 2159200 | H184: 43.27 | I184: 1 | J184: 1 | K184: 44.68 | L184: 45 | M184: 43.16 | N184: 43.27 | O184: 2159200
A185: 170 | B185: 2015-07-07 | C185: 44 | D185: 45.139999 | E185: 42.709999 | F185: 45.119999 | G185: 3769500 | H185: 45.119999 | I185: 1 | J185: 1 | K185: 44 | L185: 45.14 | M185: 42.71 | N185: 45.12 | O185: 3769500
A186: 171 | B186: 2015-07-06 | C186: 44.880001 | D186: 44.919998 | E186: 43.950001 | F186: 44.189999 | G186: 2035000 | H186: 44.189999 | I186: 1 | J186: 1 | K186: 44.88 | L186: 44.92 | M186: 43.95 | N186: 44.19 | O186: 2035000
A187: 172 | B187: 2015-07-02 | C187: 46.029999 | D187: 46.279999 | E187: 45.139999 | F187: 45.169998 | G187: 2389300 | H187: 45.169998 | I187: 1 | J187: 1 | K187: 46.03 | L187: 46.28 | M187: 45.14 | N187: 45.17 | O187: 2389300
A188: 173 | B188: 2015-07-01 | C188: 47.32 | D188: 47.75 | E188: 45.650002 | F188: 46.040001 | G188: 2375900 | H188: 46.040001 | I188: 1 | J188: 1 | K188: 47.32 | L188: 47.75 | M188: 45.65 | N188: 46.04 | O188: 2375900
A189: 174 | B189: 2015-06-30 | C189: 48.419998 | D189: 48.439999 | E189: 46.84 | F189: 46.98 | G189: 2494400 | H189: 46.98 | I189: 1 | J189: 1 | K189: 48.42 | L189: 48.44 | M189: 46.84 | N189: 46.98 | O189: 2494400
A190: 175 | B190: 2015-06-29 | C190: 48.950001 | D190: 49.169998 | E190: 47.779999 | F190: 47.84 | G190: 2853000 | H190: 47.84 | I190: 1 | J190: 1 | K190: 48.95 | L190: 49.17 | M190: 47.78 | N190: 47.84 | O190: 2853000
A191: 176 | B191: 2015-06-26 | C191: 50.950001 | D191: 51.099998 | E191: 49.650002 | F191: 49.950001 | G191: 1746100 | H191: 49.950001 | I191: 1 | J191: 1 | K191: 50.95 | L191: 51.1 | M191: 49.65 | N191: 49.95 | O191: 1746100
A192: 177 | B192: 2015-06-25 | C192: 51.630001 | D192: 51.869999 | E192: 50.900002 | F192: 50.970001 | G192: 1493700 | H192: 50.970001 | I192: 1 | J192: 1 | K192: 51.63 | L192: 51.87 | M192: 50.9 | N192: 50.97 | O192: 1493700
A193: 178 | B193: 2015-06-24 | C193: 51.25 | D193: 51.939999 | E193: 51.099998 | F193: 51.360001 | G193: 1772200 | H193: 51.360001 | I193: 1 | J193: 1 | K193: 51.25 | L193: 51.94 | M193: 51.1 | N193: 51.36 | O193: 1772200
A194: 179 | B194: 2015-06-23 | C194: 51.290001 | D194: 52.099998 | E194: 50.880001 | F194: 51.490002 | G194: 1556600 | H194: 51.490002 | I194: 1 | J194: 1 | K194: 51.29 | L194: 52.1 | M194: 50.88 | N194: 51.49 | O194: 1556600
A195: 180 | B195: 2015-06-22 | C195: 51.16 | D195: 51.610001 | E195: 50.810001 | F195: 51.110001 | G195: 1153100 | H195: 51.110001 | I195: 1 | J195: 1 | K195: 51.16 | L195: 51.61 | M195: 50.81 | N195: 51.11 | O195: 1153100
A196: 181 | B196: 2015-06-19 | C196: 52.040001 | D196: 52.970001 | E196: 50.639999 | F196: 51.029999 | G196: 6904900 | H196: 51.029999 | I196: 1 | J196: 1 | K196: 52.04 | L196: 52.97 | M196: 50.64 | N196: 51.03 | O196: 6904900
A197: 182 | B197: 2015-06-18 | C197: 52.130001 | D197: 52.48 | E197: 51.700001 | F197: 51.98 | G197: 1753500 | H197: 51.98 | I197: 1 | J197: 1 | K197: 52.13 | L197: 52.48 | M197: 51.7 | N197: 51.98 | O197: 1753500
A198: 183 | B198: 2015-06-17 | C198: 52.459999 | D198: 53.130001 | E198: 51.220001 | F198: 51.759998 | G198: 2199400 | H198: 51.759998 | I198: 1 | J198: 1 | K198: 52.46 | L198: 53.13 | M198: 51.22 | N198: 51.76 | O198: 2199400
A199: 184 | B199: 2015-06-16 | C199: 53.369999 | D199: 53.669998 | E199: 51.970001 | F199: 52.150002 | G199: 2418500 | H199: 52.150002 | I199: 1 | J199: 1 | K199: 53.37 | L199: 53.67 | M199: 51.97 | N199: 52.15 | O199: 2418500
A200: 185 | B200: 2015-06-15 | C200: 50.080002 | D200: 53.669998 | E200: 50.029999 | F200: 53.48 | G200: 3979900 | H200: 53.48 | I200: 1 | J200: 1 | K200: 50.08 | L200: 53.67 | M200: 50.03 | N200: 53.48 | O200: 3979900
... 2155 more rows

Sheet CalculationsAndCharts
A1: Zero In On Macd | R1: Chart Clutter Controls
A2: =InputPriceData!A1 -> First Solar, Inc. (FSLR) -NMS (Daily) | R2: Price Chart
S3: FALSE
A4: User Charting Controls | S4: FALSE
A5: Data Control
A6: =InputPriceData!$B$10 -> 2340 | B6: Available Input Data Rows | E6: Earliest: | F6: =OFFSET(InputPriceData!B15,CalculationsAndCharts!A6,0,1,1) -> 2006-11-17 | S6: FALSE
B7: Use Close Adjusted: | C7: TRUE | E7: Latest: | F7: =OFFSET(InputPriceData!B15,1,0,1,1) -> 2016-03-08
A8: =MIN(A6-A11,LastUsedRowInColumn(A:A)-32) -> 2189 | B8: Logically Available for Calc / Plot | E8: $ Change: | F8: =InputPriceData!I4 -> -2.31 | R8: MACD
S9: TRUE
A10: Price Chart Windowing Controls | F10: Y-axis Range | S10: TRUE
A11: 151 | B11: Input Data Offset (Pan) | E11: Max High+ | F11: =CEILING(MAX(MAX(OFFSET($E$33,0,0,$A$12,1)))+2*F14,0.1) -> 77.3
A12: 229 | B12: Data Points to Plot (Zoom) | E12: Min Low- | F12: =FLOOR(MIN(MIN(OFFSET($F$33,0,0,$A$12,1)))-2*F14,0.1) -> 35.6
B13: First: | C13: =OFFSET(B32,A12,0,1,1) -> 2014-09-04 | E13: White space %: | F13: 0.05 | R13: Aroon
B14: ="Last: " & OFFSET(InputPriceData!P15,1+A11,0,1,1) -> Last: | C14: =B33 -> 2015-07-31 | E14: Allowance: | F14: =FLOOR((CEILING(MAX(MAX(OFFSET($E$33,0,0,$A$12,1))),1)-FLOOR(MIN(MIN(OFFSET($F$33,0,0,$A$12,1))),1))*F13,0.01) -> 1.75 | R14: Alert at first touch of 100
A15: User Controls | C15: Alpha | D15: 1-Alpha | R15: after a crossover.
A16: 12 | B16: MACD Short | C16: =2 / ($A16+1) -> 0.1538461538 | D16: =1-C16 -> 0.8461538462 | S16: FALSE
A17: 26 | B17: MACD Long | C17: =2 / ($A17+1) -> 0.07407407407 | D17: =1-C17 -> 0.9259259259 | S17: FALSE
A18: 9 | B18: MACD Signal | C18: =2 / ($A18+1) -> 0.2 | D18: =1-C18 -> 0.8
A19: 55 | B19: EMA | C19: =2 / ($A19+1) -> 0.03571428571 | D19: =1-C19 -> 0.9642857143
A20: 34 | B20: WMA
A21: 25 | B21: Aroon
A23: Help! I would like to plot data
A24: From | B24: 2014-09-02 | C24: =OFFSET(InputPriceData!$A$15,MATCH(B24,OFFSET(InputPriceData!B15,1,0,InputPriceData!$B$10,1),0),0,1,1)-C25 -> 232 | E24: 1
A25: To | B25: 2015-08-03 | C25: =OFFSET(InputPriceData!$A$15,MATCH(B25,OFFSET(InputPriceData!$B$15,1,0,InputPriceData!$B$10,1),0),0,1,1)-1 -> 150 | E25: =$A$12-$E$24+1 -> 229
W26: Work Areas for Conditional Plot Items
H28: @ Cursor => | I28: =OFFSET(A32,$E$25,0,1,1)&"(RR)" -> 229(RR) | J28: =OFFSET($B$32,E25,0,1,1) -> 2014-09-04 | K28: =TEXT(OFFSET(D32,$E$25,0,1,1),"#,##0.00")&"(o)" -> 71.63(o) | L28: =TEXT(OFFSET(E32,$E$25,0,1,1),"#,##0.00")&"(h)" -> 73.50(h) | M28: =TEXT(OFFSET(F32,$E$25,0,1,1),"#,##0.00")&"(l)" -> 71.25(l) | N28: =TEXT(OFFSET(G32,$E$25,0,1,1),"#,##0.00")&"(c)" -> 71.55(c) | AL28: Aroon Signals
Q29: <== Cursor | Y29: MACD Signal Cross work areas | AH29: MACD Zero Cross | AJ29: Cautionary Points | AL29: Work area
AF30: Signal Cross price markers | AH30: Work area | AJ30: Workarea | AL30: Signals | AT30: Chart cursors
A31: Rel Row | H31: ="MACD(" & A16 & ", " & A17 &IF($S$9,", " & $A$18,"") & ")" -> MACD(12, 26, 9) | J31: Calculations | P31: Price Chart Averages | R31: =($A$20+1)*$A$20/2 -> 595 | S31: ="Aroon(" & $A$21 & ")" -> Aroon(25) | T31: Calculations | W31: Moving Averages | Y31: MACD | Z31: MACD X Over Sig | AA31: MACD X Under Sig | AB31: MACD up line | AD31: MACD dn line | AH31: Background Colors | AJ31: Diamond Locations | AL31: Up | AN31: Down | AP31: Aroon Chart | AR31: Price Chart | AT31: Work area
B32: Date | C32: Volume | D32: Open | E32: High | F32: Low | G32: Close | H32: ="Short(" & $A$16 & ")" -> Short(12) | I32: ="Long(" & $A$17 & ")" -> Long(26) | J32: MACD | K32: MACD Up | L32: MACD Dn | M32: ="Signal("&$A$18&")" -> Signal(9) | N32: PPO | O32: ="PPO Sig("&$A$18&")" -> PPO Sig(9) | P32: ="EMA("& $A$19 &")" -> EMA(55) | Q32: ="WMA("& $A$20 & ")" -> WMA(34) | R32: WMA Weights | S32: hi High Bars | T32: ="Aroon Up(" & $A$21 & ")" -> Aroon Up(25) | U32: lo Low bars | V32: ="Aroon Dn(" & $A$21 & ")" -> Aroon Dn(25) | W32: ="EMA("& $A$19 &")" -> EMA(55) | X32: ="WMA("& $A$20 & ")" -> WMA(34) | Y32: ="Signal("&$A$18&")" -> Signal(9) | AB32: green lo | AC32: green hi | AD32: red lo | AE32: red hi | AF32: MXup | AG32: MXdn | AH32: blue | AI32: red | AJ32: D Above | AK32: D Below | AL32: X-over Up | AM32: Up Signal | AN32: X-over Dn | AO32: Dn Signal | AP32: Up X | AQ32: Dn X | AR32: Up X | AS32: Dn X | AT32: MACD Cursor | AW32: Aroon Cursor | AY32: Price Chart Cursor
A33: 1 | B33: =OFFSET(InputPriceData!B$15,CalculationsAndCharts!$A33+$A$11,0,1,1) -> 2015-07-31 | C33: =OFFSET(InputPriceData!G$15,CalculationsAndCharts!$A33+$A$11,IF($C$7,8,0),1,1) -> 1529000 | D33: =OFFSET(InputPriceData!C$15,CalculationsAndCharts!$A33+$A$11,IF($C$7,8,0),1,1) -> 45.31 | E33: =OFFSET(InputPriceData!D$15,CalculationsAndCharts!$A33+$A$11,IF($C$7,8,0),1,1) -> 45.4 | F33: =OFFSET(InputPriceData!E$15,CalculationsAndCharts!$A33+$A$11,IF($C$7,8,0),1,1) -> 44.26 | G33: =OFFSET(InputPriceData!F$15,CalculationsAndCharts!$A33+$A$11,IF($C$7,8,0),1,1) -> 44.3 | H33: =IF($A33>$A$8,NA(),IF(A33=$A$8,G33,G33*$C$16+H34*$D$16)) -> 44.19306931 | I33: =IF($A33>$A$8,NA(),IF(A33=$A$8,G33,G33*$C$17+I34*$D$17)) -> 45.40159379 | J33: =H33-I33 -> -1.208524474 | K33: =IF($A33>$A$8,NA(),IF($J33>=0,$J33,NA())) ->  | L33: =IF($A33>$A$8,NA(),IF($J33<0,$J33,NA())) -> -1.208524474 | M33: =IF($A33>$A$8,NA(),IF(A33=$A$8,J33,J33*$C$18+M34*$D$18)) -> -1.64463637 | N33: =(H33-I33)/I33*100 -> -2.661854736 | O33: =IF($A33>$A$8,NA(),IF($A33=$A$8,N33,N33*$C$18+O34*$D$18)) -> -3.569195274 | P33: =IF(A33>$A$8,NA(),IF(A33=$A$8,G33,G33*$C$19+P34*$D$19)) -> 48.24250412 | Q33: =SUMPRODUCT(OFFSET(G33,0,0,$A$20,1),OFFSET($R$33,0,0,A$20,1))/$R$31 -> 44.86647059 | R33: =IF(A33>$A$20,"",$A$20+1-$A33) -> 34 | S33: =MATCH(MAX(OFFSET(E33,0,0,$A$21,1)),OFFSET(E33,0,0,$A$21,1),0)-1 -> 24 | T33: =(($A$21 - (MATCH(MAX(OFFSET(E33,0,0,$A$21,1)),OFFSET(E33,0,0,$A$21,1),0)-1)) / $A$21) * 100 -> 4 | U33: =MATCH(MIN(OFFSET(F33,0,0,$A$21,1)),OFFSET(F33,0,0,$A$21,1),0)-1 -> 4 | V33: =(($A$21 - (MATCH(MIN(OFFSET(F33,0,0,$A$21,1)),OFFSET(F33,0,0,$A$21,1),0)-1)) / $A$21) * 100 -> 84 | W33: =IF($S$3,P33,NA()) ->  | X33: =IF($S$3,Q33,NA()) ->  | Y33: =IF($S$9,M33,NA()) -> -1.64463637 | Z33: =AND(J34<M34,J33>M33) -> FALSE | AA33: =AND(J34>M34,J33<M33) -> FALSE | AB33: =IF(AND($S$9,$S$10,$Z33),$AV$33,NA()) ->  | AC33: =IF(AND($S$9,$S$10,$Z33),$AV$34,NA()) ->  | AD33: =IF(AND($S$9,$S$10,$AA33),$AV$33,NA()) ->  | AE33: =IF(AND($S$9,$S$10,$AA33),$AV$34,NA()) ->  | AF33: =IF(AND($S$9,$S$10,Z33),F33,NA()) ->  | AG33: =IF(AND($S$9,$S$10,AA33),E33,NA()) ->  | AH33: =IF(OR(NOT($S$6),$A33>$A$8),NA(),IF($J33>=0,$F$11,NA())) ->  | AI33: =IF(OR(NOT($S$6),$A33>$A$8),NA(),IF($J33<0,$F$11,NA())) ->  | AJ33: =IF(AND($S$3,$S$4,G33<Q33,E33>=P33),E33,NA()) ->  | AK33: =IF(AND($S$3,$S$4,P33>Q33,G33>Q33),F33,NA()) ->  | AL33: =IF(AND(T34<V34,T33>V33),TRUE,IF(T34=100,FALSE,AL34)) -> FALSE | AM33: =AND(AL33,T33=100) -> FALSE | AN33: =IF(AND(T34>V34,T33<V33),TRUE,IF(V34=100,FALSE,AN34)) -> FALSE | AO33: =AND(AN33,V33=100) -> FALSE | AP33: =IF(AND($S$16,AM33),V33,NA()) ->  | AQ33: =IF(AND($S$16,AO33),T33,NA()) ->  | AR33: =IF(AND($S$16,$S$17,AM33),F33,NA()) ->  | AS33: =IF(AND($S$16,$S$17,AO33),E33,NA()) ->  | AT33: =$E$25 -> 229 | AU33: MacdChrtMin | AV33: =FLOOR(MIN(OFFSET($J$33,0,0,$A$12,1)),1) -> -5 | AW33: =$E$25 -> 229 | AX33: 0 | AY33: =$E$25 -> 229 | AZ33: =$F$11 -> 77.3
A34: 2 | B34: =OFFSET(InputPriceData!B$15,CalculationsAndCharts!$A34+$A$11,0,1,1) -> 2015-07-30 | C34: =OFFSET(InputPriceData!G$15,CalculationsAndCharts!$A34+$A$11,IF($C$7,8,0),1,1) -> 1597100 | D34: =OFFSET(InputPriceData!C$15,CalculationsAndCharts!$A34+$A$11,IF($C$7,8,0),1,1) -> 45.89 | E34: =OFFSET(InputPriceData!D$15,CalculationsAndCharts!$A34+$A$11,IF($C$7,8,0),1,1) -> 45.93 | F34: =OFFSET(InputPriceData!E$15,CalculationsAndCharts!$A34+$A$11,IF($C$7,8,0),1,1) -> 44.58 | G34: =OFFSET(InputPriceData!F$15,CalculationsAndCharts!$A34+$A$11,IF($C$7,8,0),1,1) -> 45.31 | H34: 44.17362737 | I34: =IF(A34>$A$8,NA(),IF(A34=$A$8,G34,G34*$C$17+I35*$D$17)) -> 45.48972129 | J34: =H34-I34 -> -1.316093921 | K34: =IF($A34>$A$8,NA(),IF($J34>=0,$J34,NA())) ->  | L34: =IF($A34>$A$8,NA(),IF($J34<0,$J34,NA())) -> -1.316093921 | M34: -1.753664344 | N34: =(H34-I34)/I34*100 -> -2.893167694 | O34: =IF($A34>$A$8,NA(),IF($A34=$A$8,N34,N34*$C$18+O35*$D$18)) -> -3.796030409 | P34: 48.3885228 | Q34: =SUMPRODUCT(OFFSET(G34,0,0,$A$20,1),OFFSET($R$33,0,0,A$20,1))/$R$31 -> 45.00485714 | R34: 33 | S34: 24 | T34: 4 | U34: 3 | V34: 88 | W34: =IF($S$3,P34,NA()) ->  | X34: =IF($S$3,Q34,NA()) ->  | Y34: -1.753664344 | Z34: =AND(J35<M35,J34>M34) -> FALSE | AA34: =AND(J35>M35,J34<M34) -> FALSE | AJ34: =IF(AND($S$3,$S$4,G34<Q34,E34>=P34),E34,NA()) ->  | AK34: =IF(AND($S$3,$S$4,P34>Q34,G34>Q34),F34,NA()) ->  | AL34: =IF(AND(T35<V35,T34>V34),TRUE,IF(T35=100,FALSE,AL35)) -> FALSE | AM34: =AND(AL34,T34=100) -> FALSE | AN34: =IF(AND(T35>V35,T34<V34),TRUE,IF(V35=100,FALSE,AN35)) -> FALSE | AO34: =AND(AN34,V34=100) -> FALSE | AT34: =$E$25 -> 229 | AU34: MacdChrtMax | AV34: =CEILING(MAX(OFFSET($J$33,0,0,$A$12,1)),1) -> 5 | AW34: =$E$25 -> 229 | AX34: 100 | AY34: =$E$25 -> 229 | AZ34: =$F$12 -> 35.6
A35: 3 | B35: =OFFSET(InputPriceData!B$15,CalculationsAndCharts!$A35+$A$11,0,1,1) -> 2015-07-29 | C35: =OFFSET(InputPriceData!G$15,CalculationsAndCharts!$A35+$A$11,IF($C$7,8,0),1,1) -> 2765900 | D35: =OFFSET(InputPriceData!C$15,CalculationsAndCharts!$A35+$A$11,IF($C$7,8,0),1,1) -> 43.51 | E35: =OFFSET(InputPriceData!D$15,CalculationsAndCharts!$A35+$A$11,IF($C$7,8,0),1,1) -> 45.96 | F35: =OFFSET(InputPriceData!E$15,CalculationsAndCharts!$A35+$A$11,IF($C$7,8,0),1,1) -> 43.13 | G35: =OFFSET(InputPriceData!F$15,CalculationsAndCharts!$A35+$A$11,IF($C$7,8,0),1,1) -> 45.54 | H35: 43.96701416 | I35: 45.50409899 | J35: -1.537084829 | L35: -1.537084829 | M35: -1.863056949 | N35: -3.377904109 | O35: -4.021746088 | P35: 48.50254216 | Q35: 45.09413445 | R35: 32 | S35: 24 | T35: 4 | U35: 2 | V35: 92 | Y35: -1.863056949 | Z35: FALSE | AA35: FALSE | AL35: FALSE | AM35: FALSE | AN35: FALSE | AO35: FALSE
A36: 4 | B36: =OFFSET(InputPriceData!B$15,CalculationsAndCharts!$A36+$A$11,0,1,1) -> 2015-07-28 | C36: =OFFSET(InputPriceData!G$15,CalculationsAndCharts!$A36+$A$11,IF($C$7,8,0),1,1) -> 1719800 | D36: =OFFSET(InputPriceData!C$15,CalculationsAndCharts!$A36+$A$11,IF($C$7,8,0),1,1) -> 42.5 | E36: =OFFSET(InputPriceData!D$15,CalculationsAndCharts!$A36+$A$11,IF($C$7,8,0),1,1) -> 43.66 | F36: =OFFSET(InputPriceData!E$15,CalculationsAndCharts!$A36+$A$11,IF($C$7,8,0),1,1) -> 41.66 | G36: =OFFSET(InputPriceData!F$15,CalculationsAndCharts!$A36+$A$11,IF($C$7,8,0),1,1) -> 43.38 | H36: 43.68101674 | I36: 45.50122691 | J36: -1.820210174 | L36: -1.820210174 | M36: -1.94454998 | N36: -4.000354051 | O36: -4.182706582 | P36: 48.61226594 | Q36: 45.1782521 | R36: 31 | S36: 24 | T36: 4 | U36: 1 | V36: 96 | Y36: -1.94454998 | Z36: FALSE | AA36: FALSE | AL36: FALSE | AM36: FALSE | AN36: FALSE | AO36: FALSE
A37: 5 | B37: =OFFSET(InputPriceData!B$15,CalculationsAndCharts!$A37+$A$11,0,1,1) -> 2015-07-27 | C37: =OFFSET(InputPriceData!G$15,CalculationsAndCharts!$A37+$A$11,IF($C$7,8,0),1,1) -> 1888900 | D37: =OFFSET(InputPriceData!C$15,CalculationsAndCharts!$A37+$A$11,IF($C$7,8,0),1,1) -> 42.43 | E37: =OFFSET(InputPriceData!D$15,CalculationsAndCharts!$A37+$A$11,IF($C$7,8,0),1,1) -> 42.62 | F37: =OFFSET(InputPriceData!E$15,CalculationsAndCharts!$A37+$A$11,IF($C$7,8,0),1,1) -> 41.56 | G37: =OFFSET(InputPriceData!F$15,CalculationsAndCharts!$A37+$A$11,IF($C$7,8,0),1,1) -> 42.27 | H37: 43.73574705 | I37: 45.67092506 | J37: -1.935178011 | L37: -1.935178011 | M37: -1.975634931 | N37: -4.237220963 | O37: -4.228294715 | P37: 48.80605357 | Q37: 45.39552941 | R37: 30 | S37: 23 | T37: 8 | U37: 0 | V37: 100 | Y37: -1.975634931 | Z37: FALSE | AA37: FALSE | AL37: FALSE | AM37: FALSE | AN37: FALSE | AO37: FALSE
A38: 6 | B38: =OFFSET(InputPriceData!B$15,CalculationsAndCharts!$A38+$A$11,0,1,1) -> 2015-07-24 | C38: =OFFSET(InputPriceData!G$15,CalculationsAndCharts!$A38+$A$11,IF($C$7,8,0),1,1) -> 1818400 | D38: =OFFSET(InputPriceData!C$15,CalculationsAndCharts!$A38+$A$11,IF($C$7,8,0),1,1) -> 42.92 | E38: =OFFSET(InputPriceData!D$15,CalculationsAndCharts!$A38+$A$11,IF($C$7,8,0),1,1) -> 43.25 | F38: =OFFSET(InputPriceData!E$15,CalculationsAndCharts!$A38+$A$11,IF($C$7,8,0),1,1) -> 42.25 | G38: =OFFSET(InputPriceData!F$15,CalculationsAndCharts!$A38+$A$11,IF($C$7,8,0),1,1) -> 42.97 | H38: 44.00224652 | I38: 45.94299907 | J38: -1.940752552 | L38: -1.940752552 | M38: -1.985749161 | N38: -4.224261783 | O38: -4.226063154 | P38: 49.04812963 | Q38: 45.68897479 | R38: 29 | S38: 24 | T38: 4 | U38: 0 | V38: 100 | Y38: -1.985749161 | Z38: FALSE | AA38: FALSE | AL38: FALSE | AM38: FALSE | AN38: FALSE | AO38: FALSE
A39: 7 | B39: =OFFSET(InputPriceData!B$15,CalculationsAndCharts!$A39+$A$11,0,1,1) -> 2015-07-23 | C39: =OFFSET(InputPriceData!G$15,CalculationsAndCharts!$A39+$A$11,IF($C$7,8,0),1,1) -> 1767800 | D39: =OFFSET(InputPriceData!C$15,CalculationsAndCharts!$A39+$A$11,IF($C$7,8,0),1,1) -> 42.57 | E39: =OFFSET(InputPriceData!D$15,CalculationsAndCharts!$A39+$A$11,IF($C$7,8,0),1,1) -> 43.64 | F39: =OFFSET(InputPriceData!E$15,CalculationsAndCharts!$A39+$A$11,IF($C$7,8,0),1,1) -> 42.57 | G39: =OFFSET(InputPriceData!F$15,CalculationsAndCharts!$A39+$A$11,IF($C$7,8,0),1,1) -> 42.74 | H39: 44.1899277 | I39: 46.18083899 | J39: -1.990911292 | L39: -1.990911292 | M39: -1.996998313 | N39: -4.311119797 | O39: -4.226513496 | P39: 49.27324554 | Q39: 45.95642017 | R39: 28 | S39: 23 | T39: 8 | U39: 1 | V39: 96 | Y39: -1.996998313 | Z39: TRUE | AA39: FALSE | AB39: -5 | AC39: 5 | AF39: 42.57 | AL39: FALSE | AM39: FALSE | AN39: FALSE | AO39: FALSE
A40: 8 | B40: =OFFSET(InputPriceData!B$15,CalculationsAndCharts!$A40+$A$11,0,1,1) -> 2015-07-22 | C40: =OFFSET(InputPriceData!G$15,CalculationsAndCharts!$A40+$A$11,IF($C$7,8,0),1,1) -> 1742200 | D40: =OFFSET(InputPriceData!C$15,CalculationsAndCharts!$A40+$A$11,IF($C$7,8,0),1,1) -> 43.1 | E40: =OFFSET(InputPriceData!D$15,CalculationsAndCharts!$A40+$A$11,IF($C$7,8,0),1,1) -> 43.25 | F40: =OFFSET(InputPriceData!E$15,CalculationsAndCharts!$A40+$A$11,IF($C$7,8,0),1,1) -> 42.25 | G40: =OFFSET(InputPriceData!F$15,CalculationsAndCharts!$A40+$A$11,IF($C$7,8,0),1,1) -> 42.5 | H40: 44.45355092 | I40: 46.45610611 | J40: -2.002555193 | L40: -2.002555193 | M40: -1.998520068 | N40: -4.310639356 | O40: -4.205361921 | P40: 49.5152176 | Q40: 46.24865546 | R40: 27 | S40: 24 | T40: 4 | U40: 0 | V40: 100 | Y40: -1.998520068 | Z40: FALSE | AA40: TRUE | AD40: -5 | AE40: 5 | AG40: 43.25 | AL40: FALSE | AM40: FALSE | AN40: FALSE | AO40: FALSE
A41: 9 | B41: =OFFSET(InputPriceData!B$15,CalculationsAndCharts!$A41+$A$11,0,1,1) -> 2015-07-21 | C41: =OFFSET(InputPriceData!G$15,CalculationsAndCharts!$A41+$A$11,IF($C$7,8,0),1,1) -> 1452900 | D41: =OFFSET(InputPriceData!C$15,CalculationsAndCharts!$A41+$A$11,IF($C$7,8,0),1,1) -> 43.11 | E41: =OFFSET(InputPriceData!D$15,CalculationsAndCharts!$A41+$A$11,IF($C$7,8,0),1,1) -> 43.98 | F41: =OFFSET(InputPriceData!E$15,CalculationsAndCharts!$A41+$A$11,IF($C$7,8,0),1,1) -> 42.86 | G41: =OFFSET(InputPriceData!F$15,CalculationsAndCharts!$A41+$A$11,IF($C$7,8,0),1,1) -> 43.48 | H41: 44.808742 | I41: 46.7725946 | J41: -1.963852606 | L41: -1.963852606 | M41: -1.997511287 | N41: -4.198724964 | O41: -4.179042562 | P41: 49.77504047 | Q41: 46.56860504 | R41: 26 | S41: 24 | T41: 4 | U41: 10 | V41: 60 | Y41: -1.997511287 | Z41: FALSE | AA41: FALSE | AL41: FALSE | AM41: FALSE | AN41: FALSE | AO41: FALSE
A42: 10 | B42: =OFFSET(InputPriceData!B$15,CalculationsAndCharts!$A42+$A$11,0,1,1) -> 2015-07-20 | C42: =OFFSET(InputPriceData!G$15,CalculationsAndCharts!$A42+$A$11,IF($C$7,8,0),1,1) -> 1841600 | D42: =OFFSET(InputPriceData!C$15,CalculationsAndCharts!$A42+$A$11,IF($C$7,8,0),1,1) -> 44.49 | E42: =OFFSET(InputPriceData!D$15,CalculationsAndCharts!$A42+$A$11,IF($C$7,8,0),1,1) -> 44.5 | F42: =OFFSET(InputPriceData!E$15,CalculationsAndCharts!$A42+$A$11,IF($C$7,8,0),1,1) -> 43.23 | G42: =OFFSET(InputPriceData!F$15,CalculationsAndCharts!$A42+$A$11,IF($C$7,8,0),1,1) -> 43.28 | H42: 45.05033145 | I42: 47.03600217 | J42: -1.98567072 | L42: -1.98567072 | M42: -2.005925958 | N42: -4.22159756 | O42: -4.174121962 | P42: 50.00819012 | Q42: 46.84510924 | R42: 25 | S42: 23 | T42: 8 | U42: 9 | V42: 64 | Y42: -2.005925958 | Z42: FALSE | AA42: FALSE | AL42: FALSE | AM42: FALSE | AN42: FALSE | AO42: FALSE
A43: 11 | B43: =OFFSET(InputPriceData!B$15,CalculationsAndCharts!$A43+$A$11,0,1,1) -> 2015-07-17 | C43: =OFFSET(InputPriceData!G$15,CalculationsAndCharts!$A43+$A$11,IF($C$7,8,0),1,1) -> 1418100 | D43: =OFFSET(InputPriceData!C$15,CalculationsAndCharts!$A43+$A$11,IF($C$7,8,0),1,1) -> 44.62 | E43: =OFFSET(InputPriceData!D$15,CalculationsAndCharts!$A43+$A$11,IF($C$7,8,0),1,1) -> 44.7 | F43: =OFFSET(InputPriceData!E$15,CalculationsAndCharts!$A43+$A$11,IF($C$7,8,0),1,1) -> 43.75 | G43: =OFFSET(InputPriceData!F$15,CalculationsAndCharts!$A43+$A$11,IF($C$7,8,0),1,1) -> 43.95 | H43: 45.3722099 | I43: 47.33648235 | J43: -1.964272448 | L43: -1.964272448 | M43: -2.010989767 | N43: -4.149595304 | O43: -4.162253062 | P43: 50.25738234 | Q43: 47.14416807 | R43: 24 | S43: 22 | T43: 12 | U43: 8 | V43: 68 | Y43: -2.010989767 | Z43: FALSE | AA43: FALSE | AL43: FALSE | AM43: FALSE | AN43: FALSE | AO43: FALSE
A44: 12 | B44: =OFFSET(InputPriceData!B$15,CalculationsAndCharts!$A44+$A$11,0,1,1) -> 2015-07-16 | C44: =OFFSET(InputPriceData!G$15,CalculationsAndCharts!$A44+$A$11,IF($C$7,8,0),1,1) -> 1244100 | D44: =OFFSET(InputPriceData!C$15,CalculationsAndCharts!$A44+$A$11,IF($C$7,8,0),1,1) -> 44.76 | E44: =OFFSET(InputPriceData!D$15,CalculationsAndCharts!$A44+$A$11,IF($C$7,8,0),1,1) -> 45.21 | F44: =OFFSET(InputPriceData!E$15,CalculationsAndCharts!$A44+$A$11,IF($C$7,8,0),1,1) -> 44.11 | G44: =OFFSET(InputPriceData!F$15,CalculationsAndCharts!$A44+$A$11,IF($C$7,8,0),1,1) -> 44.76 | H44: 45.63079351 | I44: 47.60740093 | J44: -1.976607418 | L44: -1.976607418 | M44: -2.022669097 | N44: -4.15189105 | O44: -4.165417501 | P44: 50.4909891 | Q44: 47.41462185 | R44: 23 | S44: 21 | T44: 16 | U44: 7 | V44: 72 | Y44: -2.022669097 | Z44: TRUE | AA44: FALSE | AB44: -5 | AC44: 5 | AF44: 44.11 | AL44: FALSE | AM44: FALSE | AN44: FALSE | AO44: FALSE
A45: 13 | B45: =OFFSET(InputPriceData!B$15,CalculationsAndCharts!$A45+$A$11,0,1,1) -> 2015-07-15 | C45: =OFFSET(InputPriceData!G$15,CalculationsAndCharts!$A45+$A$11,IF($C$7,8,0),1,1) -> 2210900 | D45: =OFFSET(InputPriceData!C$15,CalculationsAndCharts!$A45+$A$11,IF($C$7,8,0),1,1) -> 45.72 | E45: =OFFSET(InputPriceData!D$15,CalculationsAndCharts!$A45+$A$11,IF($C$7,8,0),1,1) -> 45.94 | F45: =OFFSET(InputPriceData!E$15,CalculationsAndCharts!$A45+$A$11,IF($C$7,8,0),1,1) -> 44.11 | G45: =OFFSET(InputPriceData!F$15,CalculationsAndCharts!$A45+$A$11,IF($C$7,8,0),1,1) -> 44.49 | H45: 45.78911961 | I45: 47.83519301 | J45: -2.046073399 | L45: -2.046073399 | M45: -2.034184516 | N45: -4.277339069 | O45: -4.168799114 | P45: 50.70324795 | Q45: 47.64885714 | R45: 22 | S45: 20 | T45: 20 | U45: 6 | V45: 76 | Y45: -2.034184516 | Z45: FALSE | AA45: FALSE | AL45: FALSE | AM45: FALSE | AN45: FALSE | AO45: FALSE
A46: 14 | B46: =OFFSET(InputPriceData!B$15,CalculationsAndCharts!$A46+$A$11,0,1,1) -> 2015-07-14 | C46: =OFFSET(InputPriceData!G$15,CalculationsAndCharts!$A46+$A$11,IF($C$7,8,0),1,1) -> 2940700 | D46: =OFFSET(InputPriceData!C$15,CalculationsAndCharts!$A46+$A$11,IF($C$7,8,0),1,1) -> 46.44 | E46: =OFFSET(InputPriceData!D$15,CalculationsAndCharts!$A46+$A$11,IF($C$7,8,0),1,1) -> 47.01 | F46: =OFFSET(InputPriceData!E$15,CalculationsAndCharts!$A46+$A$11,IF($C$7,8,0),1,1) -> 45.57 | G46: =OFFSET(InputPriceData!F$15,CalculationsAndCharts!$A46+$A$11,IF($C$7,8,0),1,1) -> 45.81 | H46: 46.02532317 | I46: 48.10280845 | J46: -2.077485275 | L46: -2.077485275 | M46: -2.031212295 | N46: -4.318844038 | O46: -4.141664126 | P46: 50.93336825 | Q46: 47.90993277 | R46: 21 | S46: 19 | T46: 24 | U46: 5 | V46: 80 | Y46: -2.031212295 | Z46: =AND(J47<M47,J46>M46) -> FALSE | AA46: =AND(J47>M47,J46<M46) -> FALSE | AL46: FALSE | AM46: FALSE | AN46: FALSE | AO46: FALSE
A47: 15 | B47: =OFFSET(InputPriceData!B$15,CalculationsAndCharts!$A47+$A$11,0,1,1) -> 2015-07-13 | C47: =OFFSET(InputPriceData!G$15,CalculationsAndCharts!$A47+$A$11,IF($C$7,8,0),1,1) -> 2454200 | D47: =OFFSET(InputPriceData!C$15,CalculationsAndCharts!$A47+$A$11,IF($C$7,8,0),1,1) -> 44.55 | E47: =OFFSET(InputPriceData!D$15,CalculationsAndCharts!$A47+$A$11,IF($C$7,8,0),1,1) -> 46.06 | F47: =OFFSET(InputPriceData!E$15,CalculationsAndCharts!$A47+$A$11,IF($C$7,8,0),1,1) -> 44.44 | G47: =OFFSET(InputPriceData!F$15,CalculationsAndCharts!$A47+$A$11,IF($C$7,8,0),1,1) -> 46.01 | H47: 46.06447284 | I47: 48.28623312 | J47: -2.221760283 | L47: -2.221760283 | M47: -2.01964405 | N47: -4.601229251 | O47: -4.097369147 | P47: 51.12312263 | Q47: 48.10440336 | R47: 20 | S47: 18 | T47: 28 | U47: 4 | V47: 84 | Y47: -2.01964405 | Z47: FALSE | AA47: FALSE | AL47: FALSE | AM47: FALSE | AN47: FALSE | AO47: FALSE
A48: 16 | B48: =OFFSET(InputPriceData!B$15,CalculationsAndCharts!$A48+$A$11,0,1,1) -> 2015-07-10 | C48: =OFFSET(InputPriceData!G$15,CalculationsAndCharts!$A48+$A$11,IF($C$7,8,0),1,1) -> 1349000 | D48: =OFFSET(InputPriceData!C$15,CalculationsAndCharts!$A48+$A$11,IF($C$7,8,0),1,1) -> 44.31 | E48: =OFFSET(InputPriceData!D$15,CalculationsAndCharts!$A48+$A$11,IF($C$7,8,0),1,1) -> 44.75 | F48: =OFFSET(InputPriceData!E$15,CalculationsAndCharts!$A48+$A$11,IF($C$7,8,0),1,1) -> 43.62 | G48: =OFFSET(InputPriceData!F$15,CalculationsAndCharts!$A48+$A$11,IF($C$7,8,0),1,1) -> 44.03 | H48: 46.07437699 | I48: 48.46833177 | J48: -2.39395478 | L48: -2.39395478 | M48: -1.969114992 | N48: -4.939214312 | O48: -3.971404121 | P48: 51.31249754 | Q48: 48.30267227 | R48: 19 | S48: 17 | T48: 32 | U48: 3 | V48: 88 | Y48: -1.969114992 | Z48: FALSE | AA48: FALSE | AL48: FALSE | AM48: FALSE | AN48: FALSE | AO48: FALSE
A49: 17 | B49: =OFFSET(InputPriceData!B$15,CalculationsAndCharts!$A49+$A$11,0,1,1) -> 2015-07-09 | C49: =OFFSET(InputPriceData!G$15,CalculationsAndCharts!$A49+$A$11,IF($C$7,8,0),1,1) -> 1883000 | D49: =OFFSET(InputPriceData!C$15,CalculationsAndCharts!$A49+$A$11,IF($C$7,8,0),1,1) -> 44.5 | E49: =OFFSET(InputPriceData!D$15,CalculationsAndCharts!$A49+$A$11,IF($C$7,8,0),1,1) -> 45.22 | F49: =OFFSET(InputPriceData!E$15,CalculationsAndCharts!$A49+$A$11,IF($C$7,8,0),1,1) -> 43.57 | G49: =OFFSET(InputPriceData!F$15,CalculationsAndCharts!$A49+$A$11,IF($C$7,8,0),1,1) -> 43.65 | H49: 46.4460819 | I49: 48.82339832 | J49: -2.377316414 | L49: -2.377316414 | M49: -1.862905045 | N49: -4.869215368 | O49: -3.729451574 | P49: 51.58221967 | Q49: 48.63401681 | R49: 18 | S49: 16 | T49: 36 | U49: 2 | V49: 92 | Y49: -1.862905045 | Z49: FALSE | AA49: FALSE | AL49: FALSE | AM49: FALSE | AN49: FALSE | AO49: FALSE
A50: 18 | B50: =OFFSET(InputPriceData!B$15,CalculationsAndCharts!$A50+$A$11,0,1,1) -> 2015-07-08 | C50: =OFFSET(InputPriceData!G$15,CalculationsAndCharts!$A50+$A$11,IF($C$7,8,0),1,1) -> 2159200 | D50: =OFFSET(InputPriceData!C$15,CalculationsAndCharts!$A50+$A$11,IF($C$7,8,0),1,1) -> 44.68 | E50: =OFFSET(InputPriceData!D$15,CalculationsAndCharts!$A50+$A$11,IF($C$7,8,0),1,1) -> 45 | F50: =OFFSET(InputPriceData!E$15,CalculationsAndCharts!$A50+$A$11,IF($C$7,8,0),1,1) -> 43.16 | G50: =OFFSET(InputPriceData!F$15,CalculationsAndCharts!$A50+$A$11,IF($C$7,8,0),1,1) -> 43.27 | H50: 46.95446043 | I50: 49.23727018 | J50: -2.282809751 | L50: -2.282809751 | M50: -1.734302203 | N50: -4.636345076 | O50: -3.444510625 | P50: 51.87600558 | Q50: 49.00601681 | R50: 17 | S50: 15 | T50: 40 | U50: 1 | V50: 96 | Y50: -1.734302203 | Z50: FALSE | AA50: FALSE | AL50: FALSE | AM50: FALSE | AN50: FALSE | AO50: FALSE
A51: 19 | B51: =OFFSET(InputPriceData!B$15,CalculationsAndCharts!$A51+$A$11,0,1,1) -> 2015-07-07 | C51: =OFFSET(InputPriceData!G$15,CalculationsAndCharts!$A51+$A$11,IF($C$7,8,0),1,1) -> 3769500 | D51: =OFFSET(InputPriceData!C$15,CalculationsAndCharts!$A51+$A$11,IF($C$7,8,0),1,1) -> 44 | E51: =OFFSET(InputPriceData!D$15,CalculationsAndCharts!$A51+$A$11,IF($C$7,8,0),1,1) -> 45.14 | F51: =OFFSET(InputPriceData!E$15,CalculationsAndCharts!$A51+$A$11,IF($C$7,8,0),1,1) -> 42.71 | G51: =OFFSET(InputPriceData!F$15,CalculationsAndCharts!$A51+$A$11,IF($C$7,8,0),1,1) -> 45.12 | H51: 47.62436233 | I51: 49.7146518 | J51: -2.09028947 | L51: -2.09028947 | M51: -1.597175316 | N51: -4.204574294 | O51: -3.146552013 | P51: 52.19474653 | Q51: 49.41991597 | R51: 16 | S51: 14 | T51: 44 | U51: 0 | V51: 100 | Y51: -1.597175316 | Z51: FALSE | AA51: FALSE | AL51: FALSE | AM51: FALSE | AN51: FALSE | AO51: FALSE
A52: 20 | B52: =OFFSET(InputPriceData!B$15,CalculationsAndCharts!$A52+$A$11,0,1,1) -> 2015-07-06 | C52: =OFFSET(InputPriceData!G$15,CalculationsAndCharts!$A52+$A$11,IF($C$7,8,0),1,1) -> 2035000 | D52: =OFFSET(InputPriceData!C$15,CalculationsAndCharts!$A52+$A$11,IF($C$7,8,0),1,1) -> 44.88 | E52: =OFFSET(InputPriceData!D$15,CalculationsAndCharts!$A52+$A$11,IF($C$7,8,0),1,1) -> 44.92 | F52: =OFFSET(InputPriceData!E$15,CalculationsAndCharts!$A52+$A$11,IF($C$7,8,0),1,1) -> 43.95 | G52: =OFFSET(InputPriceData!F$15,CalculationsAndCharts!$A52+$A$11,IF($C$7,8,0),1,1) -> 44.19 | H52: 48.07970093 | I52: 50.08222394 | J52: -2.002523009 | L52: -2.002523009 | M52: -1.473896778 | N52: -3.998470617 | O52: -2.882046443 | P52: 52.45677418 | Q52: 49.74668908 | R52: 15 | S52: 13 | T52: 48 | U52: 0 | V52: 100 | Y52: -1.473896778 | Z52: FALSE | AA52: FALSE | AL52: FALSE | AM52: FALSE | AN52: FALSE | AO52: FALSE
A53: 21 | B53: =OFFSET(InputPriceData!B$15,CalculationsAndCharts!$A53+$A$11,0,1,1) -> 2015-07-02 | C53: =OFFSET(InputPriceData!G$15,CalculationsAndCharts!$A53+$A$11,IF($C$7,8,0),1,1) -> 2389300 | D53: =OFFSET(InputPriceData!C$15,CalculationsAndCharts!$A53+$A$11,IF($C$7,8,0),1,1) -> 46.03 | E53: =OFFSET(InputPriceData!D$15,CalculationsAndCharts!$A53+$A$11,IF($C$7,8,0),1,1) -> 46.28 | F53: =OFFSET(InputPriceData!E$15,CalculationsAndCharts!$A53+$A$11,IF($C$7,8,0),1,1) -> 45.14 | G53: =OFFSET(InputPriceData!F$15,CalculationsAndCharts!$A53+$A$11,IF($C$7,8,0),1,1) -> 45.17 | H53: 48.78691928 | I53: 50.55360185 | J53: -1.766682573 | L53: -1.766682573 | M53: -1.34174022 | N53: -3.494672007 | O53: -2.602940399 | P53: 52.762951 | Q53: 50.14766387 | R53: 14 | S53: 12 | T53: 52 | U53: 0 | V53: 100 | Y53: -1.34174022 | Z53: FALSE | AA53: FALSE | AL53: FALSE | AM53: FALSE | AN53: FALSE | AO53: FALSE
A54: 22 | B54: =OFFSET(InputPriceData!B$15,CalculationsAndCharts!$A54+$A$11,0,1,1) -> 2015-07-01 | C54: =OFFSET(InputPriceData!G$15,CalculationsAndCharts!$A54+$A$11,IF($C$7,8,0),1,1) -> 2375900 | D54: =OFFSET(InputPriceData!C$15,CalculationsAndCharts!$A54+$A$11,IF($C$7,8,0),1,1) -> 47.32 | E54: =OFFSET(InputPriceData!D$15,CalculationsAndCharts!$A54+$A$11,IF($C$7,8,0),1,1) -> 47.75 | F54: =OFFSET(InputPriceData!E$15,CalculationsAndCharts!$A54+$A$11,IF($C$7,8,0),1,1) -> 45.65 | G54: =OFFSET(InputPriceData!F$15,CalculationsAndCharts!$A54+$A$11,IF($C$7,8,0),1,1) -> 46.04 | H54: 49.44454097 | I54: 50.98429 | J54: -1.539749033 | L54: -1.539749033 | M54: -1.235504632 | N54: -3.020046044 | O54: -2.380007497 | P54: 53.04417141 | Q54: 50.51178151 | R54: 13 | S54: 11 | T54: 56 | U54: 0 | V54: 100 | Y54: -1.235504632 | Z54: FALSE | AA54: FALSE | AL54: FALSE | AM54: FALSE | AN54: FALSE | AO54: FALSE
A55: 23 | B55: =OFFSET(InputPriceData!B$15,CalculationsAndCharts!$A55+$A$11,0,1,1) -> 2015-06-30 | C55: =OFFSET(InputPriceData!G$15,CalculationsAndCharts!$A55+$A$11,IF($C$7,8,0),1,1) -> 2494400 | D55: =OFFSET(InputPriceData!C$15,CalculationsAndCharts!$A55+$A$11,IF($C$7,8,0),1,1) -> 48.42 | E55: =OFFSET(InputPriceData!D$15,CalculationsAndCharts!$A55+$A$11,IF($C$7,8,0),1,1) -> 48.44 | F55: =OFFSET(InputPriceData!E$15,CalculationsAndCharts!$A55+$A$11,IF($C$7,8,0),1,1) -> 46.84 | G55: =OFFSET(InputPriceData!F$15,CalculationsAndCharts!$A55+$A$11,IF($C$7,8,0),1,1) -> 46.98 | H55: 50.06354842 | I55: 51.3798332 | J55: -1.316284785 | L55: -1.316284785 | M55: -1.159443532 | N55: -2.56187049 | O55: -2.21999786 | P55: 53.30358517 | Q55: 50.84421849 | R55: 12 | S55: 10 | T55: 60 | U55: 0 | V55: 100 | Y55: -1.159443532 | Z55: FALSE | AA55: TRUE | AD55: -5 | AE55: 5 | AG55: 48.44 | AL55: FALSE | AM55: FALSE | AN55: FALSE | AO55: FALSE
A56: 24 | B56: =OFFSET(InputPriceData!B$15,CalculationsAndCharts!$A56+$A$11,0,1,1) -> 2015-06-29 | C56: =OFFSET(InputPriceData!G$15,CalculationsAndCharts!$A56+$A$11,IF($C$7,8,0),1,1) -> 2853000 | D56: =OFFSET(InputPriceData!C$15,CalculationsAndCharts!$A56+$A$11,IF($C$7,8,0),1,1) -> 48.95 | E56: =OFFSET(InputPriceData!D$15,CalculationsAndCharts!$A56+$A$11,IF($C$7,8,0),1,1) -> 49.17 | F56: =OFFSET(InputPriceData!E$15,CalculationsAndCharts!$A56+$A$11,IF($C$7,8,0),1,1) -> 47.78 | G56: =OFFSET(InputPriceData!F$15,CalculationsAndCharts!$A56+$A$11,IF($C$7,8,0),1,1) -> 47.84 | H56: 50.62419358 | I56: 51.73181986 | J56: -1.107626274 | L56: -1.107626274 | M56: -1.120233218 | N56: -2.141092807 | O56: -2.134529702 | P56: 53.53779202 | Q56: 51.13818487 | R56: 11 | S56: 9 | T56: 64 | U56: 0 | V56: 100 | Y56: -1.120233218 | Z56: FALSE | AA56: FALSE | AL56: FALSE | AM56: FALSE | AN56: FALSE | AO56: FALSE
A57: 25 | B57: =OFFSET(InputPriceData!B$15,CalculationsAndCharts!$A57+$A$11,0,1,1) -> 2015-06-26 | C57: =OFFSET(InputPriceData!G$15,CalculationsAndCharts!$A57+$A$11,IF($C$7,8,0),1,1) -> 1746100 | D57: =OFFSET(InputPriceData!C$15,CalculationsAndCharts!$A57+$A$11,IF($C$7,8,0),1,1) -> 50.95 | E57: =OFFSET(InputPriceData!D$15,CalculationsAndCharts!$A57+$A$11,IF($C$7,8,0),1,1) -> 51.1 | F57: =OFFSET(InputPriceData!E$15,CalculationsAndCharts!$A57+$A$11,IF($C$7,8,0),1,1) -> 49.65 | G57: =OFFSET(InputPriceData!F$15,CalculationsAndCharts!$A57+$A$11,IF($C$7,8,0),1,1) -> 49.95 | H57: 51.1304106 | I57: 52.04316545 | J57: -0.9127548474 | L57: -0.9127548474 | M57: -1.123384955 | N57: -1.753841911 | O57: -2.132888926 | P57: 53.74882136 | Q57: 51.39736134 | R57: 10 | S57: 24 | T57: 4 | U57: 13 | V57: 48 | Y57: -1.123384955 | Z57: FALSE | AA57: FALSE | AL57: FALSE | AM57: FALSE | AN57: FALSE | AO57: FALSE
A58: 26 | B58: =OFFSET(InputPriceData!B$15,CalculationsAndCharts!$A58+$A$11,0,1,1) -> 2015-06-25 | C58: =OFFSET(InputPriceData!G$15,CalculationsAndCharts!$A58+$A$11,IF($C$7,8,0),1,1) -> 1493700 | D58: =OFFSET(InputPriceData!C$15,CalculationsAndCharts!$A58+$A$11,IF($C$7,8,0),1,1) -> 51.63 | E58: =OFFSET(InputPriceData!D$15,CalculationsAndCharts!$A58+$A$11,IF($C$7,8,0),1,1) -> 51.87 | F58: =OFFSET(InputPriceData!E$15,CalculationsAndCharts!$A58+$A$11,IF($C$7,8,0),1,1) -> 50.9 | G58: =OFFSET(InputPriceData!F$15,CalculationsAndCharts!$A58+$A$11,IF($C$7,8,0),1,1) -> 50.97 | H58: 51.34503071 | I58: 52.21061868 | J58: -0.8655879741 | L58: -0.8655879741 | M58: -1.176042481 | N58: -1.657877259 | O58: -2.22765068 | P58: 53.88951845 | Q58: 51.5467563 | R58: 9 | S58: 24 | T58: 4 | U58: 12 | V58: 52 | Y58: -1.176042481 | Z58: FALSE | AA58: FALSE | AL58: FALSE | AM58: FALSE | AN58: FALSE | AO58: FALSE
A59: 27 | B59: =OFFSET(InputPriceData!B$15,CalculationsAndCharts!$A59+$A$11,0,1,1) -> 2015-06-24 | C59: =OFFSET(InputPriceData!G$15,CalculationsAndCharts!$A59+$A$11,IF($C$7,8,0),1,1) -> 1772200 | D59: =OFFSET(InputPriceData!C$15,CalculationsAndCharts!$A59+$A$11,IF($C$7,8,0),1,1) -> 51.25 | E59: =OFFSET(InputPriceData!D$15,CalculationsAndCharts!$A59+$A$11,IF($C$7,8,0),1,1) -> 51.94 | F59: =OFFSET(InputPriceData!E$15,CalculationsAndCharts!$A59+$A$11,IF($C$7,8,0),1,1) -> 51.1 | G59: =OFFSET(InputPriceData!F$15,CalculationsAndCharts!$A59+$A$11,IF($C$7,8,0),1,1) -> 51.36 | H59: 51.41321811 | I59: 52.30986818 | J59: -0.8966500671 | L59: -0.8966500671 | M59: -1.253656108 | N59: -1.714112649 | O59: -2.370094035 | P59: 53.99764876 | Q59: 51.64685714 | R59: 8 | S59: 23 | T59: 8 | U59: 11 | V59: 56 | Y59: -1.253656108 | Z59: FALSE | AA59: FALSE | AL59: FALSE | AM59: FALSE | AN59: FALSE | AO59: FALSE
A60: 28 | B60: =OFFSET(InputPriceData!B$15,CalculationsAndCharts!$A60+$A$11,0,1,1) -> 2015-06-23 | C60: =OFFSET(InputPriceData!G$15,CalculationsAndCharts!$A60+$A$11,IF($C$7,8,0),1,1) -> 1556600 | D60: =OFFSET(InputPriceData!C$15,CalculationsAndCharts!$A60+$A$11,IF($C$7,8,0),1,1) -> 51.29 | E60: =OFFSET(InputPriceData!D$15,CalculationsAndCharts!$A60+$A$11,IF($C$7,8,0),1,1) -> 52.1 | F60: =OFFSET(InputPriceData!E$15,CalculationsAndCharts!$A60+$A$11,IF($C$7,8,0),1,1) -> 50.88 | G60: =OFFSET(InputPriceData!F$15,CalculationsAndCharts!$A60+$A$11,IF($C$7,8,0),1,1) -> 51.49 | H60: 51.42289413 | I60: 52.38585763 | J60: -0.9629635012 | L60: -0.9629635012 | M60: -1.342907618 | N60: -1.838212725 | O60: -2.534089382 | P60: 54.09533945 | Q60: 51.73189916 | R60: 7 | S60: 22 | T60: 12 | U60: 10 | V60: 60 | Y60: -1.342907618 | Z60: FALSE | AA60: FALSE | AL60: FALSE | AM60: FALSE | AN60: FALSE | AO60: FALSE
A61: 29 | B61: =OFFSET(InputPriceData!B$15,CalculationsAndCharts!$A61+$A$11,0,1,1) -> 2015-06-22 | C61: =OFFSET(InputPriceData!G$15,CalculationsAndCharts!$A61+$A$11,IF($C$7,8,0),1,1) -> 1153100 | D61: =OFFSET(InputPriceData!C$15,CalculationsAndCharts!$A61+$A$11,IF($C$7,8,0),1,1) -> 51.16 | E61: =OFFSET(InputPriceData!D$15,CalculationsAndCharts!$A61+$A$11,IF($C$7,8,0),1,1) -> 51.61 | F61: =OFFSET(InputPriceData!E$15,CalculationsAndCharts!$A61+$A$11,IF($C$7,8,0),1,1) -> 50.81 | G61: =OFFSET(InputPriceData!F$15,CalculationsAndCharts!$A61+$A$11,IF($C$7,8,0),1,1) -> 51.11 | H61: 51.41069306 | I61: 52.45752624 | J61: -1.046833179 | L61: -1.046833179 | M61: -1.437893648 | N61: -1.995582434 | O61: -2.708058546 | P61: 54.19183351 | Q61: 51.81845378 | R61: 6 | S61: 24 | T61: 4 | U61: 9 | V61: 64 | Y61: -1.437893648 | Z61: FALSE | AA61: FALSE | AL61: FALSE | AM61: FALSE | AN61: FALSE | AO61: FALSE
A62: 30 | B62: =OFFSET(InputPriceData!B$15,CalculationsAndCharts!$A62+$A$11,0,1,1) -> 2015-06-19 | C62: =OFFSET(InputPriceData!G$15,CalculationsAndCharts!$A62+$A$11,IF($C$7,8,0),1,1) -> 6904900 | D62: =OFFSET(InputPriceData!C$15,CalculationsAndCharts!$A62+$A$11,IF($C$7,8,0),1,1) -> 52.04 | E62: =OFFSET(InputPriceData!D$15,CalculationsAndCharts!$A62+$A$11,IF($C$7,8,0),1,1) -> 52.97 | F62: =OFFSET(InputPriceData!E$15,CalculationsAndCharts!$A62+$A$11,IF($C$7,8,0),1,1) -> 50.64 | G62: =OFFSET(InputPriceData!F$15,CalculationsAndCharts!$A62+$A$11,IF($C$7,8,0),1,1) -> 51.03 | H62: 51.46536453 | I62: 52.56532834 | J62: -1.099963812 | L62: -1.099963812 | M62: -1.535658765 | N62: -2.092565284 | O62: -2.886177574 | P62: 54.30597549 | Q62: 51.9362521 | R62: 5 | S62: 24 | T62: 4 | U62: 8 | V62: 68 | Y62: -1.535658765 | Z62: FALSE | AA62: FALSE | AL62: FALSE | AM62: FALSE | AN62: FALSE | AO62: FALSE
A63: 31 | B63: =OFFSET(InputPriceData!B$15,CalculationsAndCharts!$A63+$A$11,0,1,1) -> 2015-06-18 | C63: =OFFSET(InputPriceData!G$15,CalculationsAndCharts!$A63+$A$11,IF($C$7,8,0),1,1) -> 1753500 | D63: =OFFSET(InputPriceData!C$15,CalculationsAndCharts!$A63+$A$11,IF($C$7,8,0),1,1) -> 52.13 | E63: =OFFSET(InputPriceData!D$15,CalculationsAndCharts!$A63+$A$11,IF($C$7,8,0),1,1) -> 52.48 | F63: =OFFSET(InputPriceData!E$15,CalculationsAndCharts!$A63+$A$11,IF($C$7,8,0),1,1) -> 51.7 | G63: =OFFSET(InputPriceData!F$15,CalculationsAndCharts!$A63+$A$11,IF($C$7,8,0),1,1) -> 51.98 | H63: 51.54452172 | I63: 52.68815461 | J63: -1.143632892 | L63: -1.143632892 | M63: -1.644582503 | N63: -2.170569269 | O63: -3.084580647 | P63: 54.42730792 | Q63: 52.06922689 | R63: 4 | S63: 24 | T63: 4 | U63: 7 | V63: 72 | Y63: -1.644582503 | Z63: FALSE | AA63: FALSE | AL63: FALSE | AM63: FALSE | AN63: FALSE | AO63: FALSE
A64: 32 | B64: =OFFSET(InputPriceData!B$15,CalculationsAndCharts!$A64+$A$11,0,1,1) -> 2015-06-17 | C64: =OFFSET(InputPriceData!G$15,CalculationsAndCharts!$A64+$A$11,IF($C$7,8,0),1,1) -> 2199400 | D64: =OFFSET(InputPriceData!C$15,CalculationsAndCharts!$A64+$A$11,IF($C$7,8,0),1,1) -> 52.46 | E64: =OFFSET(InputPriceData!D$15,CalculationsAndCharts!$A64+$A$11,IF($C$7,8,0),1,1) -> 53.13 | F64: =OFFSET(InputPriceData!E$15,CalculationsAndCharts!$A64+$A$11,IF($C$7,8,0),1,1) -> 51.22 | G64: =OFFSET(InputPriceData!F$15,CalculationsAndCharts!$A64+$A$11,IF($C$7,8,0),1,1) -> 51.76 | H64: 51.46534385 | I64: 52.74480698 | J64: -1.279463131 | L64: -1.279463131 | M64: -1.769819906 | N64: -2.425761329 | O64: -3.313083491 | P64: 54.51794895 | Q64: 52.16084034 | R64: 3 | S64: 24 | T64: 4 | U64: 6 | V64: 76 | Y64: -1.769819906 | Z64: FALSE | AA64: FALSE | AL64: FALSE | AM64: FALSE | AN64: FALSE | AO64: FALSE
A65: 33 | B65: =OFFSET(InputPriceData!B$15,CalculationsAndCharts!$A65+$A$11,0,1,1) -> 2015-06-16 | C65: =OFFSET(InputPriceData!G$15,CalculationsAndCharts!$A65+$A$11,IF($C$7,8,0),1,1) -> 2418500 | D65: =OFFSET(InputPriceData!C$15,CalculationsAndCharts!$A65+$A$11,IF($C$7,8,0),1,1) -> 53.37 | E65: =OFFSET(InputPriceData!D$15,CalculationsAndCharts!$A65+$A$11,IF($C$7,8,0),1,1) -> 53.67 | F65: =OFFSET(InputPriceData!E$15,CalculationsAndCharts!$A65+$A$11,IF($C$7,8,0),1,1) -> 51.97 | G65: =OFFSET(InputPriceData!F$15,CalculationsAndCharts!$A65+$A$11,IF($C$7,8,0),1,1) -> 52.15 | H65: 51.41177 | I65: 52.82359154 | J65: -1.411821535 | L65: -1.411821535 | M65: -1.8924091 | N65: -2.67271023 | O65: -3.534914032 | P65: 54.62009521 | Q65: 52.28213445 | R65: 2 | S65: 23 | T65: 8 | U65: 5 | V65: 80 | Y65: -1.8924091 | Z65: FALSE | AA65: FALSE | AL65: FALSE | AM65: FALSE | AN65: FALSE | AO65: FALSE
A66: 34 | B66: =OFFSET(InputPriceData!B$15,CalculationsAndCharts!$A66+$A$11,0,1,1) -> 2015-06-15 | C66: =OFFSET(InputPriceData!G$15,CalculationsAndCharts!$A66+$A$11,IF($C$7,8,0),1,1) -> 3979900 | D66: =OFFSET(InputPriceData!C$15,CalculationsAndCharts!$A66+$A$11,IF($C$7,8,0),1,1) -> 50.08 | E66: =OFFSET(InputPriceData!D$15,CalculationsAndCharts!$A66+$A$11,IF($C$7,8,0),1,1) -> 53.67 | F66: =OFFSET(InputPriceData!E$15,CalculationsAndCharts!$A66+$A$11,IF($C$7,8,0),1,1) -> 50.03 | G66: =OFFSET(InputPriceData!F$15,CalculationsAndCharts!$A66+$A$11,IF($C$7,8,0),1,1) -> 53.48 | H66: 51.27754637 | I66: 52.87747886 | J66: -1.599932494 | L66: -1.599932494 | M66: -2.012555991 | N66: -3.025735206 | O66: -3.750464982 | P66: 54.71158021 | Q66: 52.40033613 | R66: 1 | S66: 22 | T66: 12 | U66: 4 | V66: 84 | Y66: -2.012555991 | Z66: FALSE | AA66: FALSE | AL66: FALSE | AM66: FALSE | AN66: FALSE | AO66: FALSE
A67: 35 | B67: =OFFSET(InputPriceData!B$15,CalculationsAndCharts!$A67+$A$11,0,1,1) -> 2015-06-12 | C67: =OFFSET(InputPriceData!G$15,CalculationsAndCharts!$A67+$A$11,IF($C$7,8,0),1,1) -> 1135400 | D67: =OFFSET(InputPriceData!C$15,CalculationsAndCharts!$A67+$A$11,IF($C$7,8,0),1,1) -> 50.29 | E67: =OFFSET(InputPriceData!D$15,CalculationsAndCharts!$A67+$A$11,IF($C$7,8,0),1,1) -> 50.98 | F67: =OFFSET(InputPriceData!E$15,CalculationsAndCharts!$A67+$A$11,IF($C$7,8,0),1,1) -> 50.12 | G67: =OFFSET(InputPriceData!F$15,CalculationsAndCharts!$A67+$A$11,IF($C$7,8,0),1,1) -> 50.48 | H67: 50.87710025 | I67: 52.82927717 | J67: -1.952176918 | L67: -1.952176918 | M67: -2.115711865 | N67: -3.695255779 | O67: -3.931647426 | P67: 54.7571943 | Q67: 52.45840336 | S67: 21 | T67: 16 | U67: 3 | V67: 88 | Y67: -2.115711865 | Z67: FALSE | AA67: FALSE | AL67: FALSE | AM67: FALSE | AN67: FALSE | AO67: FALSE
A68: 36 | B68: =OFFSET(InputPriceData!B$15,CalculationsAndCharts!$A68+$A$11,0,1,1) -> 2015-06-11 | C68: =OFFSET(InputPriceData!G$15,CalculationsAndCharts!$A68+$A$11,IF($C$7,8,0),1,1) -> 1168300 | D68: =OFFSET(InputPriceData!C$15,CalculationsAndCharts!$A68+$A$11,IF($C$7,8,0),1,1) -> 50.37 | E68: =OFFSET(InputPriceData!D$15,CalculationsAndCharts!$A68+$A$11,IF($C$7,8,0),1,1) -> 50.8 | F68: =OFFSET(InputPriceData!E$15,CalculationsAndCharts!$A68+$A$11,IF($C$7,8,0),1,1) -> 50.02 | G68: =OFFSET(InputPriceData!F$15,CalculationsAndCharts!$A68+$A$11,IF($C$7,8,0),1,1) -> 50.43 | H68: 50.9493003 | I68: 53.01721934 | J68: -2.067919046 | L68: -2.067919046 | M68: -2.156595602 | N68: -3.900466813 | O68: -3.990745338 | P68: 54.9156089 | Q68: 52.70966387 | S68: 20 | T68: 20 | U68: 2 | V68: 92 | Y68: -2.156595602 | Z68: TRUE | AA68: FALSE | AB68: -5 | AC68: 5 | AF68: 50.02 | AL68: FALSE | AM68: FALSE | AN68: FALSE | AO68: FALSE
A69: 37 | B69: =OFFSET(InputPriceData!B$15,CalculationsAndCharts!$A69+$A$11,0,1,1) -> 2015-06-10 | C69: =OFFSET(InputPriceData!G$15,CalculationsAndCharts!$A69+$A$11,IF($C$7,8,0),1,1) -> 2447000 | D69: =OFFSET(InputPriceData!C$15,CalculationsAndCharts!$A69+$A$11,IF($C$7,8,0),1,1) -> 49.48 | E69: =OFFSET(InputPriceData!D$15,CalculationsAndCharts!$A69+$A$11,IF($C$7,8,0),1,1) -> 51.37 | F69: =OFFSET(InputPriceData!E$15,CalculationsAndCharts!$A69+$A$11,IF($C$7,8,0),1,1) -> 49.22 | G69: =OFFSET(InputPriceData!F$15,CalculationsAndCharts!$A69+$A$11,IF($C$7,8,0),1,1) -> 50.29 | H69: 51.04371853 | I69: 53.22419689 | J69: -2.180478357 | L69: -2.180478357 | M69: -2.178764742 | N69: -4.096780196 | O69: -4.013314969 | P69: 55.08174256 | Q69: 52.98784874 | S69: 24 | T69: 4 | U69: 1 | V69: 96 | Y69: -2.178764742 | Z69: FALSE | AA69: FALSE | AL69: FALSE | AM69: FALSE | AN69: FALSE | AO69: FALSE
A70: 38 | B70: =OFFSET(InputPriceData!B$15,CalculationsAndCharts!$A70+$A$11,0,1,1) -> 2015-06-09 | C70: =OFFSET(InputPriceData!G$15,CalculationsAndCharts!$A70+$A$11,IF($C$7,8,0),1,1) -> 1410500 | D70: =OFFSET(InputPriceData!C$15,CalculationsAndCharts!$A70+$A$11,IF($C$7,8,0),1,1) -> 49.95 | E70: =OFFSET(InputPriceData!D$15,CalculationsAndCharts!$A70+$A$11,IF($C$7,8,0),1,1) -> 50.24 | F70: =OFFSET(InputPriceData!E$15,CalculationsAndCharts!$A70+$A$11,IF($C$7,8,0),1,1) -> 49.01 | G70: =OFFSET(InputPriceData!F$15,CalculationsAndCharts!$A70+$A$11,IF($C$7,8,0),1,1) -> 49.17 | H70: 51.18075826 | I70: 53.45893264 | J70: -2.278174376 | L70: -2.278174376 | M70: -2.178336338 | N70: -4.26154108 | O70: -3.992448662 | P70: 55.25921451 | Q70: 53.29689076 | S70: 24 | T70: 4 | U70: 0 | V70: 100 | Y70: -2.178336338 | Z70: FALSE | AA70: FALSE | AL70: FALSE | AM70: FALSE | AN70: FALSE | AO70: FALSE
A71: 39 | B71: =OFFSET(InputPriceData!B$15,CalculationsAndCharts!$A71+$A$11,0,1,1) -> 2015-06-08 | C71: =OFFSET(InputPriceData!G$15,CalculationsAndCharts!$A71+$A$11,IF($C$7,8,0),1,1) -> 1820200 | D71: =OFFSET(InputPriceData!C$15,CalculationsAndCharts!$A71+$A$11,IF($C$7,8,0),1,1) -> 51.05 | E71: =OFFSET(InputPriceData!D$15,CalculationsAndCharts!$A71+$A$11,IF($C$7,8,0),1,1) -> 51.49 | F71: =OFFSET(InputPriceData!E$15,CalculationsAndCharts!$A71+$A$11,IF($C$7,8,0),1,1) -> 49.61 | G71: =OFFSET(InputPriceData!F$15,CalculationsAndCharts!$A71+$A$11,IF($C$7,8,0),1,1) -> 49.85 | H71: 51.54635068 | I71: 53.80204725 | J71: -2.255696575 | L71: -2.255696575 | M71: -2.153376828 | N71: -4.192585023 | O71: -3.925175558 | P71: 55.48474097 | Q71: 53.69336134 | S71: 24 | T71: 4 | U71: 5 | V71: 80 | Y71: -2.153376828 | Z71: FALSE | AA71: FALSE | AL71: FALSE | AM71: FALSE | AN71: FALSE | AO71: FALSE
A72: 40 | B72: =OFFSET(InputPriceData!B$15,CalculationsAndCharts!$A72+$A$11,0,1,1) -> 2015-06-05 | C72: =OFFSET(InputPriceData!G$15,CalculationsAndCharts!$A72+$A$11,IF($C$7,8,0),1,1) -> 2669500 | D72: =OFFSET(InputPriceData!C$15,CalculationsAndCharts!$A72+$A$11,IF($C$7,8,0),1,1) -> 49.87 | E72: =OFFSET(InputPriceData!D$15,CalculationsAndCharts!$A72+$A$11,IF($C$7,8,0),1,1) -> 51.47 | F72: =OFFSET(InputPriceData!E$15,CalculationsAndCharts!$A72+$A$11,IF($C$7,8,0),1,1) -> 49.38 | G72: =OFFSET(InputPriceData!F$15,CalculationsAndCharts!$A72+$A$11,IF($C$7,8,0),1,1) -> 51.3 | H72: 51.85477807 | I72: 54.11821103 | J72: -2.263432959 | L72: -2.263432959 | M72: -2.127796891 | N72: -4.182386883 | O72: -3.858323191 | P72: 55.69343508 | Q72: 54.07181513 | S72: 24 | T72: 4 | U72: 4 | V72: 84 | Y72: -2.127796891 | Z72: FALSE | AA72: FALSE | AL72: FALSE | AM72: FALSE | AN72: FALSE | AO72: FALSE
A73: 41 | B73: =OFFSET(InputPriceData!B$15,CalculationsAndCharts!$A73+$A$11,0,1,1) -> 2015-06-04 | C73: =OFFSET(InputPriceData!G$15,CalculationsAndCharts!$A73+$A$11,IF($C$7,8,0),1,1) -> 2102700 | D73: =OFFSET(InputPriceData!C$15,CalculationsAndCharts!$A73+$A$11,IF($C$7,8,0),1,1) -> 50.6 | E73: =OFFSET(InputPriceData!D$15,CalculationsAndCharts!$A73+$A$11,IF($C$7,8,0),1,1) -> 50.79 | F73: =OFFSET(InputPriceData!E$15,CalculationsAndCharts!$A73+$A$11,IF($C$7,8,0),1,1) -> 49.5 | G73: =OFFSET(InputPriceData!F$15,CalculationsAndCharts!$A73+$A$11,IF($C$7,8,0),1,1) -> 49.67 | H73: 51.95564681 | I73: 54.34366791 | J73: -2.388021102 | L73: -2.388021102 | M73: -2.093887874 | N73: -4.394295036 | O73: -3.777307268 | P73: 55.8561549 | Q73: 54.38529412 | S73: 24 | T73: 4 | U73: 3 | V73: 88 | Y73: -2.093887874 | Z73: FALSE | AA73: FALSE | AL73: FALSE | AM73: FALSE | AN73: FALSE | AO73: FALSE
A74: 42 | B74: =OFFSET(InputPriceData!B$15,CalculationsAndCharts!$A74+$A$11,0,1,1) -> 2015-06-03 | C74: =OFFSET(InputPriceData!G$15,CalculationsAndCharts!$A74+$A$11,IF($C$7,8,0),1,1) -> 1569800 | D74: =OFFSET(InputPriceData!C$15,CalculationsAndCharts!$A74+$A$11,IF($C$7,8,0),1,1) -> 50.97 | E74: =OFFSET(InputPriceData!D$15,CalculationsAndCharts!$A74+$A$11,IF($C$7,8,0),1,1) -> 51.74 | F74: =OFFSET(InputPriceData!E$15,CalculationsAndCharts!$A74+$A$11,IF($C$7,8,0),1,1) -> 50.61 | G74: =OFFSET(InputPriceData!F$15,CalculationsAndCharts!$A74+$A$11,IF($C$7,8,0),1,1) -> 50.83 | H74: 52.37121896 | I74: 54.71756135 | J74: -2.346342387 | L74: -2.346342387 | M74: -2.020354568 | N74: -4.288097513 | O74: -3.623060326 | P74: 56.08527175 | Q74: 54.81413445 | S74: 24 | T74: 4 | U74: 2 | V74: 92 | Y74: -2.020354568 | Z74: FALSE | AA74: FALSE | AL74: FALSE | AM74: FALSE | AN74: FALSE | AO74: FALSE
A75: 43 | B75: =OFFSET(InputPriceData!B$15,CalculationsAndCharts!$A75+$A$11,0,1,1) -> 2015-06-02 | C75: =OFFSET(InputPriceData!G$15,CalculationsAndCharts!$A75+$A$11,IF($C$7,8,0),1,1) -> 1998600 | D75: =OFFSET(InputPriceData!C$15,CalculationsAndCharts!$A75+$A$11,IF($C$7,8,0),1,1) -> 49.8 | E75: =OFFSET(InputPriceData!D$15,CalculationsAndCharts!$A75+$A$11,IF($C$7,8,0),1,1) -> 51.6 | F75: =OFFSET(InputPriceData!E$15,CalculationsAndCharts!$A75+$A$11,IF($C$7,8,0),1,1) -> 49.4 | G75: =OFFSET(InputPriceData!F$15,CalculationsAndCharts!$A75+$A$11,IF($C$7,8,0),1,1) -> 50.95 | H75: 52.65144059 | I75: 55.02856625 | J75: -2.377125666 | L75: -2.377125666 | M75: -1.938857613 | N75: -4.319803018 | O75: -3.45680103 | P75: 56.27991144 | Q75: 55.19838655 | S75: 24 | T75: 4 | U75: 1 | V75: 96 | Y75: -1.938857613 | Z75: FALSE | AA75: FALSE | AL75: FALSE | AM75: FALSE | AN75: FALSE | AO75: FALSE
A76: 44 | B76: =OFFSET(InputPriceData!B$15,CalculationsAndCharts!$A76+$A$11,0,1,1) -> 2015-06-01 | C76: =OFFSET(InputPriceData!G$15,CalculationsAndCharts!$A76+$A$11,IF($C$7,8,0),1,1) -> 1991100 | D76: =OFFSET(InputPriceData!C$15,CalculationsAndCharts!$A76+$A$11,IF($C$7,8,0),1,1) -> 49.76 | E76: =OFFSET(InputPriceData!D$15,CalculationsAndCharts!$A76+$A$11,IF($C$7,8,0),1,1) -> 50.53 | F76: =OFFSET(InputPriceData!E$15,CalculationsAndCharts!$A76+$A$11,IF($C$7,8,0),1,1) -> 49.26 | G76: =OFFSET(InputPriceData!F$15,CalculationsAndCharts!$A76+$A$11,IF($C$7,8,0),1,1) -> 49.9 | H76: 52.96079342 | I76: 55.35485156 | J76: -2.394058132 | L76: -2.394058132 | M76: -1.829290599 | N76: -4.324929188 | O76: -3.241050533 | P76: 56.47731557 | Q76: 55.59278992 | S76: 24 | T76: 4 | U76: 0 | V76: 100 | Y76: -1.829290599 | Z76: FALSE | AA76: FALSE | AL76: FALSE | AM76: FALSE | AN76: FALSE | AO76: FALSE
A77: 45 | B77: =OFFSET(InputPriceData!B$15,CalculationsAndCharts!$A77+$A$11,0,1,1) -> 2015-05-29 | C77: =OFFSET(InputPriceData!G$15,CalculationsAndCharts!$A77+$A$11,IF($C$7,8,0),1,1) -> 1847900 | D77: =OFFSET(InputPriceData!C$15,CalculationsAndCharts!$A77+$A$11,IF($C$7,8,0),1,1) -> 50.52 | E77: =OFFSET(InputPriceData!D$15,CalculationsAndCharts!$A77+$A$11,IF($C$7,8,0),1,1) -> 50.7 | F77: =OFFSET(InputPriceData!E$15,CalculationsAndCharts!$A77+$A$11,IF($C$7,8,0),1,1) -> 49.7 | G77: =OFFSET(InputPriceData!F$15,CalculationsAndCharts!$A77+$A$11,IF($C$7,8,0),1,1) -> 49.71 | H77: 53.51730132 | I77: 55.79123968 | J77: -2.273938361 | L77: -2.273938361 | M77: -1.688098716 | N77: -4.075798233 | O77: -2.970080869 | P77: 56.72091985 | Q77: 56.06653782 | S77: 24 | T77: 4 | U77: 0 | V77: 100 | Y77: -1.688098716 | Z77: FALSE | AA77: FALSE | AL77: FALSE | AM77: FALSE | AN77: FALSE | AO77: FALSE
A78: 46 | B78: =OFFSET(InputPriceData!B$15,CalculationsAndCharts!$A78+$A$11,0,1,1) -> 2015-05-28 | C78: =OFFSET(InputPriceData!G$15,CalculationsAndCharts!$A78+$A$11,IF($C$7,8,0),1,1) -> 1650800 | D78: =OFFSET(InputPriceData!C$15,CalculationsAndCharts!$A78+$A$11,IF($C$7,8,0),1,1) -> 51.24 | E78: =OFFSET(InputPriceData!D$15,CalculationsAndCharts!$A78+$A$11,IF($C$7,8,0),1,1) -> 51.52 | F78: =OFFSET(InputPriceData!E$15,CalculationsAndCharts!$A78+$A$11,IF($C$7,8,0),1,1) -> 50.45 | G78: =OFFSET(InputPriceData!F$15,CalculationsAndCharts!$A78+$A$11,IF($C$7,8,0),1,1) -> 50.75 | H78: 54.20953792 | I78: 56.27773885 | J78: -2.068200932 | L78: -2.068200932 | M78: -1.541638805 | N78: -3.67498939 | O78: -2.693651528 | P78: 56.98058355 | Q78: 56.57062185 | S78: 23 | T78: 8 | U78: 0 | V78: 100 | Y78: -1.541638805 | Z78: FALSE | AA78: FALSE | AL78: FALSE | AM78: FALSE | AN78: FALSE | AO78: FALSE
A79: 47 | B79: =OFFSET(InputPriceData!B$15,CalculationsAndCharts!$A79+$A$11,0,1,1) -> 2015-05-27 | C79: =OFFSET(InputPriceData!G$15,CalculationsAndCharts!$A79+$A$11,IF($C$7,8,0),1,1) -> 2291600 | D79: =OFFSET(InputPriceData!C$15,CalculationsAndCharts!$A79+$A$11,IF($C$7,8,0),1,1) -> 51.05 | E79: =OFFSET(InputPriceData!D$15,CalculationsAndCharts!$A79+$A$11,IF($C$7,8,0),1,1) -> 51.6 | F79: =OFFSET(InputPriceData!E$15,CalculationsAndCharts!$A79+$A$11,IF($C$7,8,0),1,1) -> 50.56 | G79: =OFFSET(InputPriceData!F$15,CalculationsAndCharts!$A79+$A$11,IF($C$7,8,0),1,1) -> 51.28 | H79: 54.83854482 | I79: 56.71995796 | J79: -1.881413145 | L79: -1.881413145 | M79: -1.409998273 | N79: -3.317021403 | O79: -2.448317063 | P79: 57.2113459 | Q79: 57.03280672 | S79: 22 | T79: 12 | U79: 0 | V79: 100 | Y79: -1.409998273 | Z79: FALSE | AA79: FALSE | AL79: FALSE | AM79: FALSE | AN79: FALSE | AO79: FALSE
A80: 48 | B80: =OFFSET(InputPriceData!B$15,CalculationsAndCharts!$A80+$A$11,0,1,1) -> 2015-05-26 | C80: =OFFSET(InputPriceData!G$15,CalculationsAndCharts!$A80+$A$11,IF($C$7,8,0),1,1) -> 5167600 | D80: =OFFSET(InputPriceData!C$15,CalculationsAndCharts!$A80+$A$11,IF($C$7,8,0),1,1) -> 53.03 | E80: =OFFSET(InputPriceData!D$15,CalculationsAndCharts!$A80+$A$11,IF($C$7,8,0),1,1) -> 53.03 | F80: =OFFSET(InputPriceData!E$15,CalculationsAndCharts!$A80+$A$11,IF($C$7,8,0),1,1) -> 50.71 | G80: =OFFSET(InputPriceData!F$15,CalculationsAndCharts!$A80+$A$11,IF($C$7,8,0),1,1) -> 51.06 | H80: 55.48555297 | I80: 57.1551546 | J80: -1.669601634 | L80: -1.669601634 | M80: -1.292144555 | N80: -2.921174206 | O80: -2.231140978 | P80: 57.43102538 | Q80: 57.48045378 | S80: 21 | T80: 16 | U80: 0 | V80: 100 | Y80: -1.292144555 | Z80: FALSE | AA80: FALSE | AL80: FALSE | AM80: FALSE | AN80: FALSE | AO80: FALSE
A81: 49 | B81: =OFFSET(InputPriceData!B$15,CalculationsAndCharts!$A81+$A$11,0,1,1) -> 2015-05-22 | C81: =OFFSET(InputPriceData!G$15,CalculationsAndCharts!$A81+$A$11,IF($C$7,8,0),1,1) -> 1188900 | D81: =OFFSET(InputPriceData!C$15,CalculationsAndCharts!$A81+$A$11,IF($C$7,8,0),1,1) -> 55.75 | E81: =OFFSET(InputPriceData!D$15,CalculationsAndCharts!$A81+$A$11,IF($C$7,8,0),1,1) -> 56.03 | F81: =OFFSET(InputPriceData!E$15,CalculationsAndCharts!$A81+$A$11,IF($C$7,8,0),1,1) -> 54.9 | G81: =OFFSET(InputPriceData!F$15,CalculationsAndCharts!$A81+$A$11,IF($C$7,8,0),1,1) -> 55.07 | H81: 56.29019896 | I81: 57.64276697 | J81: -1.352568008 | L81: -1.352568008 | M81: -1.197780286 | N81: -2.346466138 | O81: -2.05863267 | P81: 57.66698928 | Q81: 57.95783193 | S81: 20 | T81: 20 | U81: 11 | V81: 56 | Y81: -1.197780286 | Z81: FALSE | AA81: FALSE | AL81: FALSE | AM81: FALSE | AN81: FALSE | AO81: FALSE
A82: 50 | B82: =OFFSET(InputPriceData!B$15,CalculationsAndCharts!$A82+$A$11,0,1,1) -> 2015-05-21 | C82: =OFFSET(InputPriceData!G$15,CalculationsAndCharts!$A82+$A$11,IF($C$7,8,0),1,1) -> 1481500 | D82: =OFFSET(InputPriceData!C$15,CalculationsAndCharts!$A82+$A$11,IF($C$7,8,0),1,1) -> 55.2 | E82: =OFFSET(InputPriceData!D$15,CalculationsAndCharts!$A82+$A$11,IF($C$7,8,0),1,1) -> 56.66 | F82: =OFFSET(InputPriceData!E$15,CalculationsAndCharts!$A82+$A$11,IF($C$7,8,0),1,1) -> 55.15 | G82: =OFFSET(InputPriceData!F$15,CalculationsAndCharts!$A82+$A$11,IF($C$7,8,0),1,1) -> 55.89 | H82: 56.51205332 | I82: 57.84858832 | J82: -1.336535009 | L82: -1.336535009 | M82: -1.159083355 | N82: -2.310402117 | O82: -1.986674304 | P82: 57.76317407 | Q82: 58.21689076 | S82: 19 | T82: 24 | U82: 10 | V82: 60 | Y82: -1.159083355 | Z82: FALSE | AA82: FALSE | AL82: FALSE | AM82: FALSE | AN82: FALSE | AO82: FALSE
A83: 51 | B83: =OFFSET(InputPriceData!B$15,CalculationsAndCharts!$A83+$A$11,0,1,1) -> 2015-05-20 | C83: =OFFSET(InputPriceData!G$15,CalculationsAndCharts!$A83+$A$11,IF($C$7,8,0),1,1) -> 1297000 | D83: =OFFSET(InputPriceData!C$15,CalculationsAndCharts!$A83+$A$11,IF($C$7,8,0),1,1) -> 55.41 | E83: =OFFSET(InputPriceData!D$15,CalculationsAndCharts!$A83+$A$11,IF($C$7,8,0),1,1) -> 55.73 | F83: =OFFSET(InputPriceData!E$15,CalculationsAndCharts!$A83+$A$11,IF($C$7,8,0),1,1) -> 54.7 | G83: =OFFSET(InputPriceData!F$15,CalculationsAndCharts!$A83+$A$11,IF($C$7,8,0),1,1) -> 54.92 | H83: 56.62515392 | I83: 58.00527539 | J83: -1.380121472 | L83: -1.380121472 | M83: -1.114720442 | N83: -2.37930337 | O83: -1.90574235 | P83: 57.83255089 | Q83: 58.438 | S83: 18 | T83: 28 | U83: 9 | V83: 64 | Y83: -1.114720442 | Z83: FALSE | AA83: FALSE | AL83: FALSE | AM83: FALSE | AN83: FALSE | AO83: FALSE
A84: 52 | B84: =OFFSET(InputPriceData!B$15,CalculationsAndCharts!$A84+$A$11,0,1,1) -> 2015-05-19 | C84: =OFFSET(InputPriceData!G$15,CalculationsAndCharts!$A84+$A$11,IF($C$7,8,0),1,1) -> 1326600 | D84: =OFFSET(InputPriceData!C$15,CalculationsAndCharts!$A84+$A$11,IF($C$7,8,0),1,1) -> 56.18 | E84: =OFFSET(InputPriceData!D$15,CalculationsAndCharts!$A84+$A$11,IF($C$7,8,0),1,1) -> 56.54 | F84: =OFFSET(InputPriceData!E$15,CalculationsAndCharts!$A84+$A$11,IF($C$7,8,0),1,1) -> 55 | G84: =OFFSET(InputPriceData!F$15,CalculationsAndCharts!$A84+$A$11,IF($C$7,8,0),1,1) -> 55.28 | H84: 56.9351819 | I84: 58.25209742 | J84: -1.316915518 | L84: -1.316915518 | M84: -1.048370184 | N84: -2.260717771 | O84: -1.787352095 | P84: 57.94042315 | Q84: 58.72447059 | S84: 17 | T84: 32 | U84: 8 | V84: 68 | Y84: -1.048370184 | Z84: FALSE | AA84: FALSE | AL84: FALSE | AM84: FALSE | AN84: FALSE | AO84: FALSE
A85: 53 | B85: =OFFSET(InputPriceData!B$15,CalculationsAndCharts!$A85+$A$11,0,1,1) -> 2015-05-18 | C85: =OFFSET(InputPriceData!G$15,CalculationsAndCharts!$A85+$A$11,IF($C$7,8,0),1,1) -> 1121300 | D85: =OFFSET(InputPriceData!C$15,CalculationsAndCharts!$A85+$A$11,IF($C$7,8,0),1,1) -> 56.82 | E85: =OFFSET(InputPriceData!D$15,CalculationsAndCharts!$A85+$A$11,IF($C$7,8,0),1,1) -> 56.83 | F85: =OFFSET(InputPriceData!E$15,CalculationsAndCharts!$A85+$A$11,IF($C$7,8,0),1,1) -> 56.03 | G85: =OFFSET(InputPriceData!F$15,CalculationsAndCharts!$A85+$A$11,IF($C$7,8,0),1,1) -> 56.18 | H85: 57.23612407 | I85: 58.48986522 | J85: -1.253741148 | L85: -1.253741148 | M85: -0.9812338507 | N85: -2.143518614 | O85: -1.669010676 | P85: 58.03895734 | Q85: 58.99794958 | S85: 16 | T85: 36 | U85: 7 | V85: 72 | Y85: -0.9812338507 | Z85: FALSE | AA85: FALSE | AL85: FALSE | AM85: FALSE | AN85: FALSE | AO85: FALSE
A86: 54 | B86: =OFFSET(InputPriceData!B$15,CalculationsAndCharts!$A86+$A$11,0,1,1) -> 2015-05-15 | C86: =OFFSET(InputPriceData!G$15,CalculationsAndCharts!$A86+$A$11,IF($C$7,8,0),1,1) -> 839600 | D86: =OFFSET(InputPriceData!C$15,CalculationsAndCharts!$A86+$A$11,IF($C$7,8,0),1,1) -> 56.35 | E86: =OFFSET(InputPriceData!D$15,CalculationsAndCharts!$A86+$A$11,IF($C$7,8,0),1,1) -> 56.97 | F86: =OFFSET(InputPriceData!E$15,CalculationsAndCharts!$A86+$A$11,IF($C$7,8,0),1,1) -> 56.15 | G86: =OFFSET(InputPriceData!F$15,CalculationsAndCharts!$A86+$A$11,IF($C$7,8,0),1,1) -> 56.72 | H86: 57.42814663 | I86: 58.67465443 | J86: -1.246507808 | L86: -1.246507808 | M86: -0.9131070263 | N86: -2.124439964 | O86: -1.550383692 | P86: 58.10780761 | Q86: 59.22757983 | S86: 15 | T86: 40 | U86: 6 | V86: 76 | Y86: -0.9131070263 | Z86: FALSE | AA86: FALSE | AL86: FALSE | AM86: FALSE | AN86: FALSE | AO86: FALSE
A87: 55 | B87: =OFFSET(InputPriceData!B$15,CalculationsAndCharts!$A87+$A$11,0,1,1) -> 2015-05-14 | C87: =OFFSET(InputPriceData!G$15,CalculationsAndCharts!$A87+$A$11,IF($C$7,8,0),1,1) -> 1131600 | D87: =OFFSET(InputPriceData!C$15,CalculationsAndCharts!$A87+$A$11,IF($C$7,8,0),1,1) -> 57.05 | E87: =OFFSET(InputPriceData!D$15,CalculationsAndCharts!$A87+$A$11,IF($C$7,8,0),1,1) -> 57.09 | F87: =OFFSET(InputPriceData!E$15,CalculationsAndCharts!$A87+$A$11,IF($C$7,8,0),1,1) -> 56.23 | G87: =OFFSET(InputPriceData!F$15,CalculationsAndCharts!$A87+$A$11,IF($C$7,8,0),1,1) -> 56.56 | H87: 57.55690056 | I87: 58.83102679 | J87: -1.27412623 | L87: -1.27412623 | M87: -0.829756831 | N87: -2.165738556 | O87: -1.406869624 | P87: 58.15920789 | Q87: 59.43121008 | S87: 14 | T87: 44 | U87: 5 | V87: 80 | Y87: -0.829756831 | Z87: FALSE | AA87: FALSE | AL87: FALSE | AM87: FALSE | AN87: FALSE | AO87: FALSE
A88: 56 | B88: =OFFSET(InputPriceData!B$15,CalculationsAndCharts!$A88+$A$11,0,1,1) -> 2015-05-13 | C88: =OFFSET(InputPriceData!G$15,CalculationsAndCharts!$A88+$A$11,IF($C$7,8,0),1,1) -> 1040400 | D88: =OFFSET(InputPriceData!C$15,CalculationsAndCharts!$A88+$A$11,IF($C$7,8,0),1,1) -> 56.14 | E88: =OFFSET(InputPriceData!D$15,CalculationsAndCharts!$A88+$A$11,IF($C$7,8,0),1,1) -> 57.15 | F88: =OFFSET(InputPriceData!E$15,CalculationsAndCharts!$A88+$A$11,IF($C$7,8,0),1,1) -> 56.01 | G88: =OFFSET(InputPriceData!F$15,CalculationsAndCharts!$A88+$A$11,IF($C$7,8,0),1,1) -> 56.77 | H88: 57.7381552 | I88: 59.01270893 | J88: -1.274553727 | L88: -1.274553727 | M88: -0.7186644812 | N88: -2.159795321 | O88: -1.217152391 | P88: 58.21843781 | Q88: 59.64912605 | S88: 13 | T88: 48 | U88: 4 | V88: 84 | Y88: -0.7186644812 | Z88: FALSE | AA88: FALSE | AL88: FALSE | AM88: FALSE | AN88: FALSE | AO88: FALSE
A89: 57 | B89: =OFFSET(InputPriceData!B$15,CalculationsAndCharts!$A89+$A$11,0,1,1) -> 2015-05-12 | C89: =OFFSET(InputPriceData!G$15,CalculationsAndCharts!$A89+$A$11,IF($C$7,8,0),1,1) -> 1259900 | D89: =OFFSET(InputPriceData!C$15,CalculationsAndCharts!$A89+$A$11,IF($C$7,8,0),1,1) -> 56.19 | E89: =OFFSET(InputPriceData!D$15,CalculationsAndCharts!$A89+$A$11,IF($C$7,8,0),1,1) -> 56.47 | F89: =OFFSET(InputPriceData!E$15,CalculationsAndCharts!$A89+$A$11,IF($C$7,8,0),1,1) -> 55.37 | G89: =OFFSET(InputPriceData!F$15,CalculationsAndCharts!$A89+$A$11,IF($C$7,8,0),1,1) -> 56.05 | H89: 57.91418342 | I89: 59.19212564 | J89: -1.277942222 | L89: -1.277942222 | M89: -0.5796921698 | N89: -2.158973357 | O89: -0.9814916578 | P89: 58.27208366 | Q89: 59.86062185 | S89: 12 | T89: 52 | U89: 3 | V89: 88 | Y89: -0.5796921698 | Z89: FALSE | AA89: FALSE | AL89: FALSE | AM89: FALSE | AN89: FALSE | AO89: FALSE
A90: 58 | B90: =OFFSET(InputPriceData!B$15,CalculationsAndCharts!$A90+$A$11,0,1,1) -> 2015-05-11 | C90: =OFFSET(InputPriceData!G$15,CalculationsAndCharts!$A90+$A$11,IF($C$7,8,0),1,1) -> 1300100 | D90: =OFFSET(InputPriceData!C$15,CalculationsAndCharts!$A90+$A$11,IF($C$7,8,0),1,1) -> 56.41 | E90: =OFFSET(InputPriceData!D$15,CalculationsAndCharts!$A90+$A$11,IF($C$7,8,0),1,1) -> 56.93 | F90: =OFFSET(InputPriceData!E$15,CalculationsAndCharts!$A90+$A$11,IF($C$7,8,0),1,1) -> 56.3 | G90: =OFFSET(InputPriceData!F$15,CalculationsAndCharts!$A90+$A$11,IF($C$7,8,0),1,1) -> 56.38 | H90: 58.25312586 | I90: 59.4434957 | J90: -1.190369833 | L90: -1.190369833 | M90: -0.4051296568 | N90: -2.002523269 | O90: -0.687121233 | P90: 58.35438305 | Q90: 60.12413445 | S90: 11 | T90: 56 | U90: 2 | V90: 92 | Y90: -0.4051296568 | Z90: FALSE | AA90: FALSE | AL90: FALSE | AM90: FALSE | AN90: FALSE | AO90: FALSE
A91: 59 | B91: =OFFSET(InputPriceData!B$15,CalculationsAndCharts!$A91+$A$11,0,1,1) -> 2015-05-08 | C91: =OFFSET(InputPriceData!G$15,CalculationsAndCharts!$A91+$A$11,IF($C$7,8,0),1,1) -> 1670800 | D91: =OFFSET(InputPriceData!C$15,CalculationsAndCharts!$A91+$A$11,IF($C$7,8,0),1,1) -> 56.91 | E91: =OFFSET(InputPriceData!D$15,CalculationsAndCharts!$A91+$A$11,IF($C$7,8,0),1,1) -> 56.97 | F91: =OFFSET(InputPriceData!E$15,CalculationsAndCharts!$A91+$A$11,IF($C$7,8,0),1,1) -> 56.1 | G91: =OFFSET(InputPriceData!F$15,CalculationsAndCharts!$A91+$A$11,IF($C$7,8,0),1,1) -> 56.37 | H91: 58.5936942 | I91: 59.68857535 | J91: -1.09488115 | L91: -1.09488115 | M91: -0.2088196127 | N91: -1.834322806 | O91: -0.358270724 | P91: 58.42750835 | Q91: 60.37584874 | S91: 10 | T91: 60 | U91: 1 | V91: 96 | Y91: -0.2088196127 | Z91: FALSE | AA91: FALSE | AL91: FALSE | AM91: FALSE | AN91: FALSE | AO91: FALSE
A92: 60 | B92: =OFFSET(InputPriceData!B$15,CalculationsAndCharts!$A92+$A$11,0,1,1) -> 2015-05-07 | C92: =OFFSET(InputPriceData!G$15,CalculationsAndCharts!$A92+$A$11,IF($C$7,8,0),1,1) -> 2771100 | D92: =OFFSET(InputPriceData!C$15,CalculationsAndCharts!$A92+$A$11,IF($C$7,8,0),1,1) -> 55.29 | E92: =OFFSET(InputPriceData!D$15,CalculationsAndCharts!$A92+$A$11,IF($C$7,8,0),1,1) -> 56.57 | F92: =OFFSET(InputPriceData!E$15,CalculationsAndCharts!$A92+$A$11,IF($C$7,8,0),1,1) -> 54.57 | G92: =OFFSET(InputPriceData!F$15,CalculationsAndCharts!$A92+$A$11,IF($C$7,8,0),1,1) -> 56.32 | H92: 58.99800224 | I92: 59.95406138 | J92: -0.9560591417 | L92: -0.9560591417 | M92: 0.01269577172 | N92: -1.594652839 | O92: 0.0107422965 | P92: 58.50371236 | Q92: 60.63467227 | S92: 9 | T92: 64 | U92: 0 | V92: 100 | Y92: 0.01269577172 | Z92: FALSE | AA92: FALSE | AL92: FALSE | AM92: FALSE | AN92: FALSE | AO92: FALSE
A93: 61 | B93: =OFFSET(InputPriceData!B$15,CalculationsAndCharts!$A93+$A$11,0,1,1) -> 2015-05-06 | C93: =OFFSET(InputPriceData!G$15,CalculationsAndCharts!$A93+$A$11,IF($C$7,8,0),1,1) -> 2207900 | D93: =OFFSET(InputPriceData!C$15,CalculationsAndCharts!$A93+$A$11,IF($C$7,8,0),1,1) -> 57.03 | E93: =OFFSET(InputPriceData!D$15,CalculationsAndCharts!$A93+$A$11,IF($C$7,8,0),1,1) -> 57.22 | F93: =OFFSET(InputPriceData!E$15,CalculationsAndCharts!$A93+$A$11,IF($C$7,8,0),1,1) -> 55.15 | G93: =OFFSET(InputPriceData!F$15,CalculationsAndCharts!$A93+$A$11,IF($C$7,8,0),1,1) -> 55.66 | H93: 59.48491174 | I93: 60.24478629 | J93: -0.7598745542 | L93: -0.7598745542 | M93: 0.2548845001 | N93: -1.261311727 | O93: 0.4120910803 | P93: 58.5845906 | Q93: 60.90304202 | S93: 8 | T93: 68 | U93: 0 | V93: 100 | Y93: 0.2548845001 | Z93: FALSE | AA93: FALSE | AL93: FALSE | AM93: FALSE | AN93: FALSE | AO93: FALSE
A94: 62 | B94: =OFFSET(InputPriceData!B$15,CalculationsAndCharts!$A94+$A$11,0,1,1) -> 2015-05-05 | C94: =OFFSET(InputPriceData!G$15,CalculationsAndCharts!$A94+$A$11,IF($C$7,8,0),1,1) -> 2777200 | D94: =OFFSET(InputPriceData!C$15,CalculationsAndCharts!$A94+$A$11,IF($C$7,8,0),1,1) -> 56.83 | E94: =OFFSET(InputPriceData!D$15,CalculationsAndCharts!$A94+$A$11,IF($C$7,8,0),1,1) -> 57.78 | F94: =OFFSET(InputPriceData!E$15,CalculationsAndCharts!$A94+$A$11,IF($C$7,8,0),1,1) -> 56.5 | G94: =OFFSET(InputPriceData!F$15,CalculationsAndCharts!$A94+$A$11,IF($C$7,8,0),1,1) -> 56.81 | H94: 60.18035023 | I94: 60.61156919 | J94: -0.4312189599 | L94: -0.4312189599 | M94: 0.5085742636 | N94: -0.7114466192 | O94: 0.830441782 | P94: 58.69290877 | Q94: 61.21882353 | S94: 7 | T94: 72 | U94: 1 | V94: 96 | Y94: 0.5085742636 | Z94: FALSE | AA94: FALSE | AL94: FALSE | AM94: FALSE | AN94: FALSE | AO94: FALSE
A95: 63 | B95: =OFFSET(InputPriceData!B$15,CalculationsAndCharts!$A95+$A$11,0,1,1) -> 2015-05-04 | C95: =OFFSET(InputPriceData!G$15,CalculationsAndCharts!$A95+$A$11,IF($C$7,8,0),1,1) -> 2830000 | D95: =OFFSET(InputPriceData!C$15,CalculationsAndCharts!$A95+$A$11,IF($C$7,8,0),1,1) -> 57.13 | E95: =OFFSET(InputPriceData!D$15,CalculationsAndCharts!$A95+$A$11,IF($C$7,8,0),1,1) -> 57.82 | F95: =OFFSET(InputPriceData!E$15,CalculationsAndCharts!$A95+$A$11,IF($C$7,8,0),1,1) -> 56.32 | G95: =OFFSET(InputPriceData!F$15,CalculationsAndCharts!$A95+$A$11,IF($C$7,8,0),1,1) -> 56.78 | H95: 60.79314119 | I95: 60.91569473 | J95: -0.1225535438 | L95: -0.1225535438 | M95: 0.7435225695 | N95: -0.2011854979 | O95: 1.215913882 | P95: 58.76264613 | Q95: 61.47507563 | S95: 6 | T95: 76 | U95: 0 | V95: 100 | Y95: 0.7435225695 | Z95: FALSE | AA95: FALSE | AL95: FALSE | AM95: FALSE | AN95: FALSE | AO95: FALSE
A96: 64 | B96: =OFFSET(InputPriceData!B$15,CalculationsAndCharts!$A96+$A$11,0,1,1) -> 2015-05-01 | C96: =OFFSET(InputPriceData!G$15,CalculationsAndCharts!$A96+$A$11,IF($C$7,8,0),1,1) -> 6218700 | D96: =OFFSET(InputPriceData!C$15,CalculationsAndCharts!$A96+$A$11,IF($C$7,8,0),1,1) -> 57.5 | E96: =OFFSET(InputPriceData!D$15,CalculationsAndCharts!$A96+$A$11,IF($C$7,8,0),1,1) -> 59.97 | F96: =OFFSET(InputPriceData!E$15,CalculationsAndCharts!$A96+$A$11,IF($C$7,8,0),1,1) -> 56.6 | G96: =OFFSET(InputPriceData!F$15,CalculationsAndCharts!$A96+$A$11,IF($C$7,8,0),1,1) -> 57.34 | H96: 61.52280322 | I96: 61.24655031 | J96: 0.2762529116 | K96: 0.2762529116 | M96: 0.9600415978 | N96: 0.4510505657 | O96: 1.570188727 | P96: 58.83607747 | Q96: 61.73882353 | S96: 5 | T96: 80 | U96: 0 | V96: 100 | Y96: 0.9600415978 | Z96: FALSE | AA96: FALSE | AL96: FALSE | AM96: FALSE | AN96: TRUE | AO96: TRUE
A97: 65 | B97: =OFFSET(InputPriceData!B$15,CalculationsAndCharts!$A97+$A$11,0,1,1) -> 2015-04-30 | C97: =OFFSET(InputPriceData!G$15,CalculationsAndCharts!$A97+$A$11,IF($C$7,8,0),1,1) -> 3440700 | D97: =OFFSET(InputPriceData!C$15,CalculationsAndCharts!$A97+$A$11,IF($C$7,8,0),1,1) -> 61.73 | E97: =OFFSET(InputPriceData!D$15,CalculationsAndCharts!$A97+$A$11,IF($C$7,8,0),1,1) -> 62.36 | F97: =OFFSET(InputPriceData!E$15,CalculationsAndCharts!$A97+$A$11,IF($C$7,8,0),1,1) -> 59.36 | G97: =OFFSET(InputPriceData!F$15,CalculationsAndCharts!$A97+$A$11,IF($C$7,8,0),1,1) -> 59.67 | H97: =IF($A97>$A$8,NA(),IF(A97=$A$8,G97,G97*$C$16+H98*$D$16)) -> 62.2833129 | I97: =IF(A97>$A$8,NA(),IF(A97=$A$8,G97,G97*$C$17+I98*$D$17)) -> 61.55907433 | J97: 0.7242385633 | K97: 0.7242385633 | M97: =IF($A97>$A$8,NA(),IF(A97=$A$8,J97,J97*$C$18+M98*$D$18)) -> 1.130988769 | N97: 1.176493589 | O97: 1.849973268 | P97: =IF(A97>$A$8,NA(),IF(A97=$A$8,G97,G97*$C$19+P98*$D$19)) -> 58.89148774 | Q97: 61.97605042 | R97: =IF(A97>$A$20,"",$A$20+1-$A97) ->  | S97: =MATCH(MAX(OFFSET(E97,0,0,$A$21,1)),OFFSET(E97,0,0,$A$21,1),0)-1 -> 4 | T97: =(($A$21 - (MATCH(MAX(OFFSET(E97,0,0,$A$21,1)),OFFSET(E97,0,0,$A$21,1),0)-1)) / $A$21) * 100 -> 84 | U97: =MATCH(MIN(OFFSET(F97,0,0,$A$21,1)),OFFSET(F97,0,0,$A$21,1),0)-1 -> 24 | V97: =(($A$21 - (MATCH(MIN(OFFSET(F97,0,0,$A$21,1)),OFFSET(F97,0,0,$A$21,1),0)-1)) / $A$21) * 100 -> 4 | Y97: =IF($S$9,M97,NA()) -> 1.130988769 | Z97: FALSE | AA97: FALSE | AB97: =IF(AND($S$9,$S$10,$Z97),$AV$33,NA()) ->  | AC97: =IF(AND($S$9,$S$10,$Z97),$AV$34,NA()) ->  | AD97: =IF(AND($S$9,$S$10,$AA97),$AV$33,NA()) ->  | AE97: =IF(AND($S$9,$S$10,$AA97),$AV$34,NA()) ->  | AF97: =IF(AND($S$9,$S$10,Z97),F97,NA()) ->  | AG97: =IF(AND($S$9,$S$10,AA97),E97,NA()) ->  | AH97: =IF(OR(NOT($S$6),$A97>$A$8),NA(),IF($J97>=0,$F$11,NA())) ->  | AI97: =IF(OR(NOT($S$6),$A97>$A$8),NA(),IF($J97<0,$F$11,NA())) ->  | AL97: FALSE | AM97: FALSE | AN97: TRUE | AO97: FALSE | AP97: =IF(AND($S$16,AM97),V97,NA()) ->  | AQ97: =IF(AND($S$16,AO97),T97,NA()) ->  | AR97: =IF(AND($S$16,$S$17,AM97),F97,NA()) ->  | AS97: =IF(AND($S$16,$S$17,AO97),E97,NA()) -> 
A98: 66 | B98: =OFFSET(InputPriceData!B$15,CalculationsAndCharts!$A98+$A$11,0,1,1) -> 2015-04-29 | C98: =OFFSET(InputPriceData!G$15,CalculationsAndCharts!$A98+$A$11,IF($C$7,8,0),1,1) -> 1979700 | D98: =OFFSET(InputPriceData!C$15,CalculationsAndCharts!$A98+$A$11,IF($C$7,8,0),1,1) -> 63.13 | E98: =OFFSET(InputPriceData!D$15,CalculationsAndCharts!$A98+$A$11,IF($C$7,8,0),1,1) -> 63.47 | F98: =OFFSET(InputPriceData!E$15,CalculationsAndCharts!$A98+$A$11,IF($C$7,8,0),1,1) -> 61.69 | G98: =OFFSET(InputPriceData!F$15,CalculationsAndCharts!$A98+$A$11,IF($C$7,8,0),1,1) -> 61.94 | H98: 62.75846069 | I98: 61.71020028 | J98: =H98-I98 -> 1.048260416 | K98: =IF($A98>$A$8,NA(),IF($J98>=0,$J98,NA())) -> 1.048260416 | L98: =IF($A98>$A$8,NA(),IF($J98<0,$J98,NA())) ->  | M98: 1.232676321 | N98: =(H98-I98)/I98*100 -> 1.69868257 | O98: =IF($A98>$A$8,NA(),IF($A98=$A$8,N98,N98*$C$18+O99*$D$18)) -> 2.018343187 | P98: 58.86265396 | Q98: =SUMPRODUCT(OFFSET(G98,0,0,$A$20,1),OFFSET($R$33,0,0,A$20,1))/$R$31 -> 62.08171429 | S98: 3 | T98: 88 | U98: 23 | V98: 8 | W98: =IF($S$3,P98,NA()) ->  | X98: =IF($S$3,Q98,NA()) ->  | Y98: 1.232676321 | Z98: FALSE | AA98: FALSE | AJ98: =IF(AND($S$3,$S$4,G98<Q98,E98>=P98),E98,NA()) ->  | AK98: =IF(AND($S$3,$S$4,P98>Q98,G98>Q98),F98,NA()) ->  | AL98: =IF(AND(T99<V99,T98>V98),TRUE,IF(T99=100,FALSE,AL99)) -> FALSE | AM98: =AND(AL98,T98=100) -> FALSE | AN98: =IF(AND(T99>V99,T98<V98),TRUE,IF(V99=100,FALSE,AN99)) -> TRUE | AO98: =AND(AN98,V98=100) -> FALSE
A99: 67 | B99: =OFFSET(InputPriceData!B$15,CalculationsAndCharts!$A99+$A$11,0,1,1) -> 2015-04-28 | C99: =OFFSET(InputPriceData!G$15,CalculationsAndCharts!$A99+$A$11,IF($C$7,8,0),1,1) -> 1585300 | D99: =OFFSET(InputPriceData!C$15,CalculationsAndCharts!$A99+$A$11,IF($C$7,8,0),1,1) -> 62.87 | E99: =OFFSET(InputPriceData!D$15,CalculationsAndCharts!$A99+$A$11,IF($C$7,8,0),1,1) -> 63.71 | F99: =OFFSET(InputPriceData!E$15,CalculationsAndCharts!$A99+$A$11,IF($C$7,8,0),1,1) -> 62.1 | G99: =OFFSET(InputPriceData!F$15,CalculationsAndCharts!$A99+$A$11,IF($C$7,8,0),1,1) -> 63.57 | H99: 62.90727173 | I99: 61.6918163 | J99: 1.215455429 | K99: 1.215455429 | M99: 1.278780297 | N99: 1.970205291 | O99: 2.098258342 | P99: 58.74867818 | Q99: 62.05321008 | S99: 2 | T99: 92 | U99: 22 | V99: 12 | Y99: 1.278780297 | Z99: FALSE | AA99: FALSE | AL99: FALSE | AM99: FALSE | AN99: TRUE | AO99: FALSE
A100: 68 | B100: =OFFSET(InputPriceData!B$15,CalculationsAndCharts!$A100+$A$11,0,1,1) -> 2015-04-27 | C100: =OFFSET(InputPriceData!G$15,CalculationsAndCharts!$A100+$A$11,IF($C$7,8,0),1,1) -> 1332500 | D100: =OFFSET(InputPriceData!C$15,CalculationsAndCharts!$A100+$A$11,IF($C$7,8,0),1,1) -> 63.86 | E100: =OFFSET(InputPriceData!D$15,CalculationsAndCharts!$A100+$A$11,IF($C$7,8,0),1,1) -> 64.25 | F100: =OFFSET(InputPriceData!E$15,CalculationsAndCharts!$A100+$A$11,IF($C$7,8,0),1,1) -> 62.71 | G100: =OFFSET(InputPriceData!F$15,CalculationsAndCharts!$A100+$A$11,IF($C$7,8,0),1,1) -> 62.92 | H100: 62.78677568 | I100: 61.54156161 | J100: 1.245214076 | K100: 1.245214076 | M100: 1.294611514 | N100: 2.023370944 | O100: 2.130271604 | P100: 58.5701107 | Q100: 61.92532773 | S100: 1 | T100: 96 | U100: 21 | V100: 16 | Y100: 1.294611514 | Z100: FALSE | AA100: TRUE | AD100: -5 | AE100: 5 | AG100: 64.25 | AL100: FALSE | AM100: FALSE | AN100: TRUE | AO100: FALSE
A101: 69 | B101: =OFFSET(InputPriceData!B$15,CalculationsAndCharts!$A101+$A$11,0,1,1) -> 2015-04-24 | C101: =OFFSET(InputPriceData!G$15,CalculationsAndCharts!$A101+$A$11,IF($C$7,8,0),1,1) -> 1507300 | D101: =OFFSET(InputPriceData!C$15,CalculationsAndCharts!$A101+$A$11,IF($C$7,8,0),1,1) -> 65.42 | E101: =OFFSET(InputPriceData!D$15,CalculationsAndCharts!$A101+$A$11,IF($C$7,8,0),1,1) -> 65.5 | F101: =OFFSET(InputPriceData!E$15,CalculationsAndCharts!$A101+$A$11,IF($C$7,8,0),1,1) -> 63.16 | G101: =OFFSET(InputPriceData!F$15,CalculationsAndCharts!$A101+$A$11,IF($C$7,8,0),1,1) -> 63.43 | H101: 62.76255308 | I101: 61.43128653 | J101: 1.331266544 | K101: 1.331266544 | M101: 1.306960874 | N101: 2.167082311 | O101: 2.15699677 | P101: 58.40900369 | Q101: 61.83146218 | S101: 0 | T101: 100 | U101: 20 | V101: 20 | Y101: 1.306960874 | Z101: FALSE | AA101: FALSE | AL101: FALSE | AM101: FALSE | AN101: TRUE | AO101: FALSE
A102: 70 | B102: =OFFSET(InputPriceData!B$15,CalculationsAndCharts!$A102+$A$11,0,1,1) -> 2015-04-23 | C102: =OFFSET(InputPriceData!G$15,CalculationsAndCharts!$A102+$A$11,IF($C$7,8,0),1,1) -> 1584100 | D102: =OFFSET(InputPriceData!C$15,CalculationsAndCharts!$A102+$A$11,IF($C$7,8,0),1,1) -> 64 | E102: =OFFSET(InputPriceData!D$15,CalculationsAndCharts!$A102+$A$11,IF($C$7,8,0),1,1) -> 65.09 | F102: =OFFSET(InputPriceData!E$15,CalculationsAndCharts!$A102+$A$11,IF($C$7,8,0),1,1) -> 63.3 | G102: =OFFSET(InputPriceData!F$15,CalculationsAndCharts!$A102+$A$11,IF($C$7,8,0),1,1) -> 64.75 | H102: 62.64119909 | I102: 61.27138946 | J102: 1.369809635 | K102: 1.369809635 | M102: 1.300884456 | N102: 2.235643173 | O102: 2.154475384 | P102: 58.22304087 | Q102: 61.70371429 | S102: 0 | T102: 100 | U102: 19 | V102: 24 | Y102: 1.300884456 | Z102: TRUE | AA102: FALSE | AB102: -5 | AC102: 5 | AF102: 63.3 | AL102: FALSE | AM102: FALSE | AN102: TRUE | AO102: FALSE
A103: 71 | B103: =OFFSET(InputPriceData!B$15,CalculationsAndCharts!$A103+$A$11,0,1,1) -> 2015-04-22 | C103: =OFFSET(InputPriceData!G$15,CalculationsAndCharts!$A103+$A$11,IF($C$7,8,0),1,1) -> 1934600 | D103: =OFFSET(InputPriceData!C$15,CalculationsAndCharts!$A103+$A$11,IF($C$7,8,0),1,1) -> 63.44 | E103: =OFFSET(InputPriceData!D$15,CalculationsAndCharts!$A103+$A$11,IF($C$7,8,0),1,1) -> 64.4 | F103: =OFFSET(InputPriceData!E$15,CalculationsAndCharts!$A103+$A$11,IF($C$7,8,0),1,1) -> 63 | G103: =OFFSET(InputPriceData!F$15,CalculationsAndCharts!$A103+$A$11,IF($C$7,8,0),1,1) -> 63.89 | H103: 62.25778074 | I103: 60.99310061 | J103: 1.264680132 | K103: 1.264680132 | M103: 1.283653161 | N103: 2.073480638 | O103: 2.134183437 | P103: 57.98130164 | Q103: 61.49534454 | S103: 0 | T103: 100 | U103: 18 | V103: 28 | Y103: 1.283653161 | Z103: FALSE | AA103: FALSE | AL103: FALSE | AM103: FALSE | AN103: TRUE | AO103: FALSE
A104: 72 | B104: =OFFSET(InputPriceData!B$15,CalculationsAndCharts!$A104+$A$11,0,1,1) -> 2015-04-21 | C104: =OFFSET(InputPriceData!G$15,CalculationsAndCharts!$A104+$A$11,IF($C$7,8,0),1,1) -> 1453900 | D104: =OFFSET(InputPriceData!C$15,CalculationsAndCharts!$A104+$A$11,IF($C$7,8,0),1,1) -> 62.45 | E104: =OFFSET(InputPriceData!D$15,CalculationsAndCharts!$A104+$A$11,IF($C$7,8,0),1,1) -> 63.12 | F104: =OFFSET(InputPriceData!E$15,CalculationsAndCharts!$A104+$A$11,IF($C$7,8,0),1,1) -> 61.8 | G104: =OFFSET(InputPriceData!F$15,CalculationsAndCharts!$A104+$A$11,IF($C$7,8,0),1,1) -> 63.11 | H104: 61.96101361 | I104: 60.76134866 | J104: 1.199664946 | K104: 1.199664946 | M104: 1.288396419 | N104: 1.974388278 | O104: 2.149359137 | P104: 57.76246096 | Q104: 61.33159664 | S104: 4 | T104: 84 | U104: 17 | V104: 32 | Y104: 1.288396419 | Z104: FALSE | AA104: FALSE | AL104: FALSE | AM104: FALSE | AN104: TRUE | AO104: FALSE
A105: 73 | B105: =OFFSET(InputPriceData!B$15,CalculationsAndCharts!$A105+$A$11,0,1,1) -> 2015-04-20 | C105: =OFFSET(InputPriceData!G$15,CalculationsAndCharts!$A105+$A$11,IF($C$7,8,0),1,1) -> 1077500 | D105: =OFFSET(InputPriceData!C$15,CalculationsAndCharts!$A105+$A$11,IF($C$7,8,0),1,1) -> 62.26 | E105: =OFFSET(InputPriceData!D$15,CalculationsAndCharts!$A105+$A$11,IF($C$7,8,0),1,1) -> 62.57 | F105: =OFFSET(InputPriceData!E$15,CalculationsAndCharts!$A105+$A$11,IF($C$7,8,0),1,1) -> 61.52 | G105: =OFFSET(InputPriceData!F$15,CalculationsAndCharts!$A105+$A$11,IF($C$7,8,0),1,1) -> 62.25 | H105: 61.75210699 | I105: 60.57345655 | J105: 1.178650436 | K105: 1.178650436 | M105: 1.310579287 | N105: 1.945820006 | O105: 2.193101851 | P105: 57.56440396 | Q105: 61.20835294 | S105: 3 | T105: 88 | U105: 16 | V105: 36 | Y105: 1.310579287 | Z105: FALSE | AA105: FALSE | AL105: FALSE | AM105: FALSE | AN105: TRUE | AO105: FALSE
A106: 74 | B106: =OFFSET(InputPriceData!B$15,CalculationsAndCharts!$A106+$A$11,0,1,1) -> 2015-04-17 | C106: =OFFSET(InputPriceData!G$15,CalculationsAndCharts!$A106+$A$11,IF($C$7,8,0),1,1) -> 1798100 | D106: =OFFSET(InputPriceData!C$15,CalculationsAndCharts!$A106+$A$11,IF($C$7,8,0),1,1) -> 62.34 | E106: =OFFSET(InputPriceData!D$15,CalculationsAndCharts!$A106+$A$11,IF($C$7,8,0),1,1) -> 62.84 | F106: =OFFSET(InputPriceData!E$15,CalculationsAndCharts!$A106+$A$11,IF($C$7,8,0),1,1) -> 61.28 | G106: =OFFSET(InputPriceData!F$15,CalculationsAndCharts!$A106+$A$11,IF($C$7,8,0),1,1) -> 61.94 | H106: 61.66158099 | I106: 60.43933308 | J106: 1.22224791 | K106: 1.22224791 | M106: 1.3435615 | N106: 2.022272331 | O106: 2.254922313 | P106: 57.39086336 | Q106: 61.13233613 | S106: 2 | T106: 92 | U106: 15 | V106: 40 | Y106: 1.3435615 | Z106: FALSE | AA106: FALSE | AL106: FALSE | AM106: FALSE | AN106: TRUE | AO106: FALSE
A107: 75 | B107: =OFFSET(InputPriceData!B$15,CalculationsAndCharts!$A107+$A$11,0,1,1) -> 2015-04-16 | C107: =OFFSET(InputPriceData!G$15,CalculationsAndCharts!$A107+$A$11,IF($C$7,8,0),1,1) -> 1939300 | D107: =OFFSET(InputPriceData!C$15,CalculationsAndCharts!$A107+$A$11,IF($C$7,8,0),1,1) -> 63.71 | E107: =OFFSET(InputPriceData!D$15,CalculationsAndCharts!$A107+$A$11,IF($C$7,8,0),1,1) -> 63.71 | F107: =OFFSET(InputPriceData!E$15,CalculationsAndCharts!$A107+$A$11,IF($C$7,8,0),1,1) -> 62.13 | G107: =OFFSET(InputPriceData!F$15,CalculationsAndCharts!$A107+$A$11,IF($C$7,8,0),1,1) -> 62.89 | H107: 61.61095935 | I107: 60.31927973 | J107: 1.291679625 | K107: 1.291679625 | M107: 1.373889897 | N107: 2.141404259 | O107: 2.313084808 | P107: 57.22237682 | Q107: 61.07035294 | S107: 1 | T107: 96 | U107: 14 | V107: 44 | Y107: 1.373889897 | Z107: FALSE | AA107: FALSE | AL107: FALSE | AM107: FALSE | AN107: TRUE | AO107: FALSE
A108: 76 | B108: =OFFSET(InputPriceData!B$15,CalculationsAndCharts!$A108+$A$11,0,1,1) -> 2015-04-15 | C108: =OFFSET(InputPriceData!G$15,CalculationsAndCharts!$A108+$A$11,IF($C$7,8,0),1,1) -> 3716800 | D108: =OFFSET(InputPriceData!C$15,CalculationsAndCharts!$A108+$A$11,IF($C$7,8,0),1,1) -> 61.46 | E108: =OFFSET(InputPriceData!D$15,CalculationsAndCharts!$A108+$A$11,IF($C$7,8,0),1,1) -> 64.09 | F108: =OFFSET(InputPriceData!E$15,CalculationsAndCharts!$A108+$A$11,IF($C$7,8,0),1,1) -> 60.9 | G108: =OFFSET(InputPriceData!F$15,CalculationsAndCharts!$A108+$A$11,IF($C$7,8,0),1,1) -> 63.74 | H108: 61.37840651 | I108: 60.1136221 | J108: 1.264784402 | K108: 1.264784402 | M108: 1.394442465 | N108: 2.103989674 | O108: 2.356004945 | P108: 57.01246485 | Q108: 60.9470084 | S108: 0 | T108: 100 | U108: 13 | V108: 48 | Y108: 1.394442465 | Z108: FALSE | AA108: FALSE | AL108: TRUE | AM108: TRUE | AN108: TRUE | AO108: FALSE
A109: 77 | B109: =OFFSET(InputPriceData!B$15,CalculationsAndCharts!$A109+$A$11,0,1,1) -> 2015-04-14 | C109: =OFFSET(InputPriceData!G$15,CalculationsAndCharts!$A109+$A$11,IF($C$7,8,0),1,1) -> 918300 | D109: =OFFSET(InputPriceData!C$15,CalculationsAndCharts!$A109+$A$11,IF($C$7,8,0),1,1) -> 61.54 | E109: =OFFSET(InputPriceData!D$15,CalculationsAndCharts!$A109+$A$11,IF($C$7,8,0),1,1) -> 61.7 | F109: =OFFSET(InputPriceData!E$15,CalculationsAndCharts!$A109+$A$11,IF($C$7,8,0),1,1) -> 60.52 | G109: =OFFSET(InputPriceData!F$15,CalculationsAndCharts!$A109+$A$11,IF($C$7,8,0),1,1) -> 61.07 | H109: 60.94902587 | I109: 59.82351187 | J109: 1.125513998 | K109: 1.125513998 | M109: 1.426856981 | N109: 1.881390715 | O109: 2.419008763 | P109: 56.76329688 | Q109: 60.76635294 | S109: 14 | T109: 44 | U109: 12 | V109: 52 | Y109: 1.426856981 | Z109: FALSE | AA109: FALSE | AL109: FALSE | AM109: FALSE | AN109: TRUE | AO109: FALSE
A110: 78 | B110: =OFFSET(InputPriceData!B$15,CalculationsAndCharts!$A110+$A$11,0,1,1) -> 2015-04-13 | C110: =OFFSET(InputPriceData!G$15,CalculationsAndCharts!$A110+$A$11,IF($C$7,8,0),1,1) -> 823500 | D110: =OFFSET(InputPriceData!C$15,CalculationsAndCharts!$A110+$A$11,IF($C$7,8,0),1,1) -> 61.4 | E110: =OFFSET(InputPriceData!D$15,CalculationsAndCharts!$A110+$A$11,IF($C$7,8,0),1,1) -> 61.7 | F110: =OFFSET(InputPriceData!E$15,CalculationsAndCharts!$A110+$A$11,IF($C$7,8,0),1,1) -> 61.09 | G110: =OFFSET(InputPriceData!F$15,CalculationsAndCharts!$A110+$A$11,IF($C$7,8,0),1,1) -> 61.41 | H110: 60.92703057 | I110: 59.72379282 | J110: 1.203237752 | K110: 1.203237752 | M110: 1.502192727 | N110: 2.014670695 | O110: 2.553413275 | P110: 56.60378936 | Q110: 60.72756303 | S110: 13 | T110: 48 | U110: 11 | V110: 56 | Y110: 1.502192727 | Z110: =AND(J111<M111,J110>M110) -> FALSE | AA110: =AND(J111>M111,J110<M110) -> FALSE | AL110: FALSE | AM110: FALSE | AN110: TRUE | AO110: FALSE
A111: 79 | B111: =OFFSET(InputPriceData!B$15,CalculationsAndCharts!$A111+$A$11,0,1,1) -> 2015-04-10 | C111: =OFFSET(InputPriceData!G$15,CalculationsAndCharts!$A111+$A$11,IF($C$7,8,0),1,1) -> 774000 | D111: =OFFSET(InputPriceData!C$15,CalculationsAndCharts!$A111+$A$11,IF($C$7,8,0),1,1) -> 61.36 | E111: =OFFSET(InputPriceData!D$15,CalculationsAndCharts!$A111+$A$11,IF($C$7,8,0),1,1) -> 61.7 | F111: =OFFSET(InputPriceData!E$15,CalculationsAndCharts!$A111+$A$11,IF($C$7,8,0),1,1) -> 61.02 | G111: =OFFSET(InputPriceData!F$15,CalculationsAndCharts!$A111+$A$11,IF($C$7,8,0),1,1) -> 61.3 | H111: 60.83921795 | I111: 59.58889625 | J111: 1.250321703 | K111: 1.250321703 | M111: 1.576931471 | N111: 2.098246119 | O111: 2.68809892 | P111: 56.42578156 | Q111: 60.64956303 | S111: 12 | T111: 52 | U111: 10 | V111: 60 | Y111: 1.576931471 | Z111: FALSE | AA111: FALSE | AL111: FALSE | AM111: FALSE | AN111: TRUE | AO111: FALSE
A112: 80 | B112: =OFFSET(InputPriceData!B$15,CalculationsAndCharts!$A112+$A$11,0,1,1) -> 2015-04-09 | C112: =OFFSET(InputPriceData!G$15,CalculationsAndCharts!$A112+$A$11,IF($C$7,8,0),1,1) -> 968200 | D112: =OFFSET(InputPriceData!C$15,CalculationsAndCharts!$A112+$A$11,IF($C$7,8,0),1,1) -> 60.5 | E112: =OFFSET(InputPriceData!D$15,CalculationsAndCharts!$A112+$A$11,IF($C$7,8,0),1,1) -> 61.49 | F112: =OFFSET(InputPriceData!E$15,CalculationsAndCharts!$A112+$A$11,IF($C$7,8,0),1,1) -> 60.5 | G112: =OFFSET(InputPriceData!F$15,CalculationsAndCharts!$A112+$A$11,IF($C$7,8,0),1,1) -> 61.18 | H112: 60.7554394 | I112: 59.45200795 | J112: 1.303431449 | K112: 1.303431449 | M112: 1.658583913 | N112: 2.192409464 | O112: 2.83556212 | P112: 56.24525495 | Q112: 60.55721008 | S112: 11 | T112: 56 | U112: 9 | V112: 64 | Y112: 1.658583913 | Z112: FALSE | AA112: FALSE | AL112: FALSE | AM112: FALSE | AN112: TRUE | AO112: FALSE
A113: 81 | B113: =OFFSET(InputPriceData!B$15,CalculationsAndCharts!$A113+$A$11,0,1,1) -> 2015-04-08 | C113: =OFFSET(InputPriceData!G$15,CalculationsAndCharts!$A113+$A$11,IF($C$7,8,0),1,1) -> 1893900 | D113: =OFFSET(InputPriceData!C$15,CalculationsAndCharts!$A113+$A$11,IF($C$7,8,0),1,1) -> 61.58 | E113: =OFFSET(InputPriceData!D$15,CalculationsAndCharts!$A113+$A$11,IF($C$7,8,0),1,1) -> 61.77 | F113: =OFFSET(InputPriceData!E$15,CalculationsAndCharts!$A113+$A$11,IF($C$7,8,0),1,1) -> 60.01 | G113: =OFFSET(InputPriceData!F$15,CalculationsAndCharts!$A113+$A$11,IF($C$7,8,0),1,1) -> 60.65 | H113: 60.67824656 | I113: 59.31376858 | J113: 1.364477976 | K113: 1.364477976 | M113: 1.747372029 | N113: 2.300440536 | O113: 2.996350285 | P113: 56.06248661 | Q113: 60.4502521 | S113: 10 | T113: 60 | U113: 8 | V113: 68 | Y113: 1.747372029 | Z113: FALSE | AA113: FALSE | AL113: FALSE | AM113: FALSE | AN113: TRUE | AO113: FALSE
A114: 82 | B114: =OFFSET(InputPriceData!B$15,CalculationsAndCharts!$A114+$A$11,0,1,1) -> 2015-04-07 | C114: =OFFSET(InputPriceData!G$15,CalculationsAndCharts!$A114+$A$11,IF($C$7,8,0),1,1) -> 1456000 | D114: =OFFSET(InputPriceData!C$15,CalculationsAndCharts!$A114+$A$11,IF($C$7,8,0),1,1) -> 61.56 | E114: =OFFSET(InputPriceData!D$15,CalculationsAndCharts!$A114+$A$11,IF($C$7,8,0),1,1) -> 62.65 | F114: =OFFSET(InputPriceData!E$15,CalculationsAndCharts!$A114+$A$11,IF($C$7,8,0),1,1) -> 61.24 | G114: =OFFSET(InputPriceData!F$15,CalculationsAndCharts!$A114+$A$11,IF($C$7,8,0),1,1) -> 61.27 | H114: 60.6833823 | I114: 59.20687007 | J114: 1.476512227 | K114: 1.476512227 | M114: 1.843095543 | N114: 2.493819088 | O114: 3.170327722 | P114: 55.89257871 | Q114: 60.35373109 | S114: 9 | T114: 64 | U114: 7 | V114: 72 | Y114: 1.843095543 | Z114: FALSE | AA114: FALSE | AL114: FALSE | AM114: FALSE | AN114: TRUE | AO114: FALSE
A115: 83 | B115: =OFFSET(InputPriceData!B$15,CalculationsAndCharts!$A115+$A$11,0,1,1) -> 2015-04-06 | C115: =OFFSET(InputPriceData!G$15,CalculationsAndCharts!$A115+$A$11,IF($C$7,8,0),1,1) -> 1224300 | D115: =OFFSET(InputPriceData!C$15,CalculationsAndCharts!$A115+$A$11,IF($C$7,8,0),1,1) -> 60.72 | E115: =OFFSET(InputPriceData!D$15,CalculationsAndCharts!$A115+$A$11,IF($C$7,8,0),1,1) -> 62 | F115: =OFFSET(InputPriceData!E$15,CalculationsAndCharts!$A115+$A$11,IF($C$7,8,0),1,1) -> 60.5 | G115: =OFFSET(InputPriceData!F$15,CalculationsAndCharts!$A115+$A$11,IF($C$7,8,0),1,1) -> 61.51 | H115: 60.57672453 | I115: 59.04181968 | J115: 1.534904857 | K115: 1.534904857 | M115: 1.934741371 | N115: 2.599690975 | O115: 3.33945488 | P115: 55.69341496 | Q115: 60.20220168 | S115: 8 | T115: 68 | U115: 6 | V115: 76 | Y115: 1.934741371 | Z115: FALSE | AA115: FALSE | AL115: FALSE | AM115: FALSE | AN115: TRUE | AO115: FALSE
A116: 84 | B116: =OFFSET(InputPriceData!B$15,CalculationsAndCharts!$A116+$A$11,0,1,1) -> 2015-04-02 | C116: =OFFSET(InputPriceData!G$15,CalculationsAndCharts!$A116+$A$11,IF($C$7,8,0),1,1) -> 1228100 | D116: =OFFSET(InputPriceData!C$15,CalculationsAndCharts!$A116+$A$11,IF($C$7,8,0),1,1) -> 61 | E116: =OFFSET(InputPriceData!D$15,CalculationsAndCharts!$A116+$A$11,IF($C$7,8,0),1,1) -> 61.95 | F116: =OFFSET(InputPriceData!E$15,CalculationsAndCharts!$A116+$A$11,IF($C$7,8,0),1,1) -> 60.78 | G116: =OFFSET(InputPriceData!F$15,CalculationsAndCharts!$A116+$A$11,IF($C$7,8,0),1,1) -> 61.19 | H116: 60.40703808 | I116: 58.84436525 | J116: 1.562672835 | K116: 1.562672835 | M116: 2.0347005 | N116: 2.65560318 | O116: 3.524395856 | P116: 55.47798588 | Q116: 60.01566387 | S116: 7 | T116: 72 | U116: 24 | V116: 4 | Y116: 2.0347005 | Z116: FALSE | AA116: FALSE | AL116: FALSE | AM116: FALSE | AN116: FALSE | AO116: FALSE
A117: 85 | B117: =OFFSET(InputPriceData!B$15,CalculationsAndCharts!$A117+$A$11,0,1,1) -> 2015-04-01 | C117: =OFFSET(InputPriceData!G$15,CalculationsAndCharts!$A117+$A$11,IF($C$7,8,0),1,1) -> 1759000 | D117: =OFFSET(InputPriceData!C$15,CalculationsAndCharts!$A117+$A$11,IF($C$7,8,0),1,1) -> 59.84 | E117: =OFFSET(InputPriceData!D$15,CalculationsAndCharts!$A117+$A$11,IF($C$7,8,0),1,1) -> 61.31 | F117: =OFFSET(InputPriceData!E$15,CalculationsAndCharts!$A117+$A$11,IF($C$7,8,0),1,1) -> 59.01 | G117: =OFFSET(InputPriceData!F$15,CalculationsAndCharts!$A117+$A$11,IF($C$7,8,0),1,1) -> 60.83 | H117: 60.26468137 | I117: 58.65671447 | J117: 1.607966903 | K117: 1.607966903 | M117: 2.152707416 | N117: 2.741317712 | O117: 3.741594026 | P117: 55.2664298 | Q117: 59.82763025 | S117: 6 | T117: 76 | U117: 24 | V117: 4 | Y117: 2.152707416 | Z117: FALSE | AA117: FALSE | AL117: FALSE | AM117: FALSE | AN117: FALSE | AO117: FALSE
A118: 86 | B118: =OFFSET(InputPriceData!B$15,CalculationsAndCharts!$A118+$A$11,0,1,1) -> 2015-03-31 | C118: =OFFSET(InputPriceData!G$15,CalculationsAndCharts!$A118+$A$11,IF($C$7,8,0),1,1) -> 1797300 | D118: =OFFSET(InputPriceData!C$15,CalculationsAndCharts!$A118+$A$11,IF($C$7,8,0),1,1) -> 60.03 | E118: =OFFSET(InputPriceData!D$15,CalculationsAndCharts!$A118+$A$11,IF($C$7,8,0),1,1) -> 60.69 | F118: =OFFSET(InputPriceData!E$15,CalculationsAndCharts!$A118+$A$11,IF($C$7,8,0),1,1) -> 59.42 | G118: =OFFSET(InputPriceData!F$15,CalculationsAndCharts!$A118+$A$11,IF($C$7,8,0),1,1) -> 59.79 | H118: 60.16189617 | I118: 58.48285163 | J118: 1.67904454 | K118: 1.67904454 | M118: 2.288892545 | N118: 2.871003198 | O118: 3.991663104 | P118: 55.06037165 | Q118: 59.63989916 | S118: 5 | T118: 80 | U118: 24 | V118: 4 | Y118: 2.288892545 | Z118: FALSE | AA118: FALSE | AL118: FALSE | AM118: FALSE | AN118: FALSE | AO118: FALSE
A119: 87 | B119: =OFFSET(InputPriceData!B$15,CalculationsAndCharts!$A119+$A$11,0,1,1) -> 2015-03-30 | C119: =OFFSET(InputPriceData!G$15,CalculationsAndCharts!$A119+$A$11,IF($C$7,8,0),1,1) -> 1535400 | D119: =OFFSET(InputPriceData!C$15,CalculationsAndCharts!$A119+$A$11,IF($C$7,8,0),1,1) -> 59.72 | E119: =OFFSET(InputPriceData!D$15,CalculationsAndCharts!$A119+$A$11,IF($C$7,8,0),1,1) -> 61.05 | F119: =OFFSET(InputPriceData!E$15,CalculationsAndCharts!$A119+$A$11,IF($C$7,8,0),1,1) -> 59.72 | G119: =OFFSET(InputPriceData!F$15,CalculationsAndCharts!$A119+$A$11,IF($C$7,8,0),1,1) -> 60.69 | H119: 60.22951365 | I119: 58.37827976 | J119: 1.851233895 | K119: 1.851233895 | M119: 2.441354546 | N119: 3.171100455 | O119: 4.27182808 | P119: 54.88520023 | Q119: 59.49268908 | S119: 4 | T119: 84 | U119: 24 | V119: 4 | Y119: 2.441354546 | Z119: FALSE | AA119: FALSE | AL119: FALSE | AM119: FALSE | AN119: FALSE | AO119: FALSE
A120: 88 | B120: =OFFSET(InputPriceData!B$15,CalculationsAndCharts!$A120+$A$11,0,1,1) -> 2015-03-27 | C120: =OFFSET(InputPriceData!G$15,CalculationsAndCharts!$A120+$A$11,IF($C$7,8,0),1,1) -> 1321400 | D120: =OFFSET(InputPriceData!C$15,CalculationsAndCharts!$A120+$A$11,IF($C$7,8,0),1,1) -> 59.4 | E120: =OFFSET(InputPriceData!D$15,CalculationsAndCharts!$A120+$A$11,IF($C$7,8,0),1,1) -> 60.09 | F120: =OFFSET(InputPriceData!E$15,CalculationsAndCharts!$A120+$A$11,IF($C$7,8,0),1,1) -> 58.79 | G120: =OFFSET(InputPriceData!F$15,CalculationsAndCharts!$A120+$A$11,IF($C$7,8,0),1,1) -> 59.61 | H120: 60.14578886 | I120: 58.19334214 | J120: 1.952446724 | K120: 1.952446724 | M120: 2.588884708 | N120: 3.355103268 | O120: 4.547009987 | P120: 54.67020765 | Q120: 59.26991597 | S120: 3 | T120: 88 | U120: 24 | V120: 4 | Y120: 2.588884708 | Z120: FALSE | AA120: FALSE | AL120: FALSE | AM120: FALSE | AN120: FALSE | AO120: FALSE
A121: 89 | B121: =OFFSET(InputPriceData!B$15,CalculationsAndCharts!$A121+$A$11,0,1,1) -> 2015-03-26 | C121: =OFFSET(InputPriceData!G$15,CalculationsAndCharts!$A121+$A$11,IF($C$7,8,0),1,1) -> 2022700 | D121: =OFFSET(InputPriceData!C$15,CalculationsAndCharts!$A121+$A$11,IF($C$7,8,0),1,1) -> 59.53 | E121: =OFFSET(InputPriceData!D$15,CalculationsAndCharts!$A121+$A$11,IF($C$7,8,0),1,1) -> 60.39 | F121: =OFFSET(InputPriceData!E$15,CalculationsAndCharts!$A121+$A$11,IF($C$7,8,0),1,1) -> 58.61 | G121: =OFFSET(InputPriceData!F$15,CalculationsAndCharts!$A121+$A$11,IF($C$7,8,0),1,1) -> 59.62 | H121: 60.24320502 | I121: 58.08000951 | J121: 2.16319551 | K121: 2.16319551 | M121: 2.747994204 | N121: 3.724509565 | O121: 4.844986666 | P121: 54.48725237 | Q121: 59.0874958 | S121: 2 | T121: 92 | U121: 24 | V121: 4 | Y121: 2.747994204 | Z121: FALSE | AA121: FALSE | AL121: FALSE | AM121: FALSE | AN121: FALSE | AO121: FALSE
A122: 90 | B122: =OFFSET(InputPriceData!B$15,CalculationsAndCharts!$A122+$A$11,0,1,1) -> 2015-03-25 | C122: =OFFSET(InputPriceData!G$15,CalculationsAndCharts!$A122+$A$11,IF($C$7,8,0),1,1) -> 2662200 | D122: =OFFSET(InputPriceData!C$15,CalculationsAndCharts!$A122+$A$11,IF($C$7,8,0),1,1) -> 62.7 | E122: =OFFSET(InputPriceData!D$15,CalculationsAndCharts!$A122+$A$11,IF($C$7,8,0),1,1) -> 62.79 | F122: =OFFSET(InputPriceData!E$15,CalculationsAndCharts!$A122+$A$11,IF($C$7,8,0),1,1) -> 60.05 | G122: =OFFSET(InputPriceData!F$15,CalculationsAndCharts!$A122+$A$11,IF($C$7,8,0),1,1) -> 60.09 | H122: 60.35651502 | I122: 57.95681027 | J122: 2.399704752 | K122: 2.399704752 | M122: 2.894193878 | N122: 4.140505216 | O122: 5.125105942 | P122: 54.29715061 | Q122: 58.88312605 | S122: 1 | T122: 96 | U122: 24 | V122: 4 | Y122: 2.894193878 | Z122: FALSE | AA122: FALSE | AL122: FALSE | AM122: FALSE | AN122: FALSE | AO122: FALSE
A123: 91 | B123: =OFFSET(InputPriceData!B$15,CalculationsAndCharts!$A123+$A$11,0,1,1) -> 2015-03-24 | C123: =OFFSET(InputPriceData!G$15,CalculationsAndCharts!$A123+$A$11,IF($C$7,8,0),1,1) -> 2890300 | D123: =OFFSET(InputPriceData!C$15,CalculationsAndCharts!$A123+$A$11,IF($C$7,8,0),1,1) -> 60.36 | E123: =OFFSET(InputPriceData!D$15,CalculationsAndCharts!$A123+$A$11,IF($C$7,8,0),1,1) -> 63.1 | F123: =OFFSET(InputPriceData!E$15,CalculationsAndCharts!$A123+$A$11,IF($C$7,8,0),1,1) -> 60.36 | G123: =OFFSET(InputPriceData!F$15,CalculationsAndCharts!$A123+$A$11,IF($C$7,8,0),1,1) -> 62.52 | H123: 60.4049723 | I123: 57.78615509 | J123: 2.618817207 | K123: 2.618817207 | M123: 3.017816159 | N123: 4.531911153 | O123: 5.371256123 | P123: 54.08260063 | Q123: 58.62986555 | S123: 0 | T123: 100 | U123: 23 | V123: 8 | Y123: 3.017816159 | Z123: FALSE | AA123: FALSE | AL123: FALSE | AM123: FALSE | AN123: FALSE | AO123: FALSE
A124: 92 | B124: =OFFSET(InputPriceData!B$15,CalculationsAndCharts!$A124+$A$11,0,1,1) -> 2015-03-23 | C124: =OFFSET(InputPriceData!G$15,CalculationsAndCharts!$A124+$A$11,IF($C$7,8,0),1,1) -> 2197900 | D124: =OFFSET(InputPriceData!C$15,CalculationsAndCharts!$A124+$A$11,IF($C$7,8,0),1,1) -> 60.06 | E124: =OFFSET(InputPriceData!D$15,CalculationsAndCharts!$A124+$A$11,IF($C$7,8,0),1,1) -> 61.15 | F124: =OFFSET(InputPriceData!E$15,CalculationsAndCharts!$A124+$A$11,IF($C$7,8,0),1,1) -> 59.74 | G124: =OFFSET(InputPriceData!F$15,CalculationsAndCharts!$A124+$A$11,IF($C$7,8,0),1,1) -> 60.58 | H124: 60.02042181 | I124: 57.4074475 | J124: 2.612974309 | K124: 2.612974309 | M124: 3.117565897 | N124: 4.551629488 | O124: 5.581092366 | P124: 53.77010436 | Q124: 58.21361345 | S124: 11 | T124: 56 | U124: 22 | V124: 12 | Y124: 3.117565897 | Z124: FALSE | AA124: FALSE | AL124: FALSE | AM124: FALSE | AN124: FALSE | AO124: FALSE
A125: 93 | B125: =OFFSET(InputPriceData!B$15,CalculationsAndCharts!$A125+$A$11,0,1,1) -> 2015-03-20 | C125: =OFFSET(InputPriceData!G$15,CalculationsAndCharts!$A125+$A$11,IF($C$7,8,0),1,1) -> 2893400 | D125: =OFFSET(InputPriceData!C$15,CalculationsAndCharts!$A125+$A$11,IF($C$7,8,0),1,1) -> 60.67 | E125: =OFFSET(InputPriceData!D$15,CalculationsAndCharts!$A125+$A$11,IF($C$7,8,0),1,1) -> 60.99 | F125: =OFFSET(InputPriceData!E$15,CalculationsAndCharts!$A125+$A$11,IF($C$7,8,0),1,1) -> 59.7 | G125: =OFFSET(InputPriceData!F$15,CalculationsAndCharts!$A125+$A$11,IF($C$7,8,0),1,1) -> 60.26 | H125: 59.91868032 | I125: 57.1536433 | J125: 2.765037019 | K125: 2.765037019 | M125: 3.243713794 | N125: 4.837901593 | O125: 5.838458085 | P125: 53.517886 | Q125: 57.88284034 | S125: 10 | T125: 60 | U125: 21 | V125: 16 | Y125: 3.243713794 | Z125: FALSE | AA125: FALSE | AL125: FALSE | AM125: FALSE | AN125: FALSE | AO125: FALSE
A126: 94 | B126: =OFFSET(InputPriceData!B$15,CalculationsAndCharts!$A126+$A$11,0,1,1) -> 2015-03-19 | C126: =OFFSET(InputPriceData!G$15,CalculationsAndCharts!$A126+$A$11,IF($C$7,8,0),1,1) -> 1776500 | D126: =OFFSET(InputPriceData!C$15,CalculationsAndCharts!$A126+$A$11,IF($C$7,8,0),1,1) -> 61.12 | E126: =OFFSET(InputPriceData!D$15,CalculationsAndCharts!$A126+$A$11,IF($C$7,8,0),1,1) -> 61.58 | F126: =OFFSET(InputPriceData!E$15,CalculationsAndCharts!$A126+$A$11,IF($C$7,8,0),1,1) -> 60.12 | G126: =OFFSET(InputPriceData!F$15,CalculationsAndCharts!$A126+$A$11,IF($C$7,8,0),1,1) -> 60.3 | H126: 59.85662219 | I126: 56.90513476 | J126: 2.951487431 | K126: 2.951487431 | M126: 3.363382988 | N126: 5.18668033 | O126: 6.088597208 | P126: 53.26817808 | Q126: 57.54020168 | S126: 9 | T126: 64 | U126: 20 | V126: 20 | Y126: 3.363382988 | Z126: FALSE | AA126: FALSE | AL126: FALSE | AM126: FALSE | AN126: FALSE | AO126: FALSE
A127: 95 | B127: =OFFSET(InputPriceData!B$15,CalculationsAndCharts!$A127+$A$11,0,1,1) -> 2015-03-18 | C127: =OFFSET(InputPriceData!G$15,CalculationsAndCharts!$A127+$A$11,IF($C$7,8,0),1,1) -> 2026300 | D127: =OFFSET(InputPriceData!C$15,CalculationsAndCharts!$A127+$A$11,IF($C$7,8,0),1,1) -> 60.08 | E127: =OFFSET(InputPriceData!D$15,CalculationsAndCharts!$A127+$A$11,IF($C$7,8,0),1,1) -> 61.87 | F127: =OFFSET(InputPriceData!E$15,CalculationsAndCharts!$A127+$A$11,IF($C$7,8,0),1,1) -> 59.85 | G127: =OFFSET(InputPriceData!F$15,CalculationsAndCharts!$A127+$A$11,IF($C$7,8,0),1,1) -> 61.43 | H127: 59.77600805 | I127: 56.63354554 | J127: 3.142462504 | K127: 3.142462504 | M127: 3.466356877 | N127: 5.548765265 | O127: 6.314076428 | P127: 53.00774023 | Q127: 57.16512605 | S127: 8 | T127: 68 | U127: 19 | V127: 24 | Y127: 3.466356877 | Z127: FALSE | AA127: FALSE | AL127: FALSE | AM127: FALSE | AN127: FALSE | AO127: FALSE
A128: 96 | B128: =OFFSET(InputPriceData!B$15,CalculationsAndCharts!$A128+$A$11,0,1,1) -> 2015-03-17 | C128: =OFFSET(InputPriceData!G$15,CalculationsAndCharts!$A128+$A$11,IF($C$7,8,0),1,1) -> 2311800 | D128: =OFFSET(InputPriceData!C$15,CalculationsAndCharts!$A128+$A$11,IF($C$7,8,0),1,1) -> 59.89 | E128: =OFFSET(InputPriceData!D$15,CalculationsAndCharts!$A128+$A$11,IF($C$7,8,0),1,1) -> 61.38 | F128: =OFFSET(InputPriceData!E$15,CalculationsAndCharts!$A128+$A$11,IF($C$7,8,0),1,1) -> 59.7 | G128: =OFFSET(InputPriceData!F$15,CalculationsAndCharts!$A128+$A$11,IF($C$7,8,0),1,1) -> 60.49 | H128: 59.47528224 | I128: 56.24982919 | J128: 3.22545305 | K128: 3.22545305 | M128: 3.547330471 | N128: 5.734156169 | O128: 6.505404218 | P128: 52.69580468 | Q128: 56.694 | S128: 7 | T128: 72 | U128: 24 | V128: 4 | Y128: 3.547330471 | Z128: FALSE | AA128: FALSE | AL128: FALSE | AM128: FALSE | AN128: FALSE | AO128: FALSE
A129: 97 | B129: =OFFSET(InputPriceData!B$15,CalculationsAndCharts!$A129+$A$11,0,1,1) -> 2015-03-16 | C129: =OFFSET(InputPriceData!G$15,CalculationsAndCharts!$A129+$A$11,IF($C$7,8,0),1,1) -> 1964500 | D129: =OFFSET(InputPriceData!C$15,CalculationsAndCharts!$A129+$A$11,IF($C$7,8,0),1,1) -> 60.27 | E129: =OFFSET(InputPriceData!D$15,CalculationsAndCharts!$A129+$A$11,IF($C$7,8,0),1,1) -> 60.98 | F129: =OFFSET(InputPriceData!E$15,CalculationsAndCharts!$A129+$A$11,IF($C$7,8,0),1,1) -> 59.13 | G129: =OFFSET(InputPriceData!F$15,CalculationsAndCharts!$A129+$A$11,IF($C$7,8,0),1,1) -> 60.22 | H129: 59.2907881 | I129: 55.91061552 | J129: 3.380172577 | K129: 3.380172577 | M129: 3.627799826 | N129: 6.045672267 | O129: 6.698216231 | P129: 52.40713078 | Q129: 56.24840336 | S129: 6 | T129: 76 | U129: 23 | V129: 8 | Y129: 3.627799826 | Z129: FALSE | AA129: FALSE | AL129: FALSE | AM129: FALSE | AN129: FALSE | AO129: FALSE
A130: 98 | B130: =OFFSET(InputPriceData!B$15,CalculationsAndCharts!$A130+$A$11,0,1,1) -> 2015-03-13 | C130: =OFFSET(InputPriceData!G$15,CalculationsAndCharts!$A130+$A$11,IF($C$7,8,0),1,1) -> 1570200 | D130: =OFFSET(InputPriceData!C$15,CalculationsAndCharts!$A130+$A$11,IF($C$7,8,0),1,1) -> 60.22 | E130: =OFFSET(InputPriceData!D$15,CalculationsAndCharts!$A130+$A$11,IF($C$7,8,0),1,1) -> 60.78 | F130: =OFFSET(InputPriceData!E$15,CalculationsAndCharts!$A130+$A$11,IF($C$7,8,0),1,1) -> 59.76 | G130: =OFFSET(InputPriceData!F$15,CalculationsAndCharts!$A130+$A$11,IF($C$7,8,0),1,1) -> 60.6 | H130: 59.12184048 | I130: 55.56586476 | J130: 3.555975716 | K130: 3.555975716 | M130: 3.689706638 | N130: 6.399568749 | O130: 6.861352221 | P130: 52.11776525 | Q130: 55.7912605 | S130: 5 | T130: 80 | U130: 22 | V130: 12 | Y130: 3.689706638 | Z130: FALSE | AA130: FALSE | AL130: FALSE | AM130: FALSE | AN130: FALSE | AO130: FALSE
A131: 99 | B131: =OFFSET(InputPriceData!B$15,CalculationsAndCharts!$A131+$A$11,0,1,1) -> 2015-03-12 | C131: =OFFSET(InputPriceData!G$15,CalculationsAndCharts!$A131+$A$11,IF($C$7,8,0),1,1) -> 2075600 | D131: =OFFSET(InputPriceData!C$15,CalculationsAndCharts!$A131+$A$11,IF($C$7,8,0),1,1) -> 59.48 | E131: =OFFSET(InputPriceData!D$15,CalculationsAndCharts!$A131+$A$11,IF($C$7,8,0),1,1) -> 60.75 | F131: =OFFSET(InputPriceData!E$15,CalculationsAndCharts!$A131+$A$11,IF($C$7,8,0),1,1) -> 59.39 | G131: =OFFSET(InputPriceData!F$15,CalculationsAndCharts!$A131+$A$11,IF($C$7,8,0),1,1) -> 60.61 | H131: 58.8530842 | I131: 55.16313394 | J131: 3.689950259 | K131: 3.689950259 | M131: 3.723139369 | N131: 6.689159942 | O131: 6.97679809 | P131: 51.80360841 | Q131: 55.28205042 | S131: 4 | T131: 84 | U131: 21 | V131: 16 | Y131: 3.723139369 | Z131: FALSE | AA131: TRUE | AD131: -5 | AE131: 5 | AG131: 60.75 | AL131: FALSE | AM131: FALSE | AN131: FALSE | AO131: FALSE
A132: 100 | B132: =OFFSET(InputPriceData!B$15,CalculationsAndCharts!$A132+$A$11,0,1,1) -> 2015-03-11 | C132: =OFFSET(InputPriceData!G$15,CalculationsAndCharts!$A132+$A$11,IF($C$7,8,0),1,1) -> 1897400 | D132: =OFFSET(InputPriceData!C$15,CalculationsAndCharts!$A132+$A$11,IF($C$7,8,0),1,1) -> 60.14 | E132: =OFFSET(InputPriceData!D$15,CalculationsAndCharts!$A132+$A$11,IF($C$7,8,0),1,1) -> 60.33 | F132: =OFFSET(InputPriceData!E$15,CalculationsAndCharts!$A132+$A$11,IF($C$7,8,0),1,1) -> 59.27 | G132: =OFFSET(InputPriceData!F$15,CalculationsAndCharts!$A132+$A$11,IF($C$7,8,0),1,1) -> 59.29 | H132: 58.53364497 | I132: 54.72738466 | J132: 3.806260307 | K132: 3.806260307 | M132: 3.731436646 | N132: 6.95494647 | O132: 7.048707626 | P132: 51.47744576 | Q132: 54.74082353 | S132: 3 | T132: 88 | U132: 20 | V132: 20 | Y132: 3.731436646 | Z132: FALSE | AA132: FALSE | AL132: FALSE | AM132: FALSE | AN132: FALSE | AO132: FALSE
A133: 101 | B133: =OFFSET(InputPriceData!B$15,CalculationsAndCharts!$A133+$A$11,0,1,1) -> 2015-03-10 | C133: =OFFSET(InputPriceData!G$15,CalculationsAndCharts!$A133+$A$11,IF($C$7,8,0),1,1) -> 2159400 | D133: =OFFSET(InputPriceData!C$15,CalculationsAndCharts!$A133+$A$11,IF($C$7,8,0),1,1) -> 60.31 | E133: =OFFSET(InputPriceData!D$15,CalculationsAndCharts!$A133+$A$11,IF($C$7,8,0),1,1) -> 60.51 | F133: =OFFSET(InputPriceData!E$15,CalculationsAndCharts!$A133+$A$11,IF($C$7,8,0),1,1) -> 59.5 | G133: =OFFSET(InputPriceData!F$15,CalculationsAndCharts!$A133+$A$11,IF($C$7,8,0),1,1) -> 59.86 | H133: 58.39612587 | I133: 54.36237543 | J133: 4.033750437 | K133: 4.033750437 | M133: 3.712730731 | N133: 7.420114381 | O133: 7.072147916 | P133: 51.1880919 | Q133: 54.24495798 | S133: 2 | T133: 92 | U133: 19 | V133: 24 | Y133: 3.712730731 | Z133: FALSE | AA133: FALSE | AL133: FALSE | AM133: FALSE | AN133: FALSE | AO133: FALSE
A134: 102 | B134: =OFFSET(InputPriceData!B$15,CalculationsAndCharts!$A134+$A$11,0,1,1) -> 2015-03-09 | C134: =OFFSET(InputPriceData!G$15,CalculationsAndCharts!$A134+$A$11,IF($C$7,8,0),1,1) -> 2701400 | D134: =OFFSET(InputPriceData!C$15,CalculationsAndCharts!$A134+$A$11,IF($C$7,8,0),1,1) -> 60.82 | E134: =OFFSET(InputPriceData!D$15,CalculationsAndCharts!$A134+$A$11,IF($C$7,8,0),1,1) -> 61.99 | F134: =OFFSET(InputPriceData!E$15,CalculationsAndCharts!$A134+$A$11,IF($C$7,8,0),1,1) -> 60.3 | G134: =OFFSET(InputPriceData!F$15,CalculationsAndCharts!$A134+$A$11,IF($C$7,8,0),1,1) -> 61.06 | H134: 58.12996694 | I134: 53.92256547 | J134: 4.20740147 | K134: 4.20740147 | M134: 3.632475805 | N134: 7.802673025 | O134: 6.985156299 | P134: 50.86691012 | Q134: 53.68285714 | S134: 1 | T134: 96 | U134: 24 | V134: 4 | Y134: 3.632475805 | Z134: FALSE | AA134: FALSE | AL134: FALSE | AM134: FALSE | AN134: FALSE | AO134: FALSE
A135: 103 | B135: =OFFSET(InputPriceData!B$15,CalculationsAndCharts!$A135+$A$11,0,1,1) -> 2015-03-06 | C135: =OFFSET(InputPriceData!G$15,CalculationsAndCharts!$A135+$A$11,IF($C$7,8,0),1,1) -> 2342100 | D135: =OFFSET(InputPriceData!C$15,CalculationsAndCharts!$A135+$A$11,IF($C$7,8,0),1,1) -> 61.11 | E135: =OFFSET(InputPriceData!D$15,CalculationsAndCharts!$A135+$A$11,IF($C$7,8,0),1,1) -> 62.27 | F135: =OFFSET(InputPriceData!E$15,CalculationsAndCharts!$A135+$A$11,IF($C$7,8,0),1,1) -> 60.31 | G135: =OFFSET(InputPriceData!F$15,CalculationsAndCharts!$A135+$A$11,IF($C$7,8,0),1,1) -> 60.61 | H135: 57.59723365 | I135: 53.3515707 | J135: 4.245662948 | K135: 4.245662948 | M135: 3.488744388 | N135: 7.95789682 | O135: 6.780777118 | P135: 50.48938827 | Q135: 53.018 | S135: 0 | T135: 100 | U135: 24 | V135: 4 | Y135: 3.488744388 | Z135: FALSE | AA135: FALSE | AL135: FALSE | AM135: FALSE | AN135: FALSE | AO135: FALSE
A136: 104 | B136: =OFFSET(InputPriceData!B$15,CalculationsAndCharts!$A136+$A$11,0,1,1) -> 2015-03-05 | C136: =OFFSET(InputPriceData!G$15,CalculationsAndCharts!$A136+$A$11,IF($C$7,8,0),1,1) -> 2339600 | D136: =OFFSET(InputPriceData!C$15,CalculationsAndCharts!$A136+$A$11,IF($C$7,8,0),1,1) -> 61.4 | E136: =OFFSET(InputPriceData!D$15,CalculationsAndCharts!$A136+$A$11,IF($C$7,8,0),1,1) -> 61.9 | F136: =OFFSET(InputPriceData!E$15,CalculationsAndCharts!$A136+$A$11,IF($C$7,8,0),1,1) -> 60.92 | G136: =OFFSET(InputPriceData!F$15,CalculationsAndCharts!$A136+$A$11,IF($C$7,8,0),1,1) -> 61.66 | H136: 57.04945795 | I136: 52.77089636 | J136: 4.278561592 | K136: 4.278561592 | M136: 3.299514748 | N136: 8.107805415 | O136: 6.486497192 | P136: 50.1145508 | Q136: 52.34448739 | S136: 0 | T136: 100 | U136: 24 | V136: 4 | Y136: 3.299514748 | Z136: FALSE | AA136: FALSE | AL136: FALSE | AM136: FALSE | AN136: FALSE | AO136: FALSE
A137: 105 | B137: =OFFSET(InputPriceData!B$15,CalculationsAndCharts!$A137+$A$11,0,1,1) -> 2015-03-04 | C137: =OFFSET(InputPriceData!G$15,CalculationsAndCharts!$A137+$A$11,IF($C$7,8,0),1,1) -> 2505200 | D137: =OFFSET(InputPriceData!C$15,CalculationsAndCharts!$A137+$A$11,IF($C$7,8,0),1,1) -> 60.52 | E137: =OFFSET(InputPriceData!D$15,CalculationsAndCharts!$A137+$A$11,IF($C$7,8,0),1,1) -> 61.31 | F137: =OFFSET(InputPriceData!E$15,CalculationsAndCharts!$A137+$A$11,IF($C$7,8,0),1,1) -> 60.05 | G137: =OFFSET(InputPriceData!F$15,CalculationsAndCharts!$A137+$A$11,IF($C$7,8,0),1,1) -> 61.2 | H137: 56.21117758 | I137: 52.05976807 | J137: 4.151409511 | K137: 4.151409511 | M137: 3.054753037 | N137: 7.974314265 | O137: 6.081170136 | P137: 49.68694157 | Q137: 51.57840336 | S137: 1 | T137: 96 | U137: 23 | V137: 8 | Y137: 3.054753037 | Z137: FALSE | AA137: FALSE | AL137: FALSE | AM137: FALSE | AN137: FALSE | AO137: FALSE
A138: 106 | B138: =OFFSET(InputPriceData!B$15,CalculationsAndCharts!$A138+$A$11,0,1,1) -> 2015-03-03 | C138: =OFFSET(InputPriceData!G$15,CalculationsAndCharts!$A138+$A$11,IF($C$7,8,0),1,1) -> 3146800 | D138: =OFFSET(InputPriceData!C$15,CalculationsAndCharts!$A138+$A$11,IF($C$7,8,0),1,1) -> 60.93 | E138: =OFFSET(InputPriceData!D$15,CalculationsAndCharts!$A138+$A$11,IF($C$7,8,0),1,1) -> 61.42 | F138: =OFFSET(InputPriceData!E$15,CalculationsAndCharts!$A138+$A$11,IF($C$7,8,0),1,1) -> 60.12 | G138: =OFFSET(InputPriceData!F$15,CalculationsAndCharts!$A138+$A$11,IF($C$7,8,0),1,1) -> 60.69 | H138: 55.30411896 | I138: 51.32854951 | J138: 3.975569444 | K138: 3.975569444 | M138: 2.780588919 | N138: 7.745337598 | O138: 5.607884104 | P138: 49.26053199 | Q138: 50.80752941 | S138: 0 | T138: 100 | U138: 22 | V138: 12 | Y138: 2.780588919 | Z138: FALSE | AA138: FALSE | AL138: FALSE | AM138: FALSE | AN138: FALSE | AO138: FALSE
A139: 107 | B139: =OFFSET(InputPriceData!B$15,CalculationsAndCharts!$A139+$A$11,0,1,1) -> 2015-03-02 | C139: =OFFSET(InputPriceData!G$15,CalculationsAndCharts!$A139+$A$11,IF($C$7,8,0),1,1) -> 3994600 | D139: =OFFSET(InputPriceData!C$15,CalculationsAndCharts!$A139+$A$11,IF($C$7,8,0),1,1) -> 59.41 | E139: =OFFSET(InputPriceData!D$15,CalculationsAndCharts!$A139+$A$11,IF($C$7,8,0),1,1) -> 61.21 | F139: =OFFSET(InputPriceData!E$15,CalculationsAndCharts!$A139+$A$11,IF($C$7,8,0),1,1) -> 59.03 | G139: =OFFSET(InputPriceData!F$15,CalculationsAndCharts!$A139+$A$11,IF($C$7,8,0),1,1) -> 61.11 | H139: 54.32486786 | I139: 50.57963347 | J139: 3.745234384 | K139: 3.745234384 | M139: 2.481843788 | N139: 7.404629348 | O139: 5.073520731 | P139: 48.83721836 | Q139: 50.03578151 | S139: 0 | T139: 100 | U139: 21 | V139: 16 | Y139: 2.481843788 | Z139: FALSE | AA139: FALSE | AL139: FALSE | AM139: FALSE | AN139: FALSE | AO139: FALSE
A140: 108 | B140: =OFFSET(InputPriceData!B$15,CalculationsAndCharts!$A140+$A$11,0,1,1) -> 2015-02-27 | C140: =OFFSET(InputPriceData!G$15,CalculationsAndCharts!$A140+$A$11,IF($C$7,8,0),1,1) -> 4014600 | D140: =OFFSET(InputPriceData!C$15,CalculationsAndCharts!$A140+$A$11,IF($C$7,8,0),1,1) -> 58.9 | E140: =OFFSET(InputPriceData!D$15,CalculationsAndCharts!$A140+$A$11,IF($C$7,8,0),1,1) -> 60.21 | F140: =OFFSET(InputPriceData!E$15,CalculationsAndCharts!$A140+$A$11,IF($C$7,8,0),1,1) -> 58.22 | G140: =OFFSET(InputPriceData!F$15,CalculationsAndCharts!$A140+$A$11,IF($C$7,8,0),1,1) -> 59.75 | H140: 53.09120747 | I140: 49.73720415 | J140: 3.354003317 | K140: 3.354003317 | M140: 2.165996138 | N140: 6.743449645 | O140: 4.490743577 | P140: 48.3826709 | Q140: 49.21161345 | S140: 0 | T140: 100 | U140: 20 | V140: 20 | Y140: 2.165996138 | Z140: FALSE | AA140: FALSE | AL140: FALSE | AM140: FALSE | AN140: FALSE | AO140: FALSE
A141: 109 | B141: =OFFSET(InputPriceData!B$15,CalculationsAndCharts!$A141+$A$11,0,1,1) -> 2015-02-26 | C141: =OFFSET(InputPriceData!G$15,CalculationsAndCharts!$A141+$A$11,IF($C$7,8,0),1,1) -> 6521100 | D141: =OFFSET(InputPriceData!C$15,CalculationsAndCharts!$A141+$A$11,IF($C$7,8,0),1,1) -> 57.8 | E141: =OFFSET(InputPriceData!D$15,CalculationsAndCharts!$A141+$A$11,IF($C$7,8,0),1,1) -> 59.56 | F141: =OFFSET(InputPriceData!E$15,CalculationsAndCharts!$A141+$A$11,IF($C$7,8,0),1,1) -> 56.7 | G141: =OFFSET(InputPriceData!F$15,CalculationsAndCharts!$A141+$A$11,IF($C$7,8,0),1,1) -> 58.68 | H141: 51.88051792 | I141: 48.93618049 | J141: 2.944337434 | K141: 2.944337434 | M141: 1.868994344 | N141: 6.016688276 | O141: 3.92756706 | P141: 47.96165871 | Q141: 48.43806723 | S141: 0 | T141: 100 | U141: 24 | V141: 4 | Y141: 1.868994344 | Z141: FALSE | AA141: FALSE | AL141: FALSE | AM141: FALSE | AN141: FALSE | AO141: FALSE
A142: 110 | B142: =OFFSET(InputPriceData!B$15,CalculationsAndCharts!$A142+$A$11,0,1,1) -> 2015-02-25 | C142: =OFFSET(InputPriceData!G$15,CalculationsAndCharts!$A142+$A$11,IF($C$7,8,0),1,1) -> 15704700 | D142: =OFFSET(InputPriceData!C$15,CalculationsAndCharts!$A142+$A$11,IF($C$7,8,0),1,1) -> 56.15 | E142: =OFFSET(InputPriceData!D$15,CalculationsAndCharts!$A142+$A$11,IF($C$7,8,0),1,1) -> 59.24 | F142: =OFFSET(InputPriceData!E$15,CalculationsAndCharts!$A142+$A$11,IF($C$7,8,0),1,1) -> 56.12 | G142: =OFFSET(InputPriceData!F$15,CalculationsAndCharts!$A142+$A$11,IF($C$7,8,0),1,1) -> 58.54 | H142: 50.64424845 | I142: 48.15667492 | J142: 2.487573526 | K142: 2.487573526 | M142: 1.600158571 | N142: 5.165584064 | O142: 3.405286755 | P142: 47.5646831 | Q142: 47.69721008 | S142: 0 | T142: 100 | U142: 24 | V142: 4 | Y142: 1.600158571 | Z142: FALSE | AA142: FALSE | AL142: FALSE | AM142: FALSE | AN142: FALSE | AO142: FALSE
A143: 111 | B143: =OFFSET(InputPriceData!B$15,CalculationsAndCharts!$A143+$A$11,0,1,1) -> 2015-02-24 | C143: =OFFSET(InputPriceData!G$15,CalculationsAndCharts!$A143+$A$11,IF($C$7,8,0),1,1) -> 18453700 | D143: =OFFSET(InputPriceData!C$15,CalculationsAndCharts!$A143+$A$11,IF($C$7,8,0),1,1) -> 56.84 | E143: =OFFSET(InputPriceData!D$15,CalculationsAndCharts!$A143+$A$11,IF($C$7,8,0),1,1) -> 57.89 | F143: =OFFSET(InputPriceData!E$15,CalculationsAndCharts!$A143+$A$11,IF($C$7,8,0),1,1) -> 54.63 | G143: =OFFSET(InputPriceData!F$15,CalculationsAndCharts!$A143+$A$11,IF($C$7,8,0),1,1) -> 54.7 | H143: 49.20865726 | I143: 47.32600892 | J143: 1.882648341 | K143: 1.882648341 | M143: 1.378304833 | N143: 3.978041639 | O143: 2.965212428 | P143: 47.15818989 | Q143: 46.93463866 | S143: 0 | T143: 100 | U143: 24 | V143: 4 | Y143: 1.378304833 | Z143: FALSE | AA143: FALSE | AL143: FALSE | AM143: FALSE | AN143: FALSE | AO143: FALSE
A144: 112 | B144: =OFFSET(InputPriceData!B$15,CalculationsAndCharts!$A144+$A$11,0,1,1) -> 2015-02-23 | C144: =OFFSET(InputPriceData!G$15,CalculationsAndCharts!$A144+$A$11,IF($C$7,8,0),1,1) -> 3228100 | D144: =OFFSET(InputPriceData!C$15,CalculationsAndCharts!$A144+$A$11,IF($C$7,8,0),1,1) -> 49.05 | E144: =OFFSET(InputPriceData!D$15,CalculationsAndCharts!$A144+$A$11,IF($C$7,8,0),1,1) -> 49.97 | F144: =OFFSET(InputPriceData!E$15,CalculationsAndCharts!$A144+$A$11,IF($C$7,8,0),1,1) -> 48.5 | G144: =OFFSET(InputPriceData!F$15,CalculationsAndCharts!$A144+$A$11,IF($C$7,8,0),1,1) -> 49.64 | H144: 48.21023131 | I144: 46.73608963 | J144: 1.474141675 | K144: 1.474141675 | M144: 1.252218955 | N144: 3.154182744 | O144: 2.712005125 | P144: 46.87886359 | Q144: 46.36986555 | S144: 3 | T144: 88 | U144: 23 | V144: 8 | Y144: 1.252218955 | Z144: FALSE | AA144: FALSE | AL144: FALSE | AM144: FALSE | AN144: FALSE | AO144: FALSE
A145: 113 | B145: =OFFSET(InputPriceData!B$15,CalculationsAndCharts!$A145+$A$11,0,1,1) -> 2015-02-20 | C145: =OFFSET(InputPriceData!G$15,CalculationsAndCharts!$A145+$A$11,IF($C$7,8,0),1,1) -> 2091000 | D145: =OFFSET(InputPriceData!C$15,CalculationsAndCharts!$A145+$A$11,IF($C$7,8,0),1,1) -> 48.66 | E145: =OFFSET(InputPriceData!D$15,CalculationsAndCharts!$A145+$A$11,IF($C$7,8,0),1,1) -> 49.62 | F145: =OFFSET(InputPriceData!E$15,CalculationsAndCharts!$A145+$A$11,IF($C$7,8,0),1,1) -> 48.2 | G145: =OFFSET(InputPriceData!F$15,CalculationsAndCharts!$A145+$A$11,IF($C$7,8,0),1,1) -> 49.02 | H145: 47.95027336 | I145: 46.5037768 | J145: 1.44649656 | K145: 1.44649656 | M145: 1.196738276 | N145: 3.110492651 | O145: 2.601460721 | P145: 46.77659927 | Q145: 46.08568067 | S145: 2 | T145: 92 | U145: 22 | V145: 12 | Y145: 1.196738276 | Z145: FALSE | AA145: FALSE | AL145: FALSE | AM145: FALSE | AN145: FALSE | AO145: FALSE
A146: 114 | B146: =OFFSET(InputPriceData!B$15,CalculationsAndCharts!$A146+$A$11,0,1,1) -> 2015-02-19 | C146: =OFFSET(InputPriceData!G$15,CalculationsAndCharts!$A146+$A$11,IF($C$7,8,0),1,1) -> 1971700 | D146: =OFFSET(InputPriceData!C$15,CalculationsAndCharts!$A146+$A$11,IF($C$7,8,0),1,1) -> 48.07 | E146: =OFFSET(InputPriceData!D$15,CalculationsAndCharts!$A146+$A$11,IF($C$7,8,0),1,1) -> 48.98 | F146: =OFFSET(InputPriceData!E$15,CalculationsAndCharts!$A146+$A$11,IF($C$7,8,0),1,1) -> 47.35 | G146: =OFFSET(InputPriceData!F$15,CalculationsAndCharts!$A146+$A$11,IF($C$7,8,0),1,1) -> 48.41 | H146: 47.75577761 | I146: 46.30247895 | J146: 1.453298663 | K146: 1.453298663 | M146: 1.134298705 | N146: 3.138705953 | O146: 2.474202738 | P146: 46.69351036 | Q146: 45.8294958 | S146: 1 | T146: 96 | U146: 21 | V146: 16 | Y146: 1.134298705 | Z146: FALSE | AA146: FALSE | AL146: FALSE | AM146: FALSE | AN146: FALSE | AO146: FALSE
A147: 115 | B147: =OFFSET(InputPriceData!B$15,CalculationsAndCharts!$A147+$A$11,0,1,1) -> 2015-02-18 | C147: =OFFSET(InputPriceData!G$15,CalculationsAndCharts!$A147+$A$11,IF($C$7,8,0),1,1) -> 3780900 | D147: =OFFSET(InputPriceData!C$15,CalculationsAndCharts!$A147+$A$11,IF($C$7,8,0),1,1) -> 49.6 | E147: =OFFSET(InputPriceData!D$15,CalculationsAndCharts!$A147+$A$11,IF($C$7,8,0),1,1) -> 50.79 | F147: =OFFSET(InputPriceData!E$15,CalculationsAndCharts!$A147+$A$11,IF($C$7,8,0),1,1) -> 48.59 | G147: =OFFSET(InputPriceData!F$15,CalculationsAndCharts!$A147+$A$11,IF($C$7,8,0),1,1) -> 48.84 | H147: 47.63682808 | I147: 46.13387726 | J147: 1.502950822 | K147: 1.502950822 | M147: 1.054548715 | N147: 3.257802966 | O147: 2.308076935 | P147: 46.62993667 | Q147: 45.60163025 | S147: 0 | T147: 100 | U147: 20 | V147: 20 | Y147: 1.054548715 | Z147: FALSE | AA147: FALSE | AL147: FALSE | AM147: FALSE | AN147: FALSE | AO147: FALSE
A148: 116 | B148: =OFFSET(InputPriceData!B$15,CalculationsAndCharts!$A148+$A$11,0,1,1) -> 2015-02-17 | C148: =OFFSET(InputPriceData!G$15,CalculationsAndCharts!$A148+$A$11,IF($C$7,8,0),1,1) -> 2467800 | D148: =OFFSET(InputPriceData!C$15,CalculationsAndCharts!$A148+$A$11,IF($C$7,8,0),1,1) -> 49.16 | E148: =OFFSET(InputPriceData!D$15,CalculationsAndCharts!$A148+$A$11,IF($C$7,8,0),1,1) -> 49.85 | F148: =OFFSET(InputPriceData!E$15,CalculationsAndCharts!$A148+$A$11,IF($C$7,8,0),1,1) -> 48.33 | G148: =OFFSET(InputPriceData!F$15,CalculationsAndCharts!$A148+$A$11,IF($C$7,8,0),1,1) -> 49.62 | H148: 47.41806955 | I148: 45.91738744 | J148: 1.50068211 | K148: 1.50068211 | M148: 0.9424481884 | N148: 3.268221896 | O148: 2.070645427 | P148: 46.54808247 | Q148: 45.34176471 | S148: 3 | T148: 88 | U148: 19 | V148: 24 | Y148: 0.9424481884 | Z148: FALSE | AA148: FALSE | AL148: FALSE | AM148: FALSE | AN148: FALSE | AO148: FALSE
A149: 117 | B149: =OFFSET(InputPriceData!B$15,CalculationsAndCharts!$A149+$A$11,0,1,1) -> 2015-02-13 | C149: =OFFSET(InputPriceData!G$15,CalculationsAndCharts!$A149+$A$11,IF($C$7,8,0),1,1) -> 2695900 | D149: =OFFSET(InputPriceData!C$15,CalculationsAndCharts!$A149+$A$11,IF($C$7,8,0),1,1) -> 49.64 | E149: =OFFSET(InputPriceData!D$15,CalculationsAndCharts!$A149+$A$11,IF($C$7,8,0),1,1) -> 49.99 | F149: =OFFSET(InputPriceData!E$15,CalculationsAndCharts!$A149+$A$11,IF($C$7,8,0),1,1) -> 48.62 | G149: =OFFSET(InputPriceData!F$15,CalculationsAndCharts!$A149+$A$11,IF($C$7,8,0),1,1) -> 48.84 | H149: 47.01771856 | I149: 45.62117844 | J149: 1.396540125 | K149: 1.396540125 | M149: 0.8028897079 | N149: 3.061166267 | O149: 1.771251309 | P149: 46.43430775 | Q149: 45.02845378 | S149: 2 | T149: 92 | U149: 18 | V149: 28 | Y149: 0.8028897079 | Z149: FALSE | AA149: FALSE | AL149: FALSE | AM149: FALSE | AN149: FALSE | AO149: FALSE
A150: 118 | B150: =OFFSET(InputPriceData!B$15,CalculationsAndCharts!$A150+$A$11,0,1,1) -> 2015-02-12 | C150: =OFFSET(InputPriceData!G$15,CalculationsAndCharts!$A150+$A$11,IF($C$7,8,0),1,1) -> 3267500 | D150: =OFFSET(InputPriceData!C$15,CalculationsAndCharts!$A150+$A$11,IF($C$7,8,0),1,1) -> 49.27 | E150: =OFFSET(InputPriceData!D$15,CalculationsAndCharts!$A150+$A$11,IF($C$7,8,0),1,1) -> 49.85 | F150: =OFFSET(InputPriceData!E$15,CalculationsAndCharts!$A150+$A$11,IF($C$7,8,0),1,1) -> 48.71 | G150: =OFFSET(InputPriceData!F$15,CalculationsAndCharts!$A150+$A$11,IF($C$7,8,0),1,1) -> 49.42 | H150: 46.68639466 | I150: 45.36367271 | J150: 1.322721952 | K150: 1.322721952 | M150: 0.6544771036 | N150: 2.915817598 | O150: 1.44877257 | P150: 46.34520803 | Q150: 44.75102521 | S150: 1 | T150: 96 | U150: 17 | V150: 32 | Y150: 0.6544771036 | Z150: FALSE | AA150: FALSE | AL150: FALSE | AM150: FALSE | AN150: FALSE | AO150: FALSE
A151: 119 | B151: =OFFSET(InputPriceData!B$15,CalculationsAndCharts!$A151+$A$11,0,1,1) -> 2015-02-11 | C151: =OFFSET(InputPriceData!G$15,CalculationsAndCharts!$A151+$A$11,IF($C$7,8,0),1,1) -> 12070000 | D151: =OFFSET(InputPriceData!C$15,CalculationsAndCharts!$A151+$A$11,IF($C$7,8,0),1,1) -> 49.85 | E151: =OFFSET(InputPriceData!D$15,CalculationsAndCharts!$A151+$A$11,IF($C$7,8,0),1,1) -> 50.29 | F151: =OFFSET(InputPriceData!E$15,CalculationsAndCharts!$A151+$A$11,IF($C$7,8,0),1,1) -> 48.12 | G151: =OFFSET(InputPriceData!F$15,CalculationsAndCharts!$A151+$A$11,IF($C$7,8,0),1,1) -> 48.77 | H151: 46.18937551 | I151: 45.03916653 | J151: 1.150208983 | K151: 1.150208983 | M151: 0.4874158916 | N151: 2.553797221 | O151: 1.082011313 | P151: 46.23132685 | Q151: 44.43144538 | S151: 0 | T151: 100 | U151: 16 | V151: 36 | Y151: 0.4874158916 | Z151: FALSE | AA151: FALSE | AL151: FALSE | AM151: FALSE | AN151: FALSE | AO151: FALSE
A152: 120 | B152: =OFFSET(InputPriceData!B$15,CalculationsAndCharts!$A152+$A$11,0,1,1) -> 2015-02-10 | C152: =OFFSET(InputPriceData!G$15,CalculationsAndCharts!$A152+$A$11,IF($C$7,8,0),1,1) -> 9140400 | D152: =OFFSET(InputPriceData!C$15,CalculationsAndCharts!$A152+$A$11,IF($C$7,8,0),1,1) -> 46.7 | E152: =OFFSET(InputPriceData!D$15,CalculationsAndCharts!$A152+$A$11,IF($C$7,8,0),1,1) -> 48.69 | F152: =OFFSET(InputPriceData!E$15,CalculationsAndCharts!$A152+$A$11,IF($C$7,8,0),1,1) -> 44.62 | G152: =OFFSET(InputPriceData!F$15,CalculationsAndCharts!$A152+$A$11,IF($C$7,8,0),1,1) -> 48.54 | H152: 45.72017106 | I152: 44.74069985 | J152: 0.9794712085 | K152: 0.9794712085 | M152: 0.3217176187 | N152: 2.18921745 | O152: 0.7140648364 | P152: 46.13730192 | Q152: 44.14072269 | S152: 0 | T152: 100 | U152: 15 | V152: 40 | Y152: 0.3217176187 | Z152: FALSE | AA152: FALSE | AL152: FALSE | AM152: FALSE | AN152: FALSE | AO152: FALSE
A153: 121 | B153: =OFFSET(InputPriceData!B$15,CalculationsAndCharts!$A153+$A$11,0,1,1) -> 2015-02-09 | C153: =OFFSET(InputPriceData!G$15,CalculationsAndCharts!$A153+$A$11,IF($C$7,8,0),1,1) -> 2359600 | D153: =OFFSET(InputPriceData!C$15,CalculationsAndCharts!$A153+$A$11,IF($C$7,8,0),1,1) -> 46.78 | E153: =OFFSET(InputPriceData!D$15,CalculationsAndCharts!$A153+$A$11,IF($C$7,8,0),1,1) -> 47.68 | F153: =OFFSET(InputPriceData!E$15,CalculationsAndCharts!$A153+$A$11,IF($C$7,8,0),1,1) -> 46.06 | G153: =OFFSET(InputPriceData!F$15,CalculationsAndCharts!$A153+$A$11,IF($C$7,8,0),1,1) -> 46.33 | H153: 45.20747489 | I153: 44.43675584 | J153: 0.7707190495 | K153: 0.7707190495 | M153: 0.1572792212 | N153: 1.734417905 | O153: 0.345276683 | P153: 46.0483131 | Q153: 43.8572437 | S153: 4 | T153: 84 | U153: 14 | V153: 44 | Y153: 0.1572792212 | Z153: FALSE | AA153: FALSE | AL153: FALSE | AM153: FALSE | AN153: FALSE | AO153: FALSE
A154: 122 | B154: =OFFSET(InputPriceData!B$15,CalculationsAndCharts!$A154+$A$11,0,1,1) -> 2015-02-06 | C154: =OFFSET(InputPriceData!G$15,CalculationsAndCharts!$A154+$A$11,IF($C$7,8,0),1,1) -> 1398200 | D154: =OFFSET(InputPriceData!C$15,CalculationsAndCharts!$A154+$A$11,IF($C$7,8,0),1,1) -> 46.99 | E154: =OFFSET(InputPriceData!D$15,CalculationsAndCharts!$A154+$A$11,IF($C$7,8,0),1,1) -> 47.87 | F154: =OFFSET(InputPriceData!E$15,CalculationsAndCharts!$A154+$A$11,IF($C$7,8,0),1,1) -> 46.75 | G154: =OFFSET(InputPriceData!F$15,CalculationsAndCharts!$A154+$A$11,IF($C$7,8,0),1,1) -> 46.9 | H154: 45.00337942 | I154: 44.28529631 | J154: 0.7180831077 | K154: 0.7180831077 | M154: 0.003919264141 | N154: 1.621493289 | O154: -0.00200862247 | P154: 46.03788025 | Q154: 43.69816807 | S154: 3 | T154: 88 | U154: 13 | V154: 48 | Y154: 0.003919264141 | Z154: FALSE | AA154: FALSE | AL154: FALSE | AM154: FALSE | AN154: FALSE | AO154: FALSE
A155: 123 | B155: =OFFSET(InputPriceData!B$15,CalculationsAndCharts!$A155+$A$11,0,1,1) -> 2015-02-05 | C155: =OFFSET(InputPriceData!G$15,CalculationsAndCharts!$A155+$A$11,IF($C$7,8,0),1,1) -> 1766500 | D155: =OFFSET(InputPriceData!C$15,CalculationsAndCharts!$A155+$A$11,IF($C$7,8,0),1,1) -> 47.24 | E155: =OFFSET(InputPriceData!D$15,CalculationsAndCharts!$A155+$A$11,IF($C$7,8,0),1,1) -> 47.65 | F155: =OFFSET(InputPriceData!E$15,CalculationsAndCharts!$A155+$A$11,IF($C$7,8,0),1,1) -> 46.29 | G155: =OFFSET(InputPriceData!F$15,CalculationsAndCharts!$A155+$A$11,IF($C$7,8,0),1,1) -> 46.9 | H155: 44.65853931 | I155: 44.07612001 | J155: 0.5824192968 | K155: 0.5824192968 | M155: -0.1746216968 | N155: 1.321394208 | O155: -0.4078841004 | P155: 46.00594989 | Q155: 43.49887395 | S155: 2 | T155: 92 | U155: 12 | V155: 52 | Y155: -0.1746216968 | Z155: FALSE | AA155: FALSE | AL155: FALSE | AM155: FALSE | AN155: FALSE | AO155: FALSE
A156: 124 | B156: =OFFSET(InputPriceData!B$15,CalculationsAndCharts!$A156+$A$11,0,1,1) -> 2015-02-04 | C156: =OFFSET(InputPriceData!G$15,CalculationsAndCharts!$A156+$A$11,IF($C$7,8,0),1,1) -> 2236800 | D156: =OFFSET(InputPriceData!C$15,CalculationsAndCharts!$A156+$A$11,IF($C$7,8,0),1,1) -> 47.46 | E156: =OFFSET(InputPriceData!D$15,CalculationsAndCharts!$A156+$A$11,IF($C$7,8,0),1,1) -> 47.95 | F156: =OFFSET(InputPriceData!E$15,CalculationsAndCharts!$A156+$A$11,IF($C$7,8,0),1,1) -> 46.22 | G156: =OFFSET(InputPriceData!F$15,CalculationsAndCharts!$A156+$A$11,IF($C$7,8,0),1,1) -> 46.98 | H156: 44.251001 | I156: 43.85020961 | J156: 0.4007913884 | K156: 0.4007913884 | M156: -0.3638819452 | N156: 0.9140010777 | O156: -0.8402036774 | P156: 45.97283692 | Q156: 43.2894958 | S156: 1 | T156: 96 | U156: 11 | V156: 56 | Y156: -0.3638819452 | Z156: FALSE | AA156: FALSE | AL156: FALSE | AM156: FALSE | AN156: FALSE | AO156: FALSE
A157: 125 | B157: =OFFSET(InputPriceData!B$15,CalculationsAndCharts!$A157+$A$11,0,1,1) -> 2015-02-03 | C157: =OFFSET(InputPriceData!G$15,CalculationsAndCharts!$A157+$A$11,IF($C$7,8,0),1,1) -> 4290400 | D157: =OFFSET(InputPriceData!C$15,CalculationsAndCharts!$A157+$A$11,IF($C$7,8,0),1,1) -> 46.19 | E157: =OFFSET(InputPriceData!D$15,CalculationsAndCharts!$A157+$A$11,IF($C$7,8,0),1,1) -> 48.62 | F157: =OFFSET(InputPriceData!E$15,CalculationsAndCharts!$A157+$A$11,IF($C$7,8,0),1,1) -> 46.15 | G157: =OFFSET(InputPriceData!F$15,CalculationsAndCharts!$A157+$A$11,IF($C$7,8,0),1,1) -> 48.16 | H157: 43.75481937 | I157: 43.59982638 | J157: 0.1549929833 | K157: 0.1549929833 | M157: -0.5550502786 | N157: 0.3554899094 | O157: -1.278754866 | P157: 45.93553459 | Q157: 43.06660504 | S157: 0 | T157: 100 | U157: 10 | V157: 60 | Y157: -0.5550502786 | Z157: FALSE | AA157: FALSE | AL157: FALSE | AM157: FALSE | AN157: FALSE | AO157: FALSE
A158: 126 | B158: =OFFSET(InputPriceData!B$15,CalculationsAndCharts!$A158+$A$11,0,1,1) -> 2015-02-02 | C158: =OFFSET(InputPriceData!G$15,CalculationsAndCharts!$A158+$A$11,IF($C$7,8,0),1,1) -> 3311200 | D158: =OFFSET(InputPriceData!C$15,CalculationsAndCharts!$A158+$A$11,IF($C$7,8,0),1,1) -> 42.68 | E158: =OFFSET(InputPriceData!D$15,CalculationsAndCharts!$A158+$A$11,IF($C$7,8,0),1,1) -> 45.64 | F158: =OFFSET(InputPriceData!E$15,CalculationsAndCharts!$A158+$A$11,IF($C$7,8,0),1,1) -> 42.59 | G158: =OFFSET(InputPriceData!F$15,CalculationsAndCharts!$A158+$A$11,IF($C$7,8,0),1,1) -> 45.48 | H158: 42.95387743 | I158: 43.23501249 | J158: -0.2811350608 | L158: -0.2811350608 | M158: -0.732561094 | N158: -0.6502485939 | O158: -1.68731606 | P158: 45.85314698 | Q158: 42.76613445 | S158: 0 | T158: 100 | U158: 9 | V158: 64 | Y158: -0.732561094 | Z158: FALSE | AA158: FALSE | AL158: TRUE | AM158: TRUE | AN158: FALSE | AO158: FALSE
A159: 127 | B159: =OFFSET(InputPriceData!B$15,CalculationsAndCharts!$A159+$A$11,0,1,1) -> 2015-01-30 | C159: =OFFSET(InputPriceData!G$15,CalculationsAndCharts!$A159+$A$11,IF($C$7,8,0),1,1) -> 1944500 | D159: =OFFSET(InputPriceData!C$15,CalculationsAndCharts!$A159+$A$11,IF($C$7,8,0),1,1) -> 41.92 | E159: =OFFSET(InputPriceData!D$15,CalculationsAndCharts!$A159+$A$11,IF($C$7,8,0),1,1) -> 43.22 | F159: =OFFSET(InputPriceData!E$15,CalculationsAndCharts!$A159+$A$11,IF($C$7,8,0),1,1) -> 41.82 | G159: =OFFSET(InputPriceData!F$15,CalculationsAndCharts!$A159+$A$11,IF($C$7,8,0),1,1) -> 42.32 | H159: 42.49458242 | I159: 43.05541349 | J159: -0.5608310726 | L159: -0.5608310726 | M159: -0.8454176023 | N159: -1.302579692 | O159: -1.946582927 | P159: 45.86696724 | Q159: 42.61470588 | S159: 23 | T159: 8 | U159: 8 | V159: 68 | Y159: -0.8454176023 | Z159: FALSE | AA159: FALSE | AL159: FALSE | AM159: FALSE | AN159: FALSE | AO159: FALSE
A160: 128 | B160: =OFFSET(InputPriceData!B$15,CalculationsAndCharts!$A160+$A$11,0,1,1) -> 2015-01-29 | C160: =OFFSET(InputPriceData!G$15,CalculationsAndCharts!$A160+$A$11,IF($C$7,8,0),1,1) -> 1604800 | D160: =OFFSET(InputPriceData!C$15,CalculationsAndCharts!$A160+$A$11,IF($C$7,8,0),1,1) -> 42.88 | E160: =OFFSET(InputPriceData!D$15,CalculationsAndCharts!$A160+$A$11,IF($C$7,8,0),1,1) -> 42.99 | F160: =OFFSET(InputPriceData!E$15,CalculationsAndCharts!$A160+$A$11,IF($C$7,8,0),1,1) -> 41.15 | G160: =OFFSET(InputPriceData!F$15,CalculationsAndCharts!$A160+$A$11,IF($C$7,8,0),1,1) -> 42.36 | H160: 42.52632468 | I160: 43.11424657 | J160: -0.5879218939 | L160: -0.5879218939 | M160: -0.9165642347 | N160: -1.363637175 | O160: -2.107583735 | P160: 45.9983364 | Q160: 42.64510924 | S160: 22 | T160: 12 | U160: 7 | V160: 72 | Y160: -0.9165642347 | Z160: FALSE | AA160: FALSE | AL160: FALSE | AM160: FALSE | AN160: FALSE | AO160: FALSE
A161: 129 | B161: =OFFSET(InputPriceData!B$15,CalculationsAndCharts!$A161+$A$11,0,1,1) -> 2015-01-28 | C161: =OFFSET(InputPriceData!G$15,CalculationsAndCharts!$A161+$A$11,IF($C$7,8,0),1,1) -> 2192600 | D161: =OFFSET(InputPriceData!C$15,CalculationsAndCharts!$A161+$A$11,IF($C$7,8,0),1,1) -> 43.66 | E161: =OFFSET(InputPriceData!D$15,CalculationsAndCharts!$A161+$A$11,IF($C$7,8,0),1,1) -> 44.48 | F161: =OFFSET(InputPriceData!E$15,CalculationsAndCharts!$A161+$A$11,IF($C$7,8,0),1,1) -> 42.53 | G161: =OFFSET(InputPriceData!F$15,CalculationsAndCharts!$A161+$A$11,IF($C$7,8,0),1,1) -> 42.7 | H161: =IF($A161>$A$8,NA(),IF(A161=$A$8,G161,G161*$C$16+H162*$D$16)) -> 42.55656553 | I161: =IF(A161>$A$8,NA(),IF(A161=$A$8,G161,G161*$C$17+I162*$D$17)) -> 43.1745863 | J161: -0.6180207691 | L161: -0.6180207691 | M161: =IF($A161>$A$8,NA(),IF(A161=$A$8,J161,J161*$C$18+M162*$D$18)) -> -0.99872482 | N161: -1.431445723 | O161: -2.293570375 | P161: =IF(A161>$A$8,NA(),IF(A161=$A$8,G161,G161*$C$19+P162*$D$19)) -> 46.1330896 | Q161: 42.67776471 | R161: =IF(A161>$A$20,"",$A$20+1-$A161) ->  | S161: =MATCH(MAX(OFFSET(E161,0,0,$A$21,1)),OFFSET(E161,0,0,$A$21,1),0)-1 -> 21 | T161: =(($A$21 - (MATCH(MAX(OFFSET(E161,0,0,$A$21,1)),OFFSET(E161,0,0,$A$21,1),0)-1)) / $A$21) * 100 -> 16 | U161: =MATCH(MIN(OFFSET(F161,0,0,$A$21,1)),OFFSET(F161,0,0,$A$21,1),0)-1 -> 6 | V161: =(($A$21 - (MATCH(MIN(OFFSET(F161,0,0,$A$21,1)),OFFSET(F161,0,0,$A$21,1),0)-1)) / $A$21) * 100 -> 76 | Y161: =IF($S$9,M161,NA()) -> -0.99872482 | Z161: FALSE | AA161: FALSE | AB161: =IF(AND($S$9,$S$10,$Z161),$AV$33,NA()) ->  | AC161: =IF(AND($S$9,$S$10,$Z161),$AV$34,NA()) ->  | AD161: =IF(AND($S$9,$S$10,$AA161),$AV$33,NA()) ->  | AE161: =IF(AND($S$9,$S$10,$AA161),$AV$34,NA()) ->  | AF161: =IF(AND($S$9,$S$10,Z161),F161,NA()) ->  | AG161: =IF(AND($S$9,$S$10,AA161),E161,NA()) ->  | AH161: =IF(OR(NOT($S$6),$A161>$A$8),NA(),IF($J161>=0,$F$11,NA())) ->  | AI161: =IF(OR(NOT($S$6),$A161>$A$8),NA(),IF($J161<0,$F$11,NA())) ->  | AL161: FALSE | AM161: FALSE | AN161: FALSE | AO161: FALSE | AP161: =IF(AND($S$16,AM161),V161,NA()) ->  | AQ161: =IF(AND($S$16,AO161),T161,NA()) ->  | AR161: =IF(AND($S$16,$S$17,AM161),F161,NA()) ->  | AS161: =IF(AND($S$16,$S$17,AO161),E161,NA()) -> 
A162: 130 | B162: =OFFSET(InputPriceData!B$15,CalculationsAndCharts!$A162+$A$11,0,1,1) -> 2015-01-27 | C162: =OFFSET(InputPriceData!G$15,CalculationsAndCharts!$A162+$A$11,IF($C$7,8,0),1,1) -> 1915900 | D162: =OFFSET(InputPriceData!C$15,CalculationsAndCharts!$A162+$A$11,IF($C$7,8,0),1,1) -> 43.3 | E162: =OFFSET(InputPriceData!D$15,CalculationsAndCharts!$A162+$A$11,IF($C$7,8,0),1,1) -> 44.04 | F162: =OFFSET(InputPriceData!E$15,CalculationsAndCharts!$A162+$A$11,IF($C$7,8,0),1,1) -> 42.69 | G162: =OFFSET(InputPriceData!F$15,CalculationsAndCharts!$A162+$A$11,IF($C$7,8,0),1,1) -> 43.72 | H162: 42.53048653 | I162: 43.2125532 | J162: =H162-I162 -> -0.6820666678 | K162: =IF($A162>$A$8,NA(),IF($J162>=0,$J162,NA())) ->  | L162: =IF($A162>$A$8,NA(),IF($J162<0,$J162,NA())) -> -0.6820666678 | M162: -1.093900833 | N162: =(H162-I162)/I162*100 -> -1.578399371 | O162: =IF($A162>$A$8,NA(),IF($A162=$A$8,N162,N162*$C$18+O163*$D$18)) -> -2.509101538 | P162: 46.26024106 | Q162: =SUMPRODUCT(OFFSET(G162,0,0,$A$20,1),OFFSET($R$33,0,0,A$20,1))/$R$31 -> 42.69426891 | S162: 24 | T162: 4 | U162: 5 | V162: 80 | W162: =IF($S$3,P162,NA()) ->  | X162: =IF($S$3,Q162,NA()) ->  | Y162: -1.093900833 | Z162: FALSE | AA162: FALSE | AJ162: =IF(AND($S$3,$S$4,G162<Q162,E162>=P162),E162,NA()) ->  | AK162: =IF(AND($S$3,$S$4,P162>Q162,G162>Q162),F162,NA()) ->  | AL162: =IF(AND(T163<V163,T162>V162),TRUE,IF(T163=100,FALSE,AL163)) -> FALSE | AM162: =AND(AL162,T162=100) -> FALSE | AN162: =IF(AND(T163>V163,T162<V162),TRUE,IF(V163=100,FALSE,AN163)) -> FALSE | AO162: =AND(AN162,V162=100) -> FALSE
A163: 131 | B163: =OFFSET(InputPriceData!B$15,CalculationsAndCharts!$A163+$A$11,0,1,1) -> 2015-01-26 | C163: =OFFSET(InputPriceData!G$15,CalculationsAndCharts!$A163+$A$11,IF($C$7,8,0),1,1) -> 1745100 | D163: =OFFSET(InputPriceData!C$15,CalculationsAndCharts!$A163+$A$11,IF($C$7,8,0),1,1) -> 42.35 | E163: =OFFSET(InputPriceData!D$15,CalculationsAndCharts!$A163+$A$11,IF($C$7,8,0),1,1) -> 44.38 | F163: =OFFSET(InputPriceData!E$15,CalculationsAndCharts!$A163+$A$11,IF($C$7,8,0),1,1) -> 42.03 | G163: =OFFSET(InputPriceData!F$15,CalculationsAndCharts!$A163+$A$11,IF($C$7,8,0),1,1) -> 44.17 | H163: 42.31421136 | I163: 43.17195746 | J163: -0.8577460996 | L163: -0.8577460996 | M163: -1.196859374 | N163: -1.986813084 | O163: -2.74177708 | P163: 46.35432406 | Q163: 42.65784874 | S163: 24 | T163: 4 | U163: 4 | V163: 84 | Y163: -1.196859374 | Z163: FALSE | AA163: FALSE | AL163: FALSE | AM163: FALSE | AN163: FALSE | AO163: FALSE
A164: 132 | B164: =OFFSET(InputPriceData!B$15,CalculationsAndCharts!$A164+$A$11,0,1,1) -> 2015-01-23 | C164: =OFFSET(InputPriceData!G$15,CalculationsAndCharts!$A164+$A$11,IF($C$7,8,0),1,1) -> 1797400 | D164: =OFFSET(InputPriceData!C$15,CalculationsAndCharts!$A164+$A$11,IF($C$7,8,0),1,1) -> 41.74 | E164: =OFFSET(InputPriceData!D$15,CalculationsAndCharts!$A164+$A$11,IF($C$7,8,0),1,1) -> 43.1 | F164: =OFFSET(InputPriceData!E$15,CalculationsAndCharts!$A164+$A$11,IF($C$7,8,0),1,1) -> 41.5 | G164: =OFFSET(InputPriceData!F$15,CalculationsAndCharts!$A164+$A$11,IF($C$7,8,0),1,1) -> 42.54 | H164: 41.97679524 | I164: 43.09211405 | J164: -1.115318813 | L164: -1.115318813 | M164: -1.281637692 | N164: -2.588220229 | O164: -2.930518079 | P164: 46.43522496 | Q164: 42.6 | S164: 23 | T164: 8 | U164: 3 | V164: 88 | Y164: -1.281637692 | Z164: FALSE | AA164: FALSE | AL164: FALSE | AM164: FALSE | AN164: FALSE | AO164: FALSE
A165: 133 | B165: =OFFSET(InputPriceData!B$15,CalculationsAndCharts!$A165+$A$11,0,1,1) -> 2015-01-22 | C165: =OFFSET(InputPriceData!G$15,CalculationsAndCharts!$A165+$A$11,IF($C$7,8,0),1,1) -> 1740300 | D165: =OFFSET(InputPriceData!C$15,CalculationsAndCharts!$A165+$A$11,IF($C$7,8,0),1,1) -> 41.74 | E165: =OFFSET(InputPriceData!D$15,CalculationsAndCharts!$A165+$A$11,IF($C$7,8,0),1,1) -> 42 | F165: =OFFSET(InputPriceData!E$15,CalculationsAndCharts!$A165+$A$11,IF($C$7,8,0),1,1) -> 40.57 | G165: =OFFSET(InputPriceData!F$15,CalculationsAndCharts!$A165+$A$11,IF($C$7,8,0),1,1) -> 41.9 | H165: 41.87439438 | I165: 43.13628318 | J165: -1.261888803 | L165: -1.261888803 | M165: -1.323217412 | N165: -2.925353576 | O165: -3.016092542 | P165: 46.57949255 | Q165: 42.6429916 | S165: 22 | T165: 12 | U165: 2 | V165: 92 | Y165: -1.323217412 | Z165: TRUE | AA165: FALSE | AB165: -5 | AC165: 5 | AF165: 40.57 | AL165: FALSE | AM165: FALSE | AN165: FALSE | AO165: FALSE
A166: 134 | B166: =OFFSET(InputPriceData!B$15,CalculationsAndCharts!$A166+$A$11,0,1,1) -> 2015-01-21 | C166: =OFFSET(InputPriceData!G$15,CalculationsAndCharts!$A166+$A$11,IF($C$7,8,0),1,1) -> 2434700 | D166: =OFFSET(InputPriceData!C$15,CalculationsAndCharts!$A166+$A$11,IF($C$7,8,0),1,1) -> 39.77 | E166: =OFFSET(InputPriceData!D$15,CalculationsAndCharts!$A166+$A$11,IF($C$7,8,0),1,1) -> 41.9 | F166: =OFFSET(InputPriceData!E$15,CalculationsAndCharts!$A166+$A$11,IF($C$7,8,0),1,1) -> 39.69 | G166: =OFFSET(InputPriceData!F$15,CalculationsAndCharts!$A166+$A$11,IF($C$7,8,0),1,1) -> 41.4 | H166: 41.86973881 | I166: 43.23518583 | J166: -1.365447025 | L166: -1.365447025 | M166: -1.338549565 | N166: -3.158184702 | O166: -3.038777283 | P166: 46.75280709 | Q166: 42.73015126 | S166: 21 | T166: 16 | U166: 1 | V166: 96 | Y166: -1.338549565 | Z166: FALSE | AA166: FALSE | AL166: FALSE | AM166: FALSE | AN166: FALSE | AO166: FALSE
A167: 135 | B167: =OFFSET(InputPriceData!B$15,CalculationsAndCharts!$A167+$A$11,0,1,1) -> 2015-01-20 | C167: =OFFSET(InputPriceData!G$15,CalculationsAndCharts!$A167+$A$11,IF($C$7,8,0),1,1) -> 2071000 | D167: =OFFSET(InputPriceData!C$15,CalculationsAndCharts!$A167+$A$11,IF($C$7,8,0),1,1) -> 40.67 | E167: =OFFSET(InputPriceData!D$15,CalculationsAndCharts!$A167+$A$11,IF($C$7,8,0),1,1) -> 40.72 | F167: =OFFSET(InputPriceData!E$15,CalculationsAndCharts!$A167+$A$11,IF($C$7,8,0),1,1) -> 39.18 | G167: =OFFSET(InputPriceData!F$15,CalculationsAndCharts!$A167+$A$11,IF($C$7,8,0),1,1) -> 39.83 | H167: 41.95514586 | I167: 43.3820007 | J167: -1.426854836 | L167: -1.426854836 | M167: -1.3318252 | N167: -3.289048021 | O167: -3.008925429 | P167: 46.9510592 | Q167: 42.85321008 | S167: 20 | T167: 20 | U167: 0 | V167: 100 | Y167: -1.3318252 | Z167: FALSE | AA167: FALSE | AL167: FALSE | AM167: FALSE | AN167: FALSE | AO167: FALSE
A168: 136 | B168: =OFFSET(InputPriceData!B$15,CalculationsAndCharts!$A168+$A$11,0,1,1) -> 2015-01-16 | C168: =OFFSET(InputPriceData!G$15,CalculationsAndCharts!$A168+$A$11,IF($C$7,8,0),1,1) -> 2787600 | D168: =OFFSET(InputPriceData!C$15,CalculationsAndCharts!$A168+$A$11,IF($C$7,8,0),1,1) -> 40.18 | E168: =OFFSET(InputPriceData!D$15,CalculationsAndCharts!$A168+$A$11,IF($C$7,8,0),1,1) -> 41.06 | F168: =OFFSET(InputPriceData!E$15,CalculationsAndCharts!$A168+$A$11,IF($C$7,8,0),1,1) -> 39.81 | G168: =OFFSET(InputPriceData!F$15,CalculationsAndCharts!$A168+$A$11,IF($C$7,8,0),1,1) -> 40.72 | H168: 42.34153602 | I168: 43.66616075 | J168: -1.324624735 | L168: -1.324624735 | M168: -1.308067791 | N168: -3.033526904 | O168: -2.93889478 | P168: 47.21480213 | Q168: 43.08105882 | S168: 19 | T168: 24 | U168: 0 | V168: 100 | Y168: -1.308067791 | Z168: FALSE | AA168: TRUE | AD168: -5 | AE168: 5 | AG168: 41.06 | AL168: FALSE | AM168: FALSE | AN168: FALSE | AO168: FALSE
A169: 137 | B169: =OFFSET(InputPriceData!B$15,CalculationsAndCharts!$A169+$A$11,0,1,1) -> 2015-01-15 | C169: =OFFSET(InputPriceData!G$15,CalculationsAndCharts!$A169+$A$11,IF($C$7,8,0),1,1) -> 2499000 | D169: =OFFSET(InputPriceData!C$15,CalculationsAndCharts!$A169+$A$11,IF($C$7,8,0),1,1) -> 42.75 | E169: =OFFSET(InputPriceData!D$15,CalculationsAndCharts!$A169+$A$11,IF($C$7,8,0),1,1) -> 43.09 | F169: =OFFSET(InputPriceData!E$15,CalculationsAndCharts!$A169+$A$11,IF($C$7,8,0),1,1) -> 40.12 | G169: =OFFSET(InputPriceData!F$15,CalculationsAndCharts!$A169+$A$11,IF($C$7,8,0),1,1) -> 40.16 | H169: 42.63636075 | I169: 43.90185362 | J169: -1.265492864 | L169: -1.265492864 | M169: -1.303928555 | N169: -2.88254996 | O169: -2.915236749 | P169: 47.45535036 | Q169: 43.27621849 | S169: 18 | T169: 28 | U169: 7 | V169: 72 | Y169: -1.303928555 | Z169: FALSE | AA169: FALSE | AL169: FALSE | AM169: FALSE | AN169: FALSE | AO169: FALSE
A170: 138 | B170: =OFFSET(InputPriceData!B$15,CalculationsAndCharts!$A170+$A$11,0,1,1) -> 2015-01-14 | C170: =OFFSET(InputPriceData!G$15,CalculationsAndCharts!$A170+$A$11,IF($C$7,8,0),1,1) -> 2131100 | D170: =OFFSET(InputPriceData!C$15,CalculationsAndCharts!$A170+$A$11,IF($C$7,8,0),1,1) -> 42.04 | E170: =OFFSET(InputPriceData!D$15,CalculationsAndCharts!$A170+$A$11,IF($C$7,8,0),1,1) -> 42.82 | F170: =OFFSET(InputPriceData!E$15,CalculationsAndCharts!$A170+$A$11,IF($C$7,8,0),1,1) -> 41.39 | G170: =OFFSET(InputPriceData!F$15,CalculationsAndCharts!$A170+$A$11,IF($C$7,8,0),1,1) -> 42.28 | H170: 43.08660816 | I170: 44.2012019 | J170: -1.114593744 | L170: -1.114593744 | M170: -1.313537478 | N170: -2.521636733 | O170: -2.923408447 | P170: 47.72554852 | Q170: 43.52166387 | S170: 17 | T170: 32 | U170: 6 | V170: 76 | Y170: -1.313537478 | Z170: FALSE | AA170: FALSE | AL170: FALSE | AM170: FALSE | AN170: FALSE | AO170: FALSE
A171: 139 | B171: =OFFSET(InputPriceData!B$15,CalculationsAndCharts!$A171+$A$11,0,1,1) -> 2015-01-13 | C171: =OFFSET(InputPriceData!G$15,CalculationsAndCharts!$A171+$A$11,IF($C$7,8,0),1,1) -> 2445700 | D171: =OFFSET(InputPriceData!C$15,CalculationsAndCharts!$A171+$A$11,IF($C$7,8,0),1,1) -> 43.2 | E171: =OFFSET(InputPriceData!D$15,CalculationsAndCharts!$A171+$A$11,IF($C$7,8,0),1,1) -> 44.49 | F171: =OFFSET(InputPriceData!E$15,CalculationsAndCharts!$A171+$A$11,IF($C$7,8,0),1,1) -> 42.33 | G171: =OFFSET(InputPriceData!F$15,CalculationsAndCharts!$A171+$A$11,IF($C$7,8,0),1,1) -> 42.71 | H171: 43.23326419 | I171: 44.35489806 | J171: -1.121633867 | L171: -1.121633867 | M171: -1.363273411 | N171: -2.528771153 | O171: -3.023851375 | P171: 47.9272355 | Q171: 43.66005042 | S171: 24 | T171: 4 | U171: 5 | V171: 80 | Y171: -1.363273411 | Z171: FALSE | AA171: FALSE | AL171: FALSE | AM171: FALSE | AN171: FALSE | AO171: FALSE
A172: 140 | B172: =OFFSET(InputPriceData!B$15,CalculationsAndCharts!$A172+$A$11,0,1,1) -> 2015-01-12 | C172: =OFFSET(InputPriceData!G$15,CalculationsAndCharts!$A172+$A$11,IF($C$7,8,0),1,1) -> 2358900 | D172: =OFFSET(InputPriceData!C$15,CalculationsAndCharts!$A172+$A$11,IF($C$7,8,0),1,1) -> 43.81 | E172: =OFFSET(InputPriceData!D$15,CalculationsAndCharts!$A172+$A$11,IF($C$7,8,0),1,1) -> 43.89 | F172: =OFFSET(InputPriceData!E$15,CalculationsAndCharts!$A172+$A$11,IF($C$7,8,0),1,1) -> 42.15 | G172: =OFFSET(InputPriceData!F$15,CalculationsAndCharts!$A172+$A$11,IF($C$7,8,0),1,1) -> 42.83 | H172: 43.32840313 | I172: 44.4864899 | J172: -1.158086768 | L172: -1.158086768 | M172: -1.423683297 | N172: -2.60323251 | O172: -3.147621431 | P172: 48.12046645 | Q172: 43.78571429 | S172: 24 | T172: 4 | U172: 4 | V172: 84 | Y172: -1.423683297 | Z172: FALSE | AA172: FALSE | AL172: FALSE | AM172: FALSE | AN172: FALSE | AO172: FALSE
A173: 141 | B173: =OFFSET(InputPriceData!B$15,CalculationsAndCharts!$A173+$A$11,0,1,1) -> 2015-01-09 | C173: =OFFSET(InputPriceData!G$15,CalculationsAndCharts!$A173+$A$11,IF($C$7,8,0),1,1) -> 1965600 | D173: =OFFSET(InputPriceData!C$15,CalculationsAndCharts!$A173+$A$11,IF($C$7,8,0),1,1) -> 43.91 | E173: =OFFSET(InputPriceData!D$15,CalculationsAndCharts!$A173+$A$11,IF($C$7,8,0),1,1) -> 44.44 | F173: =OFFSET(InputPriceData!E$15,CalculationsAndCharts!$A173+$A$11,IF($C$7,8,0),1,1) -> 42.83 | G173: =OFFSET(InputPriceData!F$15,CalculationsAndCharts!$A173+$A$11,IF($C$7,8,0),1,1) -> 44.2 | H173: 43.41902189 | I173: 44.61900909 | J173: -1.199987208 | L173: -1.199987208 | M173: -1.49008243 | N173: -2.689408019 | O173: -3.283718661 | P173: 48.31640965 | Q173: 43.91561345 | S173: 23 | T173: 8 | U173: 3 | V173: 88 | Y173: -1.49008243 | Z173: FALSE | AA173: FALSE | AL173: FALSE | AM173: FALSE | AN173: FALSE | AO173: FALSE
A174: 142 | B174: =OFFSET(InputPriceData!B$15,CalculationsAndCharts!$A174+$A$11,0,1,1) -> 2015-01-08 | C174: =OFFSET(InputPriceData!G$15,CalculationsAndCharts!$A174+$A$11,IF($C$7,8,0),1,1) -> 3205400 | D174: =OFFSET(InputPriceData!C$15,CalculationsAndCharts!$A174+$A$11,IF($C$7,8,0),1,1) -> 42.39 | E174: =OFFSET(InputPriceData!D$15,CalculationsAndCharts!$A174+$A$11,IF($C$7,8,0),1,1) -> 43.68 | F174: =OFFSET(InputPriceData!E$15,CalculationsAndCharts!$A174+$A$11,IF($C$7,8,0),1,1) -> 42.03 | G174: =OFFSET(InputPriceData!F$15,CalculationsAndCharts!$A174+$A$11,IF($C$7,8,0),1,1) -> 43.63 | H174: 43.27702586 | I174: 44.65252982 | J174: -1.375503957 | L174: -1.375503957 | M174: -1.562606235 | N174: -3.080461426 | O174: -3.432296321 | P174: 48.46886927 | Q174: 43.9749916 | S174: 24 | T174: 4 | U174: 2 | V174: 92 | Y174: -1.562606235 | Z174: =AND(J175<M175,J174>M174) -> FALSE | AA174: =AND(J175>M175,J174<M174) -> FALSE | AL174: FALSE | AM174: FALSE | AN174: FALSE | AO174: FALSE
A175: 143 | B175: =OFFSET(InputPriceData!B$15,CalculationsAndCharts!$A175+$A$11,0,1,1) -> 2015-01-07 | C175: =OFFSET(InputPriceData!G$15,CalculationsAndCharts!$A175+$A$11,IF($C$7,8,0),1,1) -> 2869800 | D175: =OFFSET(InputPriceData!C$15,CalculationsAndCharts!$A175+$A$11,IF($C$7,8,0),1,1) -> 42 | E175: =OFFSET(InputPriceData!D$15,CalculationsAndCharts!$A175+$A$11,IF($C$7,8,0),1,1) -> 42.47 | F175: =OFFSET(InputPriceData!E$15,CalculationsAndCharts!$A175+$A$11,IF($C$7,8,0),1,1) -> 41.4 | G175: =OFFSET(InputPriceData!F$15,CalculationsAndCharts!$A175+$A$11,IF($C$7,8,0),1,1) -> 41.75 | H175: 43.21284875 | I175: 44.73433221 | J175: -1.521483458 | L175: -1.521483458 | M175: -1.609381805 | N175: -3.401153841 | O175: -3.520255045 | P175: 48.64808665 | Q175: 44.0767395 | S175: 23 | T175: 8 | U175: 1 | V175: 96 | Y175: -1.609381805 | Z175: FALSE | AA175: FALSE | AL175: FALSE | AM175: FALSE | AN175: FALSE | AO175: FALSE
A176: 144 | B176: =OFFSET(InputPriceData!B$15,CalculationsAndCharts!$A176+$A$11,0,1,1) -> 2015-01-06 | C176: =OFFSET(InputPriceData!G$15,CalculationsAndCharts!$A176+$A$11,IF($C$7,8,0),1,1) -> 3712200 | D176: =OFFSET(InputPriceData!C$15,CalculationsAndCharts!$A176+$A$11,IF($C$7,8,0),1,1) -> 42.01 | E176: =OFFSET(InputPriceData!D$15,CalculationsAndCharts!$A176+$A$11,IF($C$7,8,0),1,1) -> 42.01 | F176: =OFFSET(InputPriceData!E$15,CalculationsAndCharts!$A176+$A$11,IF($C$7,8,0),1,1) -> 39.88 | G176: =OFFSET(InputPriceData!F$15,CalculationsAndCharts!$A176+$A$11,IF($C$7,8,0),1,1) -> 40.86 | H176: 43.47882125 | I176: 44.97307878 | J176: -1.494257535 | L176: -1.494257535 | M176: -1.631356391 | N176: -3.322560019 | O176: -3.550030346 | P176: 48.90357134 | Q176: 44.29633613 | S176: 24 | T176: 4 | U176: 0 | V176: 100 | Y176: -1.631356391 | Z176: FALSE | AA176: FALSE | AL176: FALSE | AM176: FALSE | AN176: FALSE | AO176: FALSE
A177: 145 | B177: =OFFSET(InputPriceData!B$15,CalculationsAndCharts!$A177+$A$11,0,1,1) -> 2015-01-05 | C177: =OFFSET(InputPriceData!G$15,CalculationsAndCharts!$A177+$A$11,IF($C$7,8,0),1,1) -> 3668000 | D177: =OFFSET(InputPriceData!C$15,CalculationsAndCharts!$A177+$A$11,IF($C$7,8,0),1,1) -> 43.88 | E177: =OFFSET(InputPriceData!D$15,CalculationsAndCharts!$A177+$A$11,IF($C$7,8,0),1,1) -> 43.98 | F177: =OFFSET(InputPriceData!E$15,CalculationsAndCharts!$A177+$A$11,IF($C$7,8,0),1,1) -> 41.51 | G177: =OFFSET(InputPriceData!F$15,CalculationsAndCharts!$A177+$A$11,IF($C$7,8,0),1,1) -> 41.83 | H177: 43.95497057 | I177: 45.30212509 | J177: -1.34715452 | L177: -1.34715452 | M177: -1.665631105 | N177: -2.973711536 | O177: -3.606897928 | P177: 49.20148139 | Q177: 44.57961345 | S177: 24 | T177: 4 | U177: 11 | V177: 56 | Y177: -1.665631105 | Z177: FALSE | AA177: FALSE | AL177: FALSE | AM177: FALSE | AN177: FALSE | AO177: FALSE
A178: 146 | B178: =OFFSET(InputPriceData!B$15,CalculationsAndCharts!$A178+$A$11,0,1,1) -> 2015-01-02 | C178: =OFFSET(InputPriceData!G$15,CalculationsAndCharts!$A178+$A$11,IF($C$7,8,0),1,1) -> 1873800 | D178: =OFFSET(InputPriceData!C$15,CalculationsAndCharts!$A178+$A$11,IF($C$7,8,0),1,1) -> 44.72 | E178: =OFFSET(InputPriceData!D$15,CalculationsAndCharts!$A178+$A$11,IF($C$7,8,0),1,1) -> 45.34 | F178: =OFFSET(InputPriceData!E$15,CalculationsAndCharts!$A178+$A$11,IF($C$7,8,0),1,1) -> 43.72 | G178: =OFFSET(InputPriceData!F$15,CalculationsAndCharts!$A178+$A$11,IF($C$7,8,0),1,1) -> 44.55 | H178: 44.34132885 | I178: 45.57989509 | J178: -1.238566242 | L178: -1.238566242 | M178: -1.745250252 | N178: -2.717352111 | O178: -3.765194526 | P178: 49.47449922 | Q178: 44.81709244 | S178: 24 | T178: 4 | U178: 10 | V178: 60 | Y178: -1.745250252 | Z178: FALSE | AA178: FALSE | AL178: FALSE | AM178: FALSE | AN178: FALSE | AO178: FALSE
A179: 147 | B179: =OFFSET(InputPriceData!B$15,CalculationsAndCharts!$A179+$A$11,0,1,1) -> 2014-12-31 | C179: =OFFSET(InputPriceData!G$15,CalculationsAndCharts!$A179+$A$11,IF($C$7,8,0),1,1) -> 1990900 | D179: =OFFSET(InputPriceData!C$15,CalculationsAndCharts!$A179+$A$11,IF($C$7,8,0),1,1) -> 44.52 | E179: =OFFSET(InputPriceData!D$15,CalculationsAndCharts!$A179+$A$11,IF($C$7,8,0),1,1) -> 45.39 | F179: =OFFSET(InputPriceData!E$15,CalculationsAndCharts!$A179+$A$11,IF($C$7,8,0),1,1) -> 43.47 | G179: =OFFSET(InputPriceData!F$15,CalculationsAndCharts!$A179+$A$11,IF($C$7,8,0),1,1) -> 44.6 | H179: 44.30338864 | I179: 45.6622867 | J179: -1.358898058 | L179: -1.358898058 | M179: -1.871921254 | N179: -2.975974609 | O179: -4.02715513 | P179: 49.65688808 | Q179: 44.90761345 | S179: 23 | T179: 8 | U179: 9 | V179: 64 | Y179: -1.871921254 | Z179: FALSE | AA179: FALSE | AL179: FALSE | AM179: FALSE | AN179: FALSE | AO179: FALSE
A180: 148 | B180: =OFFSET(InputPriceData!B$15,CalculationsAndCharts!$A180+$A$11,0,1,1) -> 2014-12-30 | C180: =OFFSET(InputPriceData!G$15,CalculationsAndCharts!$A180+$A$11,IF($C$7,8,0),1,1) -> 1458600 | D180: =OFFSET(InputPriceData!C$15,CalculationsAndCharts!$A180+$A$11,IF($C$7,8,0),1,1) -> 43.94 | E180: =OFFSET(InputPriceData!D$15,CalculationsAndCharts!$A180+$A$11,IF($C$7,8,0),1,1) -> 44.65 | F180: =OFFSET(InputPriceData!E$15,CalculationsAndCharts!$A180+$A$11,IF($C$7,8,0),1,1) -> 43.63 | G180: =OFFSET(InputPriceData!F$15,CalculationsAndCharts!$A180+$A$11,IF($C$7,8,0),1,1) -> 44.52 | H180: 44.2494593 | I180: 45.74726964 | J180: -1.497810332 | L180: -1.497810332 | M180: -2.000177053 | N180: -3.274097763 | O180: -4.28995026 | P180: 49.84418023 | Q180: 45.00601681 | S180: 22 | T180: 12 | U180: 8 | V180: 68 | Y180: -2.000177053 | Z180: FALSE | AA180: FALSE | AL180: FALSE | AM180: FALSE | AN180: FALSE | AO180: FALSE
A181: 149 | B181: =OFFSET(InputPriceData!B$15,CalculationsAndCharts!$A181+$A$11,0,1,1) -> 2014-12-29 | C181: =OFFSET(InputPriceData!G$15,CalculationsAndCharts!$A181+$A$11,IF($C$7,8,0),1,1) -> 1202400 | D181: =OFFSET(InputPriceData!C$15,CalculationsAndCharts!$A181+$A$11,IF($C$7,8,0),1,1) -> 44.26 | E181: =OFFSET(InputPriceData!D$15,CalculationsAndCharts!$A181+$A$11,IF($C$7,8,0),1,1) -> 45 | F181: =OFFSET(InputPriceData!E$15,CalculationsAndCharts!$A181+$A$11,IF($C$7,8,0),1,1) -> 44.16 | G181: =OFFSET(InputPriceData!F$15,CalculationsAndCharts!$A181+$A$11,IF($C$7,8,0),1,1) -> 44.42 | H181: 44.20027009 | I181: 45.84545121 | J181: -1.64518112 | L181: -1.64518112 | M181: -2.125768734 | N181: -3.588537307 | O181: -4.543913384 | P181: 50.04137209 | Q181: 45.1214958 | S181: 21 | T181: 16 | U181: 7 | V181: 72 | Y181: -2.125768734 | Z181: FALSE | AA181: FALSE | AL181: FALSE | AM181: FALSE | AN181: FALSE | AO181: FALSE
A182: 150 | B182: =OFFSET(InputPriceData!B$15,CalculationsAndCharts!$A182+$A$11,0,1,1) -> 2014-12-26 | C182: =OFFSET(InputPriceData!G$15,CalculationsAndCharts!$A182+$A$11,IF($C$7,8,0),1,1) -> 1510100 | D182: =OFFSET(InputPriceData!C$15,CalculationsAndCharts!$A182+$A$11,IF($C$7,8,0),1,1) -> 43.97 | E182: =OFFSET(InputPriceData!D$15,CalculationsAndCharts!$A182+$A$11,IF($C$7,8,0),1,1) -> 45.43 | F182: =OFFSET(InputPriceData!E$15,CalculationsAndCharts!$A182+$A$11,IF($C$7,8,0),1,1) -> 43.8 | G182: =OFFSET(InputPriceData!F$15,CalculationsAndCharts!$A182+$A$11,IF($C$7,8,0),1,1) -> 44.34 | H182: 44.16031919 | I182: 45.9594873 | J182: -1.79916811 | L182: -1.79916811 | M182: -2.245915637 | N182: -3.914682725 | O182: -4.782757404 | P182: 50.24957105 | Q182: 45.25255462 | S182: 20 | T182: 20 | U182: 6 | V182: 76 | Y182: -2.245915637 | Z182: FALSE | AA182: FALSE | AL182: FALSE | AM182: FALSE | AN182: FALSE | AO182: FALSE
A183: 151 | B183: =OFFSET(InputPriceData!B$15,CalculationsAndCharts!$A183+$A$11,0,1,1) -> 2014-12-24 | C183: =OFFSET(InputPriceData!G$15,CalculationsAndCharts!$A183+$A$11,IF($C$7,8,0),1,1) -> 862500 | D183: =OFFSET(InputPriceData!C$15,CalculationsAndCharts!$A183+$A$11,IF($C$7,8,0),1,1) -> 43.99 | E183: =OFFSET(InputPriceData!D$15,CalculationsAndCharts!$A183+$A$11,IF($C$7,8,0),1,1) -> 44.24 | F183: =OFFSET(InputPriceData!E$15,CalculationsAndCharts!$A183+$A$11,IF($C$7,8,0),1,1) -> 43.27 | G183: =OFFSET(InputPriceData!F$15,CalculationsAndCharts!$A183+$A$11,IF($C$7,8,0),1,1) -> 43.67 | H183: 44.12764996 | I183: 46.08904629 | J183: -1.961396332 | L183: -1.961396332 | M183: -2.357602519 | N183: -4.255666996 | O183: -4.999776074 | P183: 50.46844406 | Q183: 45.40847059 | S183: 19 | T183: 24 | U183: 5 | V183: 80 | Y183: -2.357602519 | Z183: FALSE | AA183: FALSE | AL183: FALSE | AM183: FALSE | AN183: FALSE | AO183: FALSE
A184: 152 | B184: =OFFSET(InputPriceData!B$15,CalculationsAndCharts!$A184+$A$11,0,1,1) -> 2014-12-23 | C184: =OFFSET(InputPriceData!G$15,CalculationsAndCharts!$A184+$A$11,IF($C$7,8,0),1,1) -> 1997600 | D184: =OFFSET(InputPriceData!C$15,CalculationsAndCharts!$A184+$A$11,IF($C$7,8,0),1,1) -> 43.84 | E184: =OFFSET(InputPriceData!D$15,CalculationsAndCharts!$A184+$A$11,IF($C$7,8,0),1,1) -> 44.75 | F184: =OFFSET(InputPriceData!E$15,CalculationsAndCharts!$A184+$A$11,IF($C$7,8,0),1,1) -> 43.75 | G184: =OFFSET(InputPriceData!F$15,CalculationsAndCharts!$A184+$A$11,IF($C$7,8,0),1,1) -> 44.06 | H184: 44.21085904 | I184: 46.28256999 | J184: -2.071710952 | L184: -2.071710952 | M184: -2.456654065 | N184: -4.476222803 | O184: -5.185803343 | P184: 50.72023828 | Q184: 45.62383193 | S184: 18 | T184: 28 | U184: 4 | V184: 84 | Y184: -2.456654065 | Z184: FALSE | AA184: FALSE | AL184: FALSE | AM184: FALSE | AN184: FALSE | AO184: FALSE
A185: 153 | B185: =OFFSET(InputPriceData!B$15,CalculationsAndCharts!$A185+$A$11,0,1,1) -> 2014-12-22 | C185: =OFFSET(InputPriceData!G$15,CalculationsAndCharts!$A185+$A$11,IF($C$7,8,0),1,1) -> 2204900 | D185: =OFFSET(InputPriceData!C$15,CalculationsAndCharts!$A185+$A$11,IF($C$7,8,0),1,1) -> 45.05 | E185: =OFFSET(InputPriceData!D$15,CalculationsAndCharts!$A185+$A$11,IF($C$7,8,0),1,1) -> 45.23 | F185: =OFFSET(InputPriceData!E$15,CalculationsAndCharts!$A185+$A$11,IF($C$7,8,0),1,1) -> 43.84 | G185: =OFFSET(InputPriceData!F$15,CalculationsAndCharts!$A185+$A$11,IF($C$7,8,0),1,1) -> 43.84 | H185: 44.23828796 | I185: 46.46037559 | J185: -2.222087635 | L185: -2.222087635 | M185: -2.552889844 | N185: -4.782758655 | O185: -5.363198478 | P185: 50.96691377 | Q185: 45.83843697 | S185: 17 | T185: 32 | U185: 3 | V185: 88 | Y185: -2.552889844 | Z185: FALSE | AA185: FALSE | AL185: FALSE | AM185: FALSE | AN185: FALSE | AO185: FALSE
A186: 154 | B186: =OFFSET(InputPriceData!B$15,CalculationsAndCharts!$A186+$A$11,0,1,1) -> 2014-12-19 | C186: =OFFSET(InputPriceData!G$15,CalculationsAndCharts!$A186+$A$11,IF($C$7,8,0),1,1) -> 3501300 | D186: =OFFSET(InputPriceData!C$15,CalculationsAndCharts!$A186+$A$11,IF($C$7,8,0),1,1) -> 45.44 | E186: =OFFSET(InputPriceData!D$15,CalculationsAndCharts!$A186+$A$11,IF($C$7,8,0),1,1) -> 45.59 | F186: =OFFSET(InputPriceData!E$15,CalculationsAndCharts!$A186+$A$11,IF($C$7,8,0),1,1) -> 44.3 | G186: =OFFSET(InputPriceData!F$15,CalculationsAndCharts!$A186+$A$11,IF($C$7,8,0),1,1) -> 45.03 | H186: 44.31070395 | I186: 46.67000564 | J186: -2.35930169 | L186: -2.35930169 | M186: -2.635590396 | N186: -5.055284777 | O186: -5.508308433 | P186: 51.23087354 | Q186: 46.08993277 | S186: 16 | T186: 36 | U186: 2 | V186: 92 | Y186: -2.635590396 | Z186: FALSE | AA186: FALSE | AL186: FALSE | AM186: FALSE | AN186: FALSE | AO186: FALSE
A187: 155 | B187: =OFFSET(InputPriceData!B$15,CalculationsAndCharts!$A187+$A$11,0,1,1) -> 2014-12-18 | C187: =OFFSET(InputPriceData!G$15,CalculationsAndCharts!$A187+$A$11,IF($C$7,8,0),1,1) -> 4563300 | D187: =OFFSET(InputPriceData!C$15,CalculationsAndCharts!$A187+$A$11,IF($C$7,8,0),1,1) -> 43.36 | E187: =OFFSET(InputPriceData!D$15,CalculationsAndCharts!$A187+$A$11,IF($C$7,8,0),1,1) -> 45.7 | F187: =OFFSET(InputPriceData!E$15,CalculationsAndCharts!$A187+$A$11,IF($C$7,8,0),1,1) -> 43.36 | G187: =OFFSET(InputPriceData!F$15,CalculationsAndCharts!$A187+$A$11,IF($C$7,8,0),1,1) -> 45.21 | H187: 44.17992285 | I187: 46.80120609 | J187: -2.621283242 | L187: -2.621283242 | M187: -2.704662572 | N187: -5.600888227 | O187: -5.621564348 | P187: 51.46053552 | Q187: 46.2967395 | S187: 15 | T187: 40 | U187: 1 | V187: 96 | Y187: -2.704662572 | Z187: TRUE | AA187: FALSE | AB187: -5 | AC187: 5 | AF187: 43.36 | AL187: FALSE | AM187: FALSE | AN187: FALSE | AO187: FALSE
A188: 156 | B188: =OFFSET(InputPriceData!B$15,CalculationsAndCharts!$A188+$A$11,0,1,1) -> 2014-12-17 | C188: =OFFSET(InputPriceData!G$15,CalculationsAndCharts!$A188+$A$11,IF($C$7,8,0),1,1) -> 2393000 | D188: =OFFSET(InputPriceData!C$15,CalculationsAndCharts!$A188+$A$11,IF($C$7,8,0),1,1) -> 41.23 | E188: =OFFSET(InputPriceData!D$15,CalculationsAndCharts!$A188+$A$11,IF($C$7,8,0),1,1) -> 42.41 | F188: =OFFSET(InputPriceData!E$15,CalculationsAndCharts!$A188+$A$11,IF($C$7,8,0),1,1) -> 40.54 | G188: =OFFSET(InputPriceData!F$15,CalculationsAndCharts!$A188+$A$11,IF($C$7,8,0),1,1) -> 42.35 | H188: 43.99263609 | I188: 46.92850258 | J188: -2.935866484 | L188: -2.935866484 | M188: -2.725507405 | N188: -6.25604126 | O188: -5.626733378 | P188: 51.69203684 | Q188: 46.51156303 | S188: 14 | T188: 44 | U188: 0 | V188: 100 | Y188: -2.725507405 | Z188: FALSE | AA188: FALSE | AL188: FALSE | AM188: FALSE | AN188: FALSE | AO188: FALSE
A189: 157 | B189: =OFFSET(InputPriceData!B$15,CalculationsAndCharts!$A189+$A$11,0,1,1) -> 2014-12-16 | C189: =OFFSET(InputPriceData!G$15,CalculationsAndCharts!$A189+$A$11,IF($C$7,8,0),1,1) -> 4958600 | D189: =OFFSET(InputPriceData!C$15,CalculationsAndCharts!$A189+$A$11,IF($C$7,8,0),1,1) -> 41.26 | E189: =OFFSET(InputPriceData!D$15,CalculationsAndCharts!$A189+$A$11,IF($C$7,8,0),1,1) -> 42.7 | F189: =OFFSET(InputPriceData!E$15,CalculationsAndCharts!$A189+$A$11,IF($C$7,8,0),1,1) -> 40.78 | G189: =OFFSET(InputPriceData!F$15,CalculationsAndCharts!$A189+$A$11,IF($C$7,8,0),1,1) -> 40.9 | H189: 44.2912972 | I189: 47.29478278 | J189: -3.003485582 | L189: -3.003485582 | M189: -2.672917635 | N189: -6.350564282 | O189: -5.469406407 | P189: 52.0380382 | Q189: 46.91302521 | S189: 24 | T189: 4 | U189: 0 | V189: 100 | Y189: -2.672917635 | Z189: FALSE | AA189: FALSE | AL189: FALSE | AM189: FALSE | AN189: FALSE | AO189: FALSE
A190: 158 | B190: =OFFSET(InputPriceData!B$15,CalculationsAndCharts!$A190+$A$11,0,1,1) -> 2014-12-15 | C190: =OFFSET(InputPriceData!G$15,CalculationsAndCharts!$A190+$A$11,IF($C$7,8,0),1,1) -> 1720300 | D190: =OFFSET(InputPriceData!C$15,CalculationsAndCharts!$A190+$A$11,IF($C$7,8,0),1,1) -> 42.36 | E190: =OFFSET(InputPriceData!D$15,CalculationsAndCharts!$A190+$A$11,IF($C$7,8,0),1,1) -> 42.99 | F190: =OFFSET(InputPriceData!E$15,CalculationsAndCharts!$A190+$A$11,IF($C$7,8,0),1,1) -> 41.44 | G190: =OFFSET(InputPriceData!F$15,CalculationsAndCharts!$A190+$A$11,IF($C$7,8,0),1,1) -> 41.66 | H190: 44.90789669 | I190: 47.8063654 | J190: -2.898468714 | L190: -2.898468714 | M190: -2.590275648 | N190: -6.062934694 | O190: -5.249116939 | P190: 52.45055814 | Q190: 47.42504202 | S190: 24 | T190: 4 | U190: 0 | V190: 100 | Y190: -2.590275648 | Z190: FALSE | AA190: FALSE | AL190: FALSE | AM190: FALSE | AN190: FALSE | AO190: FALSE
A191: 159 | B191: =OFFSET(InputPriceData!B$15,CalculationsAndCharts!$A191+$A$11,0,1,1) -> 2014-12-12 | C191: =OFFSET(InputPriceData!G$15,CalculationsAndCharts!$A191+$A$11,IF($C$7,8,0),1,1) -> 1827500 | D191: =OFFSET(InputPriceData!C$15,CalculationsAndCharts!$A191+$A$11,IF($C$7,8,0),1,1) -> 42.58 | E191: =OFFSET(InputPriceData!D$15,CalculationsAndCharts!$A191+$A$11,IF($C$7,8,0),1,1) -> 43.11 | F191: =OFFSET(InputPriceData!E$15,CalculationsAndCharts!$A191+$A$11,IF($C$7,8,0),1,1) -> 42.03 | G191: =OFFSET(InputPriceData!F$15,CalculationsAndCharts!$A191+$A$11,IF($C$7,8,0),1,1) -> 42.12 | H191: 45.49842336 | I191: 48.29807464 | J191: -2.799651276 | L191: -2.799651276 | M191: -2.513227382 | N191: -5.796610521 | O191: -5.0456625 | P191: 52.85020844 | Q191: 47.91485714 | S191: 24 | T191: 4 | U191: 0 | V191: 100 | Y191: -2.513227382 | Z191: FALSE | AA191: FALSE | AL191: FALSE | AM191: FALSE | AN191: FALSE | AO191: FALSE
A192: 160 | B192: =OFFSET(InputPriceData!B$15,CalculationsAndCharts!$A192+$A$11,0,1,1) -> 2014-12-11 | C192: =OFFSET(InputPriceData!G$15,CalculationsAndCharts!$A192+$A$11,IF($C$7,8,0),1,1) -> 1373600 | D192: =OFFSET(InputPriceData!C$15,CalculationsAndCharts!$A192+$A$11,IF($C$7,8,0),1,1) -> 43.4 | E192: =OFFSET(InputPriceData!D$15,CalculationsAndCharts!$A192+$A$11,IF($C$7,8,0),1,1) -> 44.27 | F192: =OFFSET(InputPriceData!E$15,CalculationsAndCharts!$A192+$A$11,IF($C$7,8,0),1,1) -> 42.84 | G192: =OFFSET(InputPriceData!F$15,CalculationsAndCharts!$A192+$A$11,IF($C$7,8,0),1,1) -> 43.04 | H192: 46.11268215 | I192: 48.79232061 | J192: -2.679638454 | L192: -2.679638454 | M192: -2.441621408 | N192: -5.49192664 | O192: -4.857925495 | P192: 53.24762357 | Q192: 48.40245378 | S192: 24 | T192: 4 | U192: 2 | V192: 92 | Y192: -2.441621408 | Z192: FALSE | AA192: FALSE | AL192: FALSE | AM192: FALSE | AN192: FALSE | AO192: FALSE
A193: 161 | B193: =OFFSET(InputPriceData!B$15,CalculationsAndCharts!$A193+$A$11,0,1,1) -> 2014-12-10 | C193: =OFFSET(InputPriceData!G$15,CalculationsAndCharts!$A193+$A$11,IF($C$7,8,0),1,1) -> 2820000 | D193: =OFFSET(InputPriceData!C$15,CalculationsAndCharts!$A193+$A$11,IF($C$7,8,0),1,1) -> 44.89 | E193: =OFFSET(InputPriceData!D$15,CalculationsAndCharts!$A193+$A$11,IF($C$7,8,0),1,1) -> 45.2 | F193: =OFFSET(InputPriceData!E$15,CalculationsAndCharts!$A193+$A$11,IF($C$7,8,0),1,1) -> 42.92 | G193: =OFFSET(InputPriceData!F$15,CalculationsAndCharts!$A193+$A$11,IF($C$7,8,0),1,1) -> 43.07 | H193: 46.67135164 | I193: 49.25250626 | J193: -2.58115462 | L193: -2.58115462 | M193: -2.382117147 | N193: -5.240656397 | O193: -4.699425208 | P193: 53.6256837 | Q193: 48.85971429 | S193: 24 | T193: 4 | U193: 1 | V193: 96 | Y193: -2.382117147 | Z193: FALSE | AA193: FALSE | AL193: FALSE | AM193: FALSE | AN193: FALSE | AO193: FALSE
A194: 162 | B194: =OFFSET(InputPriceData!B$15,CalculationsAndCharts!$A194+$A$11,0,1,1) -> 2014-12-09 | C194: =OFFSET(InputPriceData!G$15,CalculationsAndCharts!$A194+$A$11,IF($C$7,8,0),1,1) -> 2675700 | D194: =OFFSET(InputPriceData!C$15,CalculationsAndCharts!$A194+$A$11,IF($C$7,8,0),1,1) -> 44 | E194: =OFFSET(InputPriceData!D$15,CalculationsAndCharts!$A194+$A$11,IF($C$7,8,0),1,1) -> 45.2 | F194: =OFFSET(InputPriceData!E$15,CalculationsAndCharts!$A194+$A$11,IF($C$7,8,0),1,1) -> 42.68 | G194: =OFFSET(InputPriceData!F$15,CalculationsAndCharts!$A194+$A$11,IF($C$7,8,0),1,1) -> 45.06 | H194: 47.32614284 | I194: 49.74710676 | J194: -2.420963914 | L194: -2.420963914 | M194: -2.332357779 | N194: -4.86654214 | O194: -4.564117411 | P194: 54.01663495 | Q194: 49.33489076 | S194: 24 | T194: 4 | U194: 0 | V194: 100 | Y194: -2.332357779 | Z194: FALSE | AA194: FALSE | AL194: FALSE | AM194: FALSE | AN194: FALSE | AO194: FALSE
A195: 163 | B195: =OFFSET(InputPriceData!B$15,CalculationsAndCharts!$A195+$A$11,0,1,1) -> 2014-12-08 | C195: =OFFSET(InputPriceData!G$15,CalculationsAndCharts!$A195+$A$11,IF($C$7,8,0),1,1) -> 2571400 | D195: =OFFSET(InputPriceData!C$15,CalculationsAndCharts!$A195+$A$11,IF($C$7,8,0),1,1) -> 46.75 | E195: =OFFSET(InputPriceData!D$15,CalculationsAndCharts!$A195+$A$11,IF($C$7,8,0),1,1) -> 47.04 | F195: =OFFSET(InputPriceData!E$15,CalculationsAndCharts!$A195+$A$11,IF($C$7,8,0),1,1) -> 44.41 | G195: =OFFSET(InputPriceData!F$15,CalculationsAndCharts!$A195+$A$11,IF($C$7,8,0),1,1) -> 44.65 | H195: 47.73816881 | I195: 50.1220753 | J195: -2.383906483 | L195: -2.383906483 | M195: -2.310206245 | N195: -4.756200673 | O195: -4.488511229 | P195: 54.34836217 | Q195: 49.71532773 | S195: 24 | T195: 4 | U195: 0 | V195: 100 | Y195: -2.310206245 | Z195: FALSE | AA195: TRUE | AD195: -5 | AE195: 5 | AG195: 47.04 | AL195: FALSE | AM195: FALSE | AN195: FALSE | AO195: FALSE
A196: 164 | B196: =OFFSET(InputPriceData!B$15,CalculationsAndCharts!$A196+$A$11,0,1,1) -> 2014-12-05 | C196: =OFFSET(InputPriceData!G$15,CalculationsAndCharts!$A196+$A$11,IF($C$7,8,0),1,1) -> 1331400 | D196: =OFFSET(InputPriceData!C$15,CalculationsAndCharts!$A196+$A$11,IF($C$7,8,0),1,1) -> 46.88 | E196: =OFFSET(InputPriceData!D$15,CalculationsAndCharts!$A196+$A$11,IF($C$7,8,0),1,1) -> 47.55 | F196: =OFFSET(InputPriceData!E$15,CalculationsAndCharts!$A196+$A$11,IF($C$7,8,0),1,1) -> 46.65 | G196: =OFFSET(InputPriceData!F$15,CalculationsAndCharts!$A196+$A$11,IF($C$7,8,0),1,1) -> 46.91 | H196: 48.29965405 | I196: 50.55984132 | J196: -2.260187268 | L196: -2.260187268 | M196: -2.291781185 | N196: -4.470321125 | O196: -4.421588868 | P196: 54.70756077 | Q196: 50.13552941 | S196: 23 | T196: 8 | U196: 4 | V196: 84 | Y196: -2.291781185 | Z196: FALSE | AA196: FALSE | AL196: FALSE | AM196: FALSE | AN196: FALSE | AO196: FALSE
A197: 165 | B197: =OFFSET(InputPriceData!B$15,CalculationsAndCharts!$A197+$A$11,0,1,1) -> 2014-12-04 | C197: =OFFSET(InputPriceData!G$15,CalculationsAndCharts!$A197+$A$11,IF($C$7,8,0),1,1) -> 1643100 | D197: =OFFSET(InputPriceData!C$15,CalculationsAndCharts!$A197+$A$11,IF($C$7,8,0),1,1) -> 47.11 | E197: =OFFSET(InputPriceData!D$15,CalculationsAndCharts!$A197+$A$11,IF($C$7,8,0),1,1) -> 47.23 | F197: =OFFSET(InputPriceData!E$15,CalculationsAndCharts!$A197+$A$11,IF($C$7,8,0),1,1) -> 46.14 | G197: =OFFSET(InputPriceData!F$15,CalculationsAndCharts!$A197+$A$11,IF($C$7,8,0),1,1) -> 46.72 | H197: 48.55231843 | I197: 50.85182863 | J197: -2.2995102 | L197: -2.2995102 | M197: -2.299679665 | N197: -4.521981337 | O197: -4.409405804 | P197: 54.99635931 | Q197: 50.43721008 | S197: 22 | T197: 12 | U197: 3 | V197: 88 | Y197: -2.299679665 | Z197: FALSE | AA197: FALSE | AL197: FALSE | AM197: FALSE | AN197: FALSE | AO197: FALSE
A198: 166 | B198: =OFFSET(InputPriceData!B$15,CalculationsAndCharts!$A198+$A$11,0,1,1) -> 2014-12-03 | C198: =OFFSET(InputPriceData!G$15,CalculationsAndCharts!$A198+$A$11,IF($C$7,8,0),1,1) -> 2582200 | D198: =OFFSET(InputPriceData!C$15,CalculationsAndCharts!$A198+$A$11,IF($C$7,8,0),1,1) -> 46.6 | E198: =OFFSET(InputPriceData!D$15,CalculationsAndCharts!$A198+$A$11,IF($C$7,8,0),1,1) -> 47.56 | F198: =OFFSET(InputPriceData!E$15,CalculationsAndCharts!$A198+$A$11,IF($C$7,8,0),1,1) -> 46.51 | G198: =OFFSET(InputPriceData!F$15,CalculationsAndCharts!$A198+$A$11,IF($C$7,8,0),1,1) -> 47.12 | H198: 48.88546723 | I198: 51.18237492 | J198: -2.296907685 | L198: -2.296907685 | M198: -2.299722031 | N198: -4.487692666 | O198: -4.38126192 | P198: 55.30289114 | Q198: 50.76235294 | S198: 21 | T198: 16 | U198: 2 | V198: 92 | Y198: -2.299722031 | Z198: TRUE | AA198: FALSE | AB198: -5 | AC198: 5 | AF198: 46.51 | AL198: FALSE | AM198: FALSE | AN198: FALSE | AO198: FALSE
A199: 167 | B199: =OFFSET(InputPriceData!B$15,CalculationsAndCharts!$A199+$A$11,0,1,1) -> 2014-12-02 | C199: =OFFSET(InputPriceData!G$15,CalculationsAndCharts!$A199+$A$11,IF($C$7,8,0),1,1) -> 1721400 | D199: =OFFSET(InputPriceData!C$15,CalculationsAndCharts!$A199+$A$11,IF($C$7,8,0),1,1) -> 45.57 | E199: =OFFSET(InputPriceData!D$15,CalculationsAndCharts!$A199+$A$11,IF($C$7,8,0),1,1) -> 46.91 | F199: =OFFSET(InputPriceData!E$15,CalculationsAndCharts!$A199+$A$11,IF($C$7,8,0),1,1) -> 45.52 | G199: =OFFSET(InputPriceData!F$15,CalculationsAndCharts!$A199+$A$11,IF($C$7,8,0),1,1) -> 46.42 | H199: 49.20646127 | I199: 51.50736491 | J199: -2.300903636 | L199: -2.300903636 | M199: -2.300425618 | N199: -4.467135216 | O199: -4.354654234 | P199: 55.60596118 | Q199: 51.07492437 | S199: 20 | T199: 20 | U199: 1 | V199: 96 | Y199: -2.300425618 | Z199: FALSE | AA199: TRUE | AD199: -5 | AE199: 5 | AG199: 46.91 | AL199: FALSE | AM199: FALSE | AN199: FALSE | AO199: FALSE
A200: 168 | B200: =OFFSET(InputPriceData!B$15,CalculationsAndCharts!$A200+$A$11,0,1,1) -> 2014-12-01 | C200: =OFFSET(InputPriceData!G$15,CalculationsAndCharts!$A200+$A$11,IF($C$7,8,0),1,1) -> 3813300 | D200: =OFFSET(InputPriceData!C$15,CalculationsAndCharts!$A200+$A$11,IF($C$7,8,0),1,1) -> 48.29 | E200: =OFFSET(InputPriceData!D$15,CalculationsAndCharts!$A200+$A$11,IF($C$7,8,0),1,1) -> 48.78 | F200: =OFFSET(InputPriceData!E$15,CalculationsAndCharts!$A200+$A$11,IF($C$7,8,0),1,1) -> 45.46 | G200: =OFFSET(InputPriceData!F$15,CalculationsAndCharts!$A200+$A$11,IF($C$7,8,0),1,1) -> 45.76 | H200: 49.7130906 | I200: 51.9143541 | J200: -2.201263507 | L200: -2.201263507 | M200: -2.300306113 | N200: -4.240182787 | O200: -4.326533989 | P200: 55.94618197 | Q200: 51.43687395 | S200: 19 | T200: 24 | U200: 0 | V200: 100 | Y200: -2.300306113 | Z200: FALSE | AA200: FALSE | AL200: FALSE | AM200: FALSE | AN200: FALSE | AO200: FALSE
A201: 169 | B201: =OFFSET(InputPriceData!B$15,CalculationsAndCharts!$A201+$A$11,0,1,1) -> 2014-11-28 | C201: =OFFSET(InputPriceData!G$15,CalculationsAndCharts!$A201+$A$11,IF($C$7,8,0),1,1) -> 2979700 | D201: =OFFSET(InputPriceData!C$15,CalculationsAndCharts!$A201+$A$11,IF($C$7,8,0),1,1) -> 50.24 | E201: =OFFSET(InputPriceData!D$15,CalculationsAndCharts!$A201+$A$11,IF($C$7,8,0),1,1) -> 50.25 | F201: =OFFSET(InputPriceData!E$15,CalculationsAndCharts!$A201+$A$11,IF($C$7,8,0),1,1) -> 47.89 | G201: =OFFSET(InputPriceData!F$15,CalculationsAndCharts!$A201+$A$11,IF($C$7,8,0),1,1) -> 48.8 | H201: 50.43183434 | I201: 52.40670243 | J201: -1.97486809 | L201: -1.97486809 | M201: -2.325066764 | N201: -3.768350228 | O201: -4.348121789 | P201: 56.32344796 | Q201: 51.84452101 | S201: 18 | T201: 28 | U201: 9 | V201: 64 | Y201: -2.325066764 | Z201: FALSE | AA201: FALSE | AL201: FALSE | AM201: FALSE | AN201: FALSE | AO201: FALSE
A202: 170 | B202: =OFFSET(InputPriceData!B$15,CalculationsAndCharts!$A202+$A$11,0,1,1) -> 2014-11-26 | C202: =OFFSET(InputPriceData!G$15,CalculationsAndCharts!$A202+$A$11,IF($C$7,8,0),1,1) -> 1506700 | D202: =OFFSET(InputPriceData!C$15,CalculationsAndCharts!$A202+$A$11,IF($C$7,8,0),1,1) -> 50.96 | E202: =OFFSET(InputPriceData!D$15,CalculationsAndCharts!$A202+$A$11,IF($C$7,8,0),1,1) -> 51.87 | F202: =OFFSET(InputPriceData!E$15,CalculationsAndCharts!$A202+$A$11,IF($C$7,8,0),1,1) -> 50.8 | G202: =OFFSET(InputPriceData!F$15,CalculationsAndCharts!$A202+$A$11,IF($C$7,8,0),1,1) -> 51.53 | H202: 50.72853149 | I202: 52.69523863 | J202: -1.966707132 | L202: -1.966707132 | M202: -2.412616433 | N202: -3.732229293 | O202: -4.49306468 | P202: 56.60209419 | Q202: 52.08672269 | S202: 17 | T202: 32 | U202: 8 | V202: 68 | Y202: -2.412616433 | Z202: FALSE | AA202: FALSE | AL202: FALSE | AM202: FALSE | AN202: FALSE | AO202: FALSE
... 923 more rows

Sheet Follow
A1: Stocks and Indexes I wish to follow
A3: To ease following a stock, enter a Yahoo Finance acceptable symbol in column "A" anywhere below cell "A9".
A4: Thereafter you may doubleclick the cell containing a symbol of interest to initiate data retrieval and charting for that symbol.
A7: Symbol
A8: To | B8: Description | C8: Last Trade as of most recent check
A9: Follow | C9: Date | D9: Time | E9: Open | F9: High | G9: Low | H9: Close | I9: Volume | J9: Change
A10: A | B10: Agilent Technolog (A) -NYSE (Daily) | C10: 2015-02-02 | D10: 16:03:00 | E10: 37.9 | F10: 38.76 | G10: 37.71 | H10: 38.69 | I10: 2508493 | J10: 0.92
A11: AAL | B11: American Airlines (AAL) -NasdaqNM (Daily) | C11: 2015-02-19 | D11: 16:00:00 | E11: 50.73 | F11: 50.8 | G11: 49.59 | H11: 49.78 | I11: 11462722 | J11: 0.47
A12: ADM | B12: Archer-Daniels-Midland Company (ADM) -NYQ (Daily) | C12: 2016-03-07 | D12: 13:18:00 | E12: 37.17 | F12: 37.29 | G12: 36.85 | H12: 37.09 | I12: 2069198 | J12: -0.56
A13: AMC | B13: AMC Entertainment Holdings, Inc (AMC) -NYQ (Daily) | C13: 2015-09-04 | D13: 16:00:00 | E13: 27.14 | F13: 27.95 | G13: 26.99 | H13: 27.71 | I13: 167990 | J13: 0.28
A14: BSX | B14: Boston Scientific Corporation C (BSX) -NYQ (Daily) | C14: 2015-03-13 | D14: 16:01:00 | E14: 16.84 | F14: 16.91 | G14: 16.44 | H14: 16.61 | I14: 7262460 | J14: -0.28
A15: CASY | B15: Caseys General Stores, Inc. (CASY) -NMS (Daily) | C15: 2016-01-08 | D15: 11:34:00 | E15: 117.67 | F15: 117.97 | G15: 116.79 | H15: 117.01 | I15: 106398 | J15: 0.05
A16: CSCO | B16: Cisco Systems, In (CSCO) -NasdaqNM (Daily) | C16: 2015-02-19 | D16: 16:00:00 | E16: 29.32 | F16: 29.39 | G16: 29.13 | H16: 29.31 | I16: 21469012 | J16: -0.18
A17: CVS | B17: CVS Health Corpor (CVS) -NYSE (Daily) | C17: 2015-02-02 | D17: 16:01:00 | E17: 98.34 | F17: 99.22 | G17: 97.06 | H17: 99.11 | I17: 4416094 | J17: 0.95
A18: DIS | B18: Walt Disney Compa (DIS) -NYSE (Daily) | C18: 2015-02-26 | D18: 16:00:00 | E18: 105.5 | F18: 105.71 | G18: 104.14 | H18: 104.56 | I18: 5044969 | J18: -1.01
A19: EMC | B19: EMC Corporation C (EMC) -NYSE (Daily) | C19: 2015-02-19 | D19: 16:00:00 | E19: 28.26 | F19: 28.83 | G19: 28.19 | H19: 28.72 | I19: 11049079 | J19: 0.52
A20: F | B20: Ford Motor Company Common Stock (F) -NYQ (Daily) | C20: 2016-01-08 | D20: 11:42:00 | E20: 13.05 | F20: 13.1 | G20: 12.68 | H20: 12.7353 | I20: 19823416 | J20: 0.0353
A21: GSK | B21: GlaxoSmithKline P (GSK) -NYSE (Daily) | C21: 2015-02-02 | D21: 16:01:00 | E21: 44.11 | F21: 44.12 | G21: 43.71 | H21: 43.96 | I21: 3654466 | J21: -0.04
A22: HSY | B22: The Hershey Compa (HSY) -NYSE (Daily) | C22: 2015-02-19 | D22: 16:02:00 | E22: 106.97 | F22: 107.31 | G22: 105.42 | H22: 105.95 | I22: 1448321 | J22: -1
A23: HTLD | B23: Heartland Express (HTLD) -NasdaqNM (Daily) | C23: 2015-02-02 | D23: 16:00:00 | E23: 25.68 | F23: 25.81 | G23: 25.36 | H23: 25.62 | I23: 542510 | J23: -0.07
A24: IBM | B24: International Bus (IBM) -NYSE (Daily) | C24: 2015-02-02 | D24: 16:01:00 | E24: 154 | F24: 154.66 | G24: 151.51 | H24: 154.66 | I24: 4712247 | J24: 1.35
A25: INTC | B25: Intel Corporation (INTC) -NasdaqNM (Daily) | C25: 2015-02-19 | D25: 16:00:00 | E25: 34.25 | F25: 34.42 | G25: 34.05 | H25: 34.21 | I25: 11017541 | J25: -0.055
A26: JAH | B26: Jarden Corporation Common Stock (JAH) -NYQ (Daily) | C26: 2016-01-08 | D26: 16:02:00 | E26: 53.82 | F26: 53.88 | G26: 52.65 | H26: 52.73 | I26: 4519480 | J26: -0.81
A27: JNJ | B27: Johnson & Johnson Common Stock (JNJ) -NYQ (Daily) | C27: 2016-01-08 | D27: 11:37:00 | E27: 99.88 | F27: 99.94 | G27: 98.87 | H27: 98.88 | I27: 2448879 | J27: -0.34
A28: KO | B28: Coca-Cola Company (The) Common (KO) -NYQ (Daily) | C28: 2015-08-10 | D28: 16:00:00 | E28: 41.89 | F28: 41.99 | G28: 41.58 | H28: 41.68 | I28: 9501875 | J28: -0.09
A29: LHO | B29: LaSalle Hotel Pro (LHO) -NYSE (Daily) | C29: 2015-02-02 | D29: 16:06:00 | E29: 40.51 | F29: 40.74 | G29: 39.46 | H29: 40.26 | I29: 1034675 | J29: -0.2
A30: LINE | B30: Linn Energy, LLC (LINE) -NasdaqNM (Daily) | C30: 2015-02-02 | D30: 16:00:00 | E30: 10.4 | F30: 10.78 | G30: 10.25 | H30: 10.77 | I30: 3766537 | J30: 0.51
A31: LO | B31: Lorillard, Inc Co (LO) -NYSE (Daily) | C31: 2015-02-02 | D31: 16:03:00 | E31: 65.71 | F31: 66.29 | G31: 65.43 | H31: 66.29 | I31: 1563618 | J31: 0.68
A32: MCD | B32: McDonald's Corporation Common S (MCD) -NYQ (Daily) | C32: 2016-01-08 | D32: 11:38:00 | E32: 115.75 | F32: 117.47 | G32: 115.6 | H32: 116.269 | I32: 2198939 | J32: 0.609
A33: MDT | B33: Medtronic plc. Or (MDT) -NYSE (Daily) | C33: 2015-02-19 | D33: 16:01:00 | E33: 78.59 | F33: 78.59 | G33: 77.85 | H33: 78.13 | I33: 6900528 | J33: -0.37
A34: MGM | B34: MGM Resorts Inter (MGM) -NYSE (Daily) | C34: 2015-02-02 | D34: 16:00:00 | E34: 19.44 | F34: 19.75 | G34: 19.12 | H34: 19.74 | I34: 7570281 | J34: 0.26
A35: MO | B35: Altria Group, Inc (MO) -NYSE (Daily) | C35: 2015-02-02 | D35: 16:01:00 | E35: 53.25 | F35: 53.84 | G35: 52.98 | H35: 53.8 | I35: 9183582 | J35: 0.7
A36: MSFT | B36: Microsoft Corpora (MSFT) -NasdaqNM (Daily) | C36: 2015-02-20 | D36: 16:00:00 | E36: 43.51 | F36: 43.88 | G36: 43.29 | H36: 43.855 | I36: 29721132 | J36: 0.355
A37: NVS | B37: Novartis AG Common Stock (NVS) -NYQ (Daily) | C37: 2016-01-08 | D37: 11:38:00 | E37: 83.38 | F37: 83.5 | G37: 82.37 | H37: 82.42 | I37: 979446 | J37: -1.52
A38: PRU | B38: Prudential Financ (PRU) -NYSE (Daily) | C38: 2015-02-23 | D38: 12:22:00 | E38: 80.25 | F38: 80.4499 | G38: 79.8 | H38: 80.12 | I38: 1604052 | J38: -0.69
A39: PSEC | B39: Prospect Capital Corporation (PSEC) -NMS (Daily) | C39: 2016-01-15 | D39: 16:00:00 | E39: 5.93 | F39: 6 | G39: 5.8 | H39: 5.96 | I39: 6037177 | J39: -0.1
A40: RAI | B40: Reynolds American (RAI) -NYSE (Daily) | C40: 2015-02-02 | D40: 16:03:00 | E40: 68.12 | F40: 69.06 | G40: 67.4346 | H40: 69.05 | I40: 1822013 | J40: 1.1
A41: RPM | B41: RPM International Inc. Common S (RPM) -NYQ (Daily) | C41: 2016-01-08 | D41: 11:52:00 | E41: 42 | F41: 42.1 | G41: 41.33 | H41: 41.58 | I41: 285841 | J41: -0.06 | K41: Owns the Rust-Oleum brand
A42: RSP | B42: Guggenheim S&P 500 Equal Weight (RSP) -PCX (Daily) | C42: 2016-01-08 | D42: 11:33:00 | E42: 73.24 | F42: 73.47 | G42: 72.41 | H42: 72.41 | I42: 754279 | J42: -0.48
A43: SONC | B43: Sonic Corp. (SONC) -NMS (Daily) | C43: 2016-01-08 | D43: 11:42:00 | E43: 30.24 | F43: 30.67 | G43: 29.89 | H43: 29.95 | I43: 327291 | J43: -0.05
A44: SWKS | B44: Skyworks Solution (SWKS) -NasdaqNM (Daily) | C44: 2015-02-02 | D44: 16:00:00 | E44: 83.07 | F44: 83.73 | G44: 80.15 | H44: 82.02 | I44: 4119001 | J44: -1.03
A45: TOL | B45: Toll Brothers Inc (TOL) -NYSE (Daily) | C45: 2015-02-23 | D45: 12:23:00 | E45: 37.56 | F45: 37.77 | G45: 37.1 | H45: 37.36 | I45: 1521944 | J45: -0.29
A46: UNP | B46: Union Pacific Cor (UNP) -NYSE (Daily) | C46: 2015-02-02 | D46: 16:10:00 | E46: 118.13 | F46: 119.06 | G46: 116.7 | H46: 119.01 | I46: 3259594 | J46: 1.8
A47: VZ | B47: Verizon Communica (VZ) -NYSE (Daily) | C47: 2015-02-23 | D47: 12:22:00 | E47: 48.94 | F47: 49 | G47: 48.54 | H47: 48.825 | I47: 4204644 | J47: -0.145
A48: WBA | B48: (WBA) -NasdaqNM (Daily) | C48: 2015-02-02 | D48: 16:00:00 | E48: 73.06 | F48: 74.98 | G48: 73 | H48: 74.89 | I48: 4247395 | J48: 1.14
A49: WMT | B49: Wal-Mart Stores, Inc. Common St (WMT) -NYQ (Daily) | C49: 2016-01-08 | D49: 11:39:00 | E49: 65.08 | F49: 65.41 | G49: 64.29 | H49: 64.55 | I49: 6674609 | J49: -0.48
A51: ^NDX | B51: NASDAQ-100 (^NDX) -NIM (Daily) | C51: 2015-08-10 | D51: 17:15:00 | E51: 4558.68 | F51: 4583.63 | G51: 4554.63 | H51: 4573.11 | I51: 0 | J51: 53.03
A52: ^DJI | B52: Dow Jones Industrial Average (^DJI) -DJI | C52: 2015-12-06 | D52: D ec | E52: 17482.68 | F52: 17866.47 | G52: 17482.68 | H52: 17847.63 | I52: 0 | J52: 369.96
A53: SPY | B53: SPDR S&P 500 (SPY) -PCX (Daily) | C53: 2015-12-04 | D53: 16:00:00 | E53: 206.08 | F53: 209.97 | G53: 205.93 | H53: 209.62 | I53: 192913879 | J53: 4.01
A54: ^GSPC | B54: S&P 500 (^GSPC) -SNP (Daily) | C54: 2015-12-04 | D54: 16:33:00 | E54: 2051.24 | F54: 2093.84 | G54: 2051.24 | H54: 2091.69 | I54: 740000496 | J54: 42.07
A55: ^RUT | B55: Russell 2000 (^RUT) -WCB (Daily) | C55: 2015-12-04 | D55: 16:30:00 | E55: 1170.642456 | F55: 1183.823486 | G55: 1170.491699 | H55: 1183.397095 | I55: 0 | J55: 12.830688
A56: ^VIX | B56: VOLATILITY S&P 500 (^VIX) -WCB (Daily) | C56: 2015-12-04 | D56: 16:14:00 | E56: 17.43 | F56: 17.65 | G56: 14.69 | H56: 14.81 | I56: 0 | J56: -3.3
A59: ACAD | B59: ACADIA Pharmaceut (ACAD) -NasdaqNM (Daily) | C59: 2014-07-21 | D59: 16:00:00 | E59: 20.13 | F59: 20.55 | G59: 19.8101 | H59: 20.31 | I59: 691016
A60: CLDX | B60: Celldex Therapeut (CLDX) -NasdaqNM (Daily) | C60: 2015-02-02 | D60: 16:00:00 | E60: 21.47 | F60: 21.69 | G60: 20.11 | H60: 21.02 | I60: 1570418 | J60: -0.4
A61: ICPT | B61: Intercept Pharmac (ICPT) -NasdaqNM (Daily) | C61: 2014-07-21 | D61: 16:00:00 | E61: 215.97 | F61: 218.43 | G61: 213.05 | H61: 218.14 | I61: 191276
A62: INO | B62: Inovio Pharmaceut (INO) -AMEX (Daily) | C62: 2014-07-21 | D62: 16:00:00 | E62: 10.3 | F62: 11.08 | G62: 10.1 | H62: 11.01 | I62: 1800796
A63: JCP | B63: J.C. Penney Compa (JCP) -NYSE (Daily) | C63: 2015-02-02 | D63: 16:01:00 | E63: 7.16 | F63: 7.44 | G63: 7.01 | H63: 7.43 | I63: 12772679 | J63: 0.16
A64: LCI | B64: Lannett Co Inc Co (LCI) -NYSE (Daily) | C64: 2014-07-21 | D64: 16:02:00 | E64: 38.09 | F64: 38.803 | G64: 36.5101 | H64: 37.76 | I64: 611367
A65: NPSP | B65: NPS Pharmaceutica (NPSP) -NasdaqNM (Daily) | C65: 2014-07-21 | D65: 15:59:00 | E65: 28.75 | F65: 29.43 | G65: 28.31 | H65: 29.29 | I65: 1126758
A66: PBYI | B66: Puma Biotechnolog (PBYI) -NYSE (Daily) | C66: 2014-07-21 | D66: 16:02:00 | E66: 58.27 | F66: 59.46 | G66: 57.39 | H66: 58.98 | I66: 348030
